Workbook

Sheet CODE (hidden)

Sheet Uvodne napomene
A2: UVODNE NAPOMENE
A4: 1. Na radnim listovima odaberite Vaš razdjel. Ovisno o razdjelu otvoriti će Vam se ili samo jedna tablica za razdjel ili više tablica (ukoliko razdjel ima porač.institucije/potrošačke jedinice).
A5: 2. Nakon popunjavanja tablica, ukoliko je probijena utvrđena gornja granica za stupac 12. (izvor: proračunski prihodi), na tablici razdjela vidjeti ćete upozorenje "PROBIJEN LIMIT!!!"
A6: 3. Po zavšetku unosa zahtjeva, upišite datum zahtjeva, isprintajte tablice te ih u elektronskoj i papirnoj formi, skupa s pratećim obrascima, dostavite u Ministarstvo financija (ruzica.zivkovic@zupanijaposavska.ba). Ukoliko se pojavi neki problem pri unosu kontaktirajte nas na broj: 031 713 265, lok. 167.
A7: 4. Proračunski zahtjevi i prateći obrasci moraju biti potpisani i opečaćeni, te s jasno naznačenim datumom.
A8: 5. Sukladno utvrđenim organizacijskim kodovima, svaka proračunska institucija/potrošačka jedinica svoj zahtjev mora najprije dostaviti nadležnom razdjelu (vidi donju tablicu),
A9: koji potom cjeloviti zahtjev za razdjel dostavlja Ministarstvu financija.
A11: RAZDJEL | B11: NAZIV RAZDJELA | C11: PRORAČUNSKE INSTITUCIJE/POTROŠAČKE JEDINICE
A12: 10 | B12: SKUPŠTINA ŽUPANIJE POSAVSKE | C12: (nema)
A13: 11 | B13: VLADA ŽUPANIJE POSAVSKE | C13: Ured za zakonodavstvo Vlade Županije Posavske
C14: Služba za odnose s javnošću Vlade Županije Posavske
C15: Ured za razvoj i europske integracije Županije Posavske
C16: Ured za obnovu, stambeno zbrinjavanje i raseljene osobe Vlade Županije Posavske
A17: 12 | B17: ZAJEDNIČKA SLUŽBA VLADE ŽUPANIJE POSAVSKE | C17: (nema)
A18: 13 | B18: MINISTARSTVO UNUTARNJIH POSLOVA ŽUPANIJE POSAVSKE | C18: (nema)
A19: 14 | B19: MINISTARSTVO PRAVOSUĐA I UPRAVE ŽUPANIJE POSAVSKE | C19: Općinski sud u Orašju
C20: Općinsko pravobraniteljstvo Orašje
C21: Općinsko pravobraniteljstvo Odžak
C22: Županijski Zavod za pružanje pravne pomoći
C23: Županijski arhiv
A24: 15 | B24: MINISTARSTVO GOSPODARSTVA, RADA I PROSTORNOG UREĐENJA ŽUPANIJE POSAVSKE | C24: (nema)
A25: 16 | B25: MINISTARSTVO FINANCIJA ŽUPANIJE POSAVSKE | C25: (nema)
A26: 17 | B26: MINISTARSTVO ZDRAVSTVA I SOCIJALNE POLITIKE ŽUPANIJE POSAVSKE | C26: (nema)
A27: 18 | B27: MINISTARSTVO PROMETA, VEZA I ZAŠTITE OKOLIŠA ŽUPANIJE POSAVSKE | C27: (nema)
A28: 19 | B28: MINISTARSTVO POLJOPRIVREDE, VODOPRIVREDE I ŠUMARSTVA ŽUPANIJE POSAVSKE | C28: (nema)
A29: 20 | B29: MINISTARSTVO PROSVJETE, ZNANOSTI, KULTURE I SPORTA ŽUPANIJE POSAVSKE | C29: Srednja škola Pere Zečevića u Odžaku
C30: Školski centar Fra Martina Nedića u Orašju
C31: Srednja strukovna škola u Orašju
C32: Osnovna škola Orašje u Orašju
C33: Osnovna škola Vladimira Nazora u Odžaku
C34: Osnovna škola Ruđera Boškovića u Donjoj Mahali
C35: Osnovna škola Fra Ilije Starčevića u Tolisi
C36: Osnovna škola Stjepana Radića u Boku
C37: Osnovna škola Antuna Gustava Matoša u Vidovicama
C38: Osnovna škola Braće Radića u Domaljevcu
A39: 21 | B39: MINISTARSTVO BRANITELJA ŽUPANIJE POSAVSKE | C39: (nema)
A40: 22 | B40: AGENCIJA ZA PRIVATIZACIJU U ŽUPANIJI POSAVSKOJ | C40: (nema)
A41: 23 | B41: ŽUPANIJSKA UPRAVA CIVILNE ZAŠTITE | C41: (nema)
A42: 24 | B42: KANTONALNI SUD ODŽAK | C42: (nema)
A43: 26 | B43: ŽUPANIJSKO PRAVOBRANITELJSTVO | C43: (nema)
A44: 27 | B44: KANTONALNO TUŽITELJSTVO POSAVSKOG KANTONA ORAŠJE | C44: (nema)
A45: 28 | B45: ŽUPANIJSKA UPRAVA ZA INSPEKCIJSKE POSLOVE | C45: (nema)

Sheet 10
B1: PRORAČUNSKI ZAHTJEV ZA 2023. GODINU
M2: Datum zahtjeva:
B3: NAZIV RAZDJELA: | F3: SKUPŠTINA ŽUPANIJE POSAVSKE
B5: RAZDJEL: | D5: 10 | I5: Gornja granica razdjela za stupac 12: | L5: 959350
B7: Ministarstvo (razdjel) | C7: Proračunska institucija | D7: Potrošačka jedinica | E7: Funkcija | F7: Ekon. kod | G7: Subanalitika | H7: OPIS | I7: PRORAČUN za 2022./ Izmjene i dopune | L7: ZAHTJEV za 2023. | O7: INDEKS
I8: iz prorač. sredstava | J8: iz ostalih izvora | K8: UKUPNO | L8: iz prorač. sredstava | M8: iz ostalih izvora | N8: UKUPNO
B9: 1 | C9: 2 | D9: 3 | E9: 4 | F9: 5 | G9: 6 | H9: 7 | I9: 8 | J9: 9 | K9: 10=8+9 | L9: 12 | M9: 13 | N9: 14=12+13 | O9: 15=14/10
B10: 10 | C10: 01 | D10: 0001 | E10: 0111 | H10: SKUPŠTINA ŽUPANIJE POSAVSKE
F11: 611000 | H11: Plaće i naknade troškova zaposlenih | I11: =SUM(I12:I14) -> 618190 | J11: 0 | K11: 618190 | L11: 0 | M11: 0 | N11: 0 | O11: =IF(K11=0,"",N11/K11*100) -> 0
F12: 611100 | H12: Bruto plaće i naknade plaća | I12: 516000 | J12: 0 | K12: =SUM(I12:J12) -> 516000 | N12: =SUM(L12:M12) -> 0 | O12: =IF(K12=0,"",N12/K12*100) -> 0
F13: 611200 | H13: Naknade troškova zaposlenih | I13: 102190 | J13: 0 | K13: =SUM(I13:J13) -> 102190 | N13: =SUM(L13:M13) -> 0 | O13: 0
F14: 611200 | H14: Naknade troškova zaposlenih - volonteri () | I14: 0 | J14: 0 | K14: 0 | N14: 0
F16: 612000 | H16: Doprinosi poslodavca i ostali doprinosi | I16: =I17+I18 -> 54300 | J16: 0 | K16: 54300 | L16: 0 | M16: 0 | N16: 0 | O16: 0
F17: 612100 | H17: Doprinosi poslodavca | I17: 54300 | J17: 0 | K17: =SUM(I17:J17) -> 54300 | N17: =SUM(L17:M17) -> 0 | O17: 0
F19: 613000 | H19: Izdaci za materijal, sitan inv. i usluge | I19: =SUM(I20:I29) -> 270820 | J19: 0 | K19: 270820 | L19: 0 | M19: 0 | N19: 0 | O19: 0
F20: 613100 | H20: Putni troškovi | I20: 7000 | J20: 0 | K20: =SUM(I20:J20) -> 7000 | N20: =SUM(L20:M20) -> 0 | O20: 0
F21: 613200 | H21: Izdaci za energiju | I21: 8500 | J21: 0 | K21: 8500 | N21: 0 | O21: 0
F22: 613300 | H22: Izdaci za komunikaciju i komunalne usluge | I22: 7000 | J22: 0 | K22: 7000 | N22: 0 | O22: 0
F23: 613400 | H23: Nabavka materijala i sitnog inventara | I23: 5000 | J23: 0 | K23: 5000 | N23: 0 | O23: 0
F24: 613500 | H24: Izdaci za usluge prijevoza i goriva | I24: 9500 | J24: 0 | K24: 9500 | N24: 0 | O24: 0
F25: 613600 | H25: Unajmljivanje imovine, opreme i nemat.imovine | I25: 0 | J25: 0 | K25: 0 | N25: 0
F26: 613700 | H26: Izdaci za tekuće održavanje | I26: 5000 | J26: 0 | K26: 5000 | N26: 0 | O26: 0
F27: 613800 | H27: Izdaci osiguranja, bank. usluga i usluga p.p. | I27: 3820 | J27: 0 | K27: 3820 | N27: 0 | O27: 0
F28: 613900 | H28: Ugovorene i druge posebne usluge | I28: 225000 | J28: 0 | K28: 225000 | N28: 0 | O28: 0
F29: 613900 | H29: Ugovorene i druge posebne usluge-volonteri () | I29: 0 | J29: 0 | K29: 0 | N29: 0
F31: 821000 | H31: Izdaci za nabavku stalnih sredstava | I31: =SUM(I32:I34) -> 36500 | J31: =SUM(J32:J34) -> 0 | K31: 36500 | L31: 0 | M31: 0 | N31: 0 | O31: 0
F32: 821200 | H32: Nabavka građevina | I32: 0 | J32: 0 | K32: =SUM(I32:J32) -> 0 | N32: =SUM(L32:M32) -> 0
F33: 821300 | H33: Nabavka opreme | I33: 31500 | J33: 0 | K33: 31500 | N33: 0 | O33: 0
F34: 821500 | H34: Nabavka stalnih sredstava u obliku prava | I34: 5000 | J34: 0 | K34: 5000 | N34: 0 | O34: 0
H36: Ukupan broj zaposlenih: | I36: 21 | K36: 21
H37: Ukupno za potrošačku jedinicu: | I37: =I11+I16+I19+I31 -> 979810 | J37: 0 | K37: 979810 | L37: 0 | M37: 0 | N37: 0 | O37: 0
H38: Ukupno za proračunsku instituciju: | I38: =I37 -> 979810 | J38: =J37 -> 0 | K38: =K37 -> 979810 | L38: =L37 -> 0 | M38: =M37 -> 0 | N38: =N37 -> 0 | O38: 0
H39: Ukupno za ministarstvo (razdjel): | I39: 979810 | J39: =J38 -> 0 | K39: =K38 -> 979810 | L39: 0 | M39: =M38 -> 0 | N39: =N38 -> 0 | O39: 0
L40: =IF(L39>L5,"PROBIJEN LIMIT!!!","") -> 

Sheet 11
B1: PRORAČUNSKI ZAHTJEV ZA 2023. GODINU
M2: Datum zahtjeva:
B3: NAZIV RAZDJELA: | F3: VLADA ŽUPANIJE POSAVSKE
B5: RAZDJEL: | D5: 11 | I5: Gornja granica razdjela za stupac 12: | L5: 2718630
B7: Ministarstvo (razdjel) | C7: Proračunska institucija | D7: Potrošačka jedinica | E7: Funkcija | F7: Ekon. kod | G7: Subanalitika | H7: OPIS | I7: PRORAČUN za 2022./ Izmjene i dopune | L7: ZAHTJEV za 2023. | O7: INDEKS
I8: iz prorač. sredstava | J8: iz ostalih izvora | K8: UKUPNO | L8: iz prorač. sredstava | M8: iz ostalih izvora | N8: UKUPNO
B9: 1 | C9: 2 | D9: 3 | E9: 4 | F9: 5 | G9: 6 | H9: 7 | I9: 8 | J9: 9 | K9: 10=8+9 | L9: 12 | M9: 13 | N9: 14=12+13 | O9: 15=14/10
B10: 11 | C10: 01 | D10: 0001 | E10: 0111 | H10: VLADA ŽUPANIJE POSAVSKE | O10: =IF(K10=0,"",N10/K10*100) -> 
F11: 600000 | H11: Rashodi - Tekuća pričuva | I11: =I12+I13+I14 -> 895000 | J11: =J12+J13+J14 -> 0 | K11: =K12+K13+K14 -> 895000 | L11: =L12+L13+L14 -> 0 | M11: =M12+M13+M14 -> 0 | N11: =N12+N13+N14 -> 0 | O11: 0
F12: 600000 | H12: Tekuća pričuva Vlade | I12: 850000 | J12: 0 | K12: =SUM(I12:J12) -> 850000 | N12: =SUM(L12:M12) -> 0 | O12: 0
F13: 600000 | H13: Tekuća pričuva predsjednika Vlade | I13: 30000 | J13: 0 | K13: 30000 | N13: 0 | O13: 0
F14: 600000 | H14: Tekuća pričuva zamjenika pred. Vlade | I14: 15000 | J14: 0 | K14: 15000 | N14: 0 | O14: 0
F16: 611000 | H16: Plaće i naknade troškova zaposlenih | I16: =SUM(I17:I20) -> 256380 | J16: =SUM(J17:J20) -> 0 | K16: =SUM(K17:K20) -> 256380 | L16: =SUM(L17:L20) -> 0 | M16: =SUM(M17:M20) -> 0 | N16: =SUM(N17:N20) -> 0 | O16: 0
F17: 611100 | H17: Bruto plaće i naknade plaća | I17: 181890 | J17: 0 | K17: =SUM(I17:J17) -> 181890 | N17: =SUM(L17:M17) -> 0 | O17: 0
F18: 611200 | H18: Naknade troškova zaposlenih | I18: 36900 | J18: 0 | K18: 36900 | N18: 0 | O18: 0
F19: 611200 | G19: BA6017 | H19: Naknade troškova zaposlenih - volonteri (14) (10) | I19: 37590 | J19: 0 | K19: 37590 | N19: 0 | O19: 0
F21: 612000 | H21: Doprinosi poslodavca i ostali doprinosi | I21: =I22+I23 -> 19250 | J21: =J22+J23 -> 0 | K21: =K22+K23 -> 19250 | L21: =L22+L23 -> 0 | M21: =M22+M23 -> 0 | N21: =N22+N23 -> 0 | O21: 0
F22: 612100 | H22: Doprinosi poslodavca | I22: 19250 | J22: 0 | K22: =SUM(I22:J22) -> 19250 | N22: =SUM(L22:M22) -> 0 | O22: 0
F24: 613000 | H24: Izdaci za materijal, sitan inv. i usluge | I24: =SUM(I25:I35) -> 327000 | J24: 0 | K24: 327000 | L24: 0 | M24: 0 | N24: 0 | O24: 0
F25: 613100 | H25: Putni troškovi | I25: 9000 | J25: 0 | K25: =SUM(I25:J25) -> 9000 | N25: =SUM(L25:M25) -> 0 | O25: 0
F26: 613200 | H26: Izdaci za energiju | I26: 0 | J26: 0 | K26: 0 | N26: 0
F27: 613300 | H27: Izdaci za komunikaciju i komunalne usluge | I27: 5500 | J27: 0 | K27: 5500 | N27: 0 | O27: 0
F28: 613400 | H28: Nabavka materijala i sitnog inventara | I28: 1500 | J28: 0 | K28: 1500 | N28: 0 | O28: 0
F29: 613500 | H29: Izdaci za usluge prijevoza i goriva | I29: 2000 | J29: 0 | K29: 2000 | N29: 0 | O29: 0
F30: 613600 | H30: Unajmljivanje imovine, opreme i nemat.imovine | I30: 1500 | J30: 0 | K30: 1500 | N30: 0 | O30: 0
F31: 613700 | H31: Izdaci za tekuće održavanje | I31: 5000 | J31: 0 | K31: 5000 | N31: 0 | O31: 0
F32: 613800 | H32: Izdaci osiguranja, bank. usluga i usluga p.p. | I32: 500 | J32: 0 | K32: 500 | N32: 0 | O32: 0
F33: 613900 | H33: Ugovorene i druge posebne usluge | I33: 180000 | J33: 0 | K33: 180000 | N33: 0 | O33: 0
F34: 613900 | G34: BA6017 | H34: Ugovorene i dr. posebne usluge-volonteri (14) (10) | I34: 35000 | J34: 0 | K34: 35000 | N34: 0 | O34: 0
F35: 613900 | G35: BA6021 | H35: Ugovorene i dr. posebne usluge-sufinanc.prijema vježbenika | I35: 87000 | J35: 0 | K35: 87000 | N35: 0 | O35: 0
F37: 614000 | H37: Tekući grantovi i drugi tekući rashodi | I37: =SUM(I38:I44) -> 880000 | J37: 0 | K37: 880000 | L37: 0 | M37: 0 | N37: 0 | O37: 0
F38: 614100 | G38: BA6014 | H38: Grant za Sveučilište u Mostaru | I38: 300000 | J38: 0 | K38: =SUM(I38:J38) -> 300000 | N38: =SUM(L38:M38) -> 0 | O38: 0
F39: 614200 | G39: BA6016 | H39: Grant za sufinanc.nabavke udžbenika učenicima | I39: 290000 | J39: 0 | K39: 290000 | N39: 0 | O39: 0
F40: 614300 | G40: BA6001 | H40: Grant neprofitnim organizacijama i udrugama građana | I40: 70000 | J40: 0 | K40: 70000 | N40: 0 | O40: 0
F41: 614300 | G41: BA6008 | H41: Grant za Crveni križ Županije Posavske | I41: 30000 | J41: 0 | K41: 30000 | N41: 0 | O41: 0
F42: 614300 | G42: BA6007 | H42: Grant za Gospodarsku komoru ŽP | I42: =30000+5000 -> 35000 | J42: 0 | K42: 35000 | N42: 0 | O42: 0
F43: 614300 | G43: BA6018 | H43: Grant za Obrtničku komoru ŽP | I43: 15000 | J43: 0 | K43: 15000 | N43: 0 | O43: 0
F44: 614300 | G44: BA6019 | H44: Grant političkim strankama | I44: 140000 | J44: 0 | K44: 140000 | N44: 0 | O44: =IF(K44=0,"",N44/K44*100) -> 0
F46: 615000 | H46: Kapitalni grantovi | I46: =I47 -> 0 | J46: =J47 -> 300000 | K46: =K47 -> 300000 | L46: =L47 -> 0 | M46: =M47 -> 0 | N46: =N47 -> 0 | O46: 0
F47: 615100 | H47: Kapitalni grant | I47: 0 | J47: 300000 | K47: =SUM(I47:J47) -> 300000 | N47: =SUM(L47:M47) -> 0 | O47: 0
F49: 821000 | H49: Izdaci za nabavku stalnih sredstava | I49: =SUM(I50:I52) -> 30000 | J49: =SUM(J50:J52) -> 80000 | K49: =SUM(K50:K52) -> 110000 | L49: =SUM(L50:L52) -> 0 | M49: =SUM(M50:M52) -> 0 | N49: =SUM(N50:N52) -> 0 | O49: 0
F50: 821200 | H50: Nabavka građevina | I50: 0 | J50: 80000 | K50: =SUM(I50:J50) -> 80000 | N50: =SUM(L50:M50) -> 0 | O50: 0
F51: 821300 | H51: Nabavka opreme | I51: 30000 | J51: 0 | K51: 30000 | N51: 0 | O51: 0
F52: 821500 | H52: Nabavka stalnih sredstava u obliku prava | I52: 0 | J52: 0 | K52: 0 | N52: 0
H54: Ukupan broj zaposlenih: | I54: 7 | K54: 7
H55: Ukupno za potrošačku jedinicu: | I55: =I11+I16+I21+I24+I37+I46+I49 -> 2407630 | J55: 380000 | K55: 2787630 | L55: 0 | M55: 0 | N55: 0 | O55: 0
H56: Ukupno za proračunsku instituciju: | I56: =I57 -> 3097290 | J56: =J57 -> 380000 | K56: 3477290 | L56: 0 | M56: 0 | N56: 0 | O56: 0
H57: Ukupno za ministarstvo (razdjel): | I57: =I55+I86+I117+I148+I182 -> 3097290 | J57: =J55+J86+J117+J148+J182 -> 380000 | K57: 3477290 | L57: 0 | M57: 0 | N57: 0 | O57: 0
L58: =IF(L57>L5,"PROBIJEN LIMIT!!!","") -> 
B60: 11 | C60: 01 | D60: 0003 | E60: 0111 | H60: URED ZA ZAKONODAVSTVO VLADE ŽP
F61: 611000 | H61: Plaće i naknade troškova zaposlenih | I61: =SUM(I62:I65) -> 65900 | J61: 0 | K61: 65900 | L61: 0 | M61: 0 | N61: 0 | O61: 0
F62: 611100 | H62: Bruto plaće i naknade plaća | I62: 56850 | J62: 0 | K62: =SUM(I62:J62) -> 56850 | N62: =SUM(L62:M62) -> 0 | O62: 0
F63: 611200 | H63: Naknade troškova zaposlenih | I63: 9050 | J63: 0 | K63: =SUM(I63:J63) -> 9050 | N63: =SUM(L63:M63) -> 0 | O63: 0
F64: 611200 | H64: Naknade troškova zaposlenih - volonteri () | I64: 0 | J64: 0 | K64: 0 | N64: 0
F66: 612000 | H66: Doprinosi poslodavca i ostali doprinosi | I66: =I67 -> 6000 | J66: 0 | K66: 6000 | L66: 0 | M66: 0 | N66: 0 | O66: 0
F67: 612100 | H67: Doprinosi poslodavca | I67: 6000 | J67: 0 | K67: =SUM(I67:J67) -> 6000 | N67: =SUM(L67:M67) -> 0 | O67: 0
F69: 613000 | H69: Izdaci za materijal, sitan inv. i usluge | I69: =SUM(I70:I79) -> 800 | J69: 0 | K69: 800 | L69: 0 | M69: 0 | N69: 0 | O69: 0
F70: 613100 | H70: Putni troškovi | I70: 300 | J70: 0 | K70: =SUM(I70:J70) -> 300 | N70: =SUM(L70:M70) -> 0 | O70: 0
F71: 613200 | H71: Izdaci za energiju | I71: 0 | J71: 0 | K71: 0 | N71: 0
F72: 613300 | H72: Izdaci za komunikaciju i komunalne usluge | I72: 0 | J72: 0 | K72: 0 | N72: 0
F73: 613400 | H73: Nabavka materijala i sitnog inventara | I73: 0 | J73: 0 | K73: 0 | N73: 0
F74: 613500 | H74: Izdaci za usluge prijevoza i goriva | I74: 0 | J74: 0 | K74: 0 | N74: 0
F75: 613600 | H75: Unajmljivanje imovine, opreme i nemat.imovine | I75: 0 | J75: 0 | K75: 0 | N75: 0
F76: 613700 | H76: Izdaci za tekuće održavanje | I76: 0 | J76: 0 | K76: 0 | N76: 0
F77: 613800 | H77: Izdaci osiguranja, bank. usluga i usluga p.p. | I77: 0 | J77: 0 | K77: 0 | N77: 0
F78: 613900 | H78: Ugovorene i druge posebne usluge | I78: 500 | J78: 0 | K78: 500 | N78: 0 | O78: 0
F79: 613900 | H79: Ugovorene i druge posebne usluge-volonteri () | I79: 0 | J79: 0 | K79: 0 | N79: 0
F81: 821000 | H81: Izdaci za nabavku stalnih sredstava | I81: =SUM(I82:I83) -> 500 | J81: 0 | K81: 500 | L81: 0 | M81: 0 | N81: 0 | O81: 0
F82: 821200 | H82: Nabavka građevina | I82: 0 | J82: 0 | K82: =SUM(I82:J82) -> 0 | N82: =SUM(L82:M82) -> 0
F83: 821300 | H83: Nabavka opreme | I83: 500 | J83: 0 | K83: 500 | N83: 0 | O83: 0
H85: Ukupan broj zaposlenih: | I85: 2 | K85: 2
H86: Ukupno za potrošačku jedinicu: | I86: =I61+I66+I69+I81 -> 73200 | J86: 0 | K86: 73200 | L86: 0 | M86: 0 | N86: 0 | O86: 0
H87: Ukupno za proračunsku instituciju:
H88: Ukupno za ministarstvo (razdjel):
B91: 11 | C91: 01 | D91: 0004 | E91: 0111 | H91: SLUŽBA ZA ODNOSE S JAVNOŠĆU VLADE ŽP
F92: 611000 | H92: Plaće i naknade troškova zaposlenih | I92: =SUM(I93:I96) -> 89740 | J92: 0 | K92: 89740 | L92: 0 | M92: 0 | N92: 0 | O92: 0
F93: 611100 | H93: Bruto plaće i naknade plaća | I93: 77890 | J93: 0 | K93: =SUM(I93:J93) -> 77890 | N93: =SUM(L93:M93) -> 0 | O93: 0
F94: 611200 | H94: Naknade troškova zaposlenih | I94: 11850 | J94: 0 | K94: =SUM(I94:J94) -> 11850 | N94: =SUM(L94:M94) -> 0 | O94: 0
F95: 611200 | H95: Naknade troškova zaposlenih - volonteri () | I95: 0 | J95: 0 | K95: 0 | N95: 0
F97: 612000 | H97: Doprinosi poslodavca i ostali doprinosi | I97: =I98 -> 8250 | J97: 0 | K97: 8250 | L97: 0 | M97: 0 | N97: 0 | O97: 0
F98: 612100 | H98: Doprinosi poslodavca | I98: 8250 | J98: 0 | K98: =SUM(I98:J98) -> 8250 | N98: =SUM(L98:M98) -> 0 | O98: 0
F100: 613000 | H100: Izdaci za materijal, sitan inv. i usluge | I100: =SUM(I101:I110) -> 5500 | J100: 0 | K100: 5500 | L100: 0 | M100: 0 | N100: 0 | O100: 0
F101: 613100 | H101: Putni troškovi | I101: 700 | J101: 0 | K101: =SUM(I101:J101) -> 700 | N101: =SUM(L101:M101) -> 0 | O101: 0
F102: 613200 | H102: Izdaci za energiju | I102: 0 | J102: 0 | K102: 0 | N102: 0
F103: 613300 | H103: Izdaci za komunikaciju i komunalne usluge | I103: 2500 | J103: 0 | K103: 2500 | N103: 0 | O103: 0
F104: 613400 | H104: Nabavka materijala i sitnog inventara | I104: 300 | J104: 0 | K104: 300 | N104: 0 | O104: 0
F105: 613500 | H105: Izdaci za usluge prijevoza i goriva | I105: 0 | J105: 0 | K105: 0 | N105: 0
F106: 613600 | H106: Unajmljivanje imovine, opreme i nemat.imovine | I106: 0 | J106: 0 | K106: 0 | N106: 0
F107: 613700 | H107: Izdaci za tekuće održavanje | I107: 500 | J107: 0 | K107: 500 | N107: 0 | O107: 0
F108: 613800 | H108: Izdaci osiguranja, bank. usluga i usluga p.p. | I108: 0 | J108: 0 | K108: 0 | N108: 0 | O108: =IF(K108=0,"",N108/K108*100) -> 
F109: 613900 | H109: Ugovorene i druge posebne usluge | I109: 1500 | J109: 0 | K109: 1500 | N109: 0 | O109: 0
F110: 613900 | H110: Ugovorene i druge posebne usluge-volonteri () | I110: 0 | J110: 0 | K110: 0 | N110: 0
F112: 821000 | H112: Izdaci za nabavku stalnih sredstava | I112: =SUM(I113:I114) -> 3500 | J112: 0 | K112: 3500 | L112: 0 | M112: 0 | N112: 0 | O112: 0
F113: 821200 | H113: Nabavka građevina | I113: 0 | J113: 0 | K113: =SUM(I113:J113) -> 0 | N113: =SUM(L113:M113) -> 0
F114: 821300 | H114: Nabavka opreme | I114: 3500 | J114: 0 | K114: 3500 | N114: 0 | O114: 0
H116: Ukupan broj zaposlenih: | I116: 3 | K116: 3
H117: Ukupno za potrošačku jedinicu: | I117: =I92+I97+I100+I112 -> 106990 | J117: 0 | K117: 106990 | L117: 0 | M117: 0 | N117: 0 | O117: 0
H118: Ukupno za proračunsku instituciju:
H119: Ukupno za ministarstvo (razdjel):
B122: 11 | C122: 01 | D122: 0005 | E122: 0111 | H122: URED ZA RAZVOJ I EUROPSKE INTEGRACIJE ŽP
F123: 611000 | H123: Plaće i naknade troškova zaposlenih | I123: =SUM(I124:I127) -> 181050 | J123: 0 | K123: 181050 | L123: 0 | M123: 0 | N123: 0 | O123: 0
F124: 611100 | H124: Bruto plaće i naknade plaća | I124: 144840 | J124: 0 | K124: =SUM(I124:J124) -> 144840 | N124: =SUM(L124:M124) -> 0 | O124: 0
F125: 611200 | H125: Naknade troškova zaposlenih | I125: 36210 | J125: 0 | K125: =SUM(I125:J125) -> 36210 | N125: =SUM(L125:M125) -> 0 | O125: 0
F126: 611200 | H126: Naknade troškova zaposlenih - volonteri () | I126: 0 | J126: 0 | K126: 0 | N126: 0
F128: 612000 | H128: Doprinosi poslodavca i ostali doprinosi | I128: =I129 -> 15400 | J128: 0 | K128: 15400 | L128: 0 | M128: 0 | N128: 0 | O128: 0
F129: 612100 | H129: Doprinosi poslodavca | I129: 15400 | J129: 0 | K129: =SUM(I129:J129) -> 15400 | N129: =SUM(L129:M129) -> 0 | O129: 0
F131: 613000 | H131: Izdaci za materijal, sitan inv. i usluge | I131: =SUM(I132:I141) -> 15500 | J131: 0 | K131: 15500 | L131: 0 | M131: 0 | N131: 0 | O131: 0
F132: 613100 | H132: Putni troškovi | I132: 5000 | J132: 0 | K132: =SUM(I132:J132) -> 5000 | N132: =SUM(L132:M132) -> 0 | O132: 0
F133: 613200 | H133: Izdaci za energiju | I133: 0 | J133: 0 | K133: 0 | N133: 0
F134: 613300 | H134: Izdaci za komunikaciju i komunalne usluge | I134: 500 | J134: 0 | K134: 500 | N134: 0 | O134: 0
F135: 613400 | H135: Nabavka materijala i sitnog inventara | I135: 1000 | J135: 0 | K135: 1000 | N135: 0 | O135: 0
F136: 613500 | H136: Izdaci za usluge prijevoza i goriva | I136: 0 | J136: 0 | K136: 0 | N136: 0
F137: 613600 | H137: Unajmljivanje imovine, opreme i nemat.imovine | I137: 0 | J137: 0 | K137: 0 | N137: 0
F138: 613700 | H138: Izdaci za tekuće održavanje | I138: 1000 | J138: 0 | K138: 1000 | N138: 0 | O138: 0
F139: 613800 | H139: Izdaci osiguranja, bank. usluga i usluga p.p. | I139: 0 | J139: 0 | K139: 0 | N139: 0
F140: 613900 | H140: Ugovorene i druge posebne usluge | I140: 8000 | J140: 0 | K140: 8000 | N140: 0 | O140: 0
F141: 613900 | H141: Ugovorene i druge posebne usluge-volonteri () | I141: 0 | J141: 0 | K141: 0 | N141: 0
F143: 821000 | H143: Izdaci za nabavku stalnih sredstava | I143: =SUM(I144:I145) -> 5000 | J143: 0 | K143: 5000 | L143: 0 | M143: 0 | N143: 0 | O143: 0
F144: 821200 | H144: Nabavka građevina | I144: 0 | J144: 0 | K144: =SUM(I144:J144) -> 0 | N144: =SUM(L144:M144) -> 0
F145: 821300 | H145: Nabavka opreme | I145: 5000 | J145: 0 | K145: 5000 | N145: 0 | O145: 0
H147: Ukupan broj zaposlenih: | I147: 7 (8) | K147: 7 (8)
H148: Ukupno za potrošačku jedinicu: | I148: =I123+I128+I131+I143 -> 216950 | J148: 0 | K148: 216950 | L148: 0 | M148: 0 | N148: 0 | O148: 0
H149: Ukupno za proračunsku instituciju:
H150: Ukupno za ministarstvo (razdjel):
B153: 11 | C153: 01 | D153: 0006 | E153: 0111 | H153: URED ZA OBNOVU, STAMB.ZBRINJ.I RAS.OSOBE
F154: 611000 | H154: Plaće i naknade troškova zaposlenih | I154: =SUM(I155:I158) -> 124260 | J154: =SUM(J155:J158) -> 0 | K154: =SUM(K155:K158) -> 124260 | L154: =SUM(L155:L158) -> 0 | M154: =SUM(M155:M158) -> 0 | N154: =SUM(N155:N158) -> 0 | O154: 0
F155: 611100 | H155: Bruto plaće i naknade plaća | I155: 100930 | J155: 0 | K155: =SUM(I155:J155) -> 100930 | N155: =SUM(L155:M155) -> 0 | O155: 0
F156: 611200 | H156: Naknade troškova zaposlenih | I156: 23330 | J156: 0 | K156: =SUM(I156:J156) -> 23330 | N156: =SUM(L156:M156) -> 0 | O156: 0
F157: 611200 | H157: Naknade troškova zaposlenih - volonteri () | I157: 0 | J157: 0 | K157: 0 | N157: 0
F159: 612000 | H159: Doprinosi poslodavca i ostali doprinosi | I159: =I160 -> 10760 | J159: =J160 -> 0 | K159: =K160 -> 10760 | L159: =L160 -> 0 | M159: =M160 -> 0 | N159: =N160 -> 0 | O159: 0
F160: 612100 | H160: Doprinosi poslodavca | I160: 10760 | J160: 0 | K160: =SUM(I160:J160) -> 10760 | N160: =SUM(L160:M160) -> 0 | O160: 0
F162: 613000 | H162: Izdaci za materijal, sitan inv. i usluge | I162: =SUM(I163:I172) -> 5500 | J162: =SUM(J163:J172) -> 0 | K162: =SUM(K163:K172) -> 5500 | L162: =SUM(L163:L172) -> 0 | M162: =SUM(M163:M172) -> 0 | N162: =SUM(N163:N172) -> 0 | O162: 0
F163: 613100 | H163: Putni troškovi | I163: 500 | J163: 0 | K163: =SUM(I163:J163) -> 500 | N163: =SUM(L163:M163) -> 0 | O163: 0
F164: 613200 | H164: Izdaci za energiju | I164: 0 | J164: 0 | K164: 0 | N164: 0
F165: 613300 | H165: Izdaci za komunikaciju i komunalne usluge | I165: 2500 | J165: 0 | K165: 2500 | N165: 0 | O165: 0
F166: 613400 | H166: Nabavka materijala i sitnog inventara | I166: 600 | J166: 0 | K166: 600 | N166: 0 | O166: 0
F167: 613500 | H167: Izdaci za usluge prijevoza i goriva | I167: 0 | J167: 0 | K167: 0 | N167: 0
F168: 613600 | H168: Unajmljivanje imovine, opreme i nemat.imovine | I168: 0 | J168: 0 | K168: 0 | N168: 0
F169: 613700 | H169: Izdaci za tekuće održavanje | I169: 500 | J169: 0 | K169: 500 | N169: 0 | O169: 0
F170: 613800 | H170: Izdaci osiguranja, bank. usluga i usluga p.p. | I170: 0 | J170: 0 | K170: 0 | N170: 0
F171: 613900 | H171: Ugovorene i druge posebne usluge | I171: 1400 | J171: 0 | K171: 1400 | N171: 0 | O171: 0
F172: 613900 | H172: Ugovorene i druge posebne usluge-volonteri () | I172: 0 | J172: 0 | K172: 0 | N172: 0 | O172: =IF(K172=0,"",N172/K172*100) -> 
F174: 614000 | H174: Tekući grantovi i drugi tekući rashodi | I174: =SUM(I175:I175) -> 150000 | J174: 0 | K174: 150000 | L174: 0 | M174: 0 | N174: 0 | O174: 0
F175: 614200 | G175: BA6020 | H175: Grant za pomoć pri stambenom zbrinjavanju mladih obitelji i socijalnih kategorija | I175: 150000 | J175: 0 | K175: =SUM(I175:J175) -> 150000 | N175: =SUM(L175:M175) -> 0 | O175: 0
F177: 821000 | H177: Izdaci za nabavku stalnih sredstava | I177: =SUM(I178:I179) -> 2000 | J177: =SUM(J178:J179) -> 0 | K177: =SUM(K178:K179) -> 2000 | L177: =SUM(L178:L179) -> 0 | M177: =SUM(M178:M179) -> 0 | N177: =SUM(N178:N179) -> 0 | O177: 0
F178: 821200 | H178: Nabavka građevina | I178: 0 | J178: 0 | K178: =SUM(I178:J178) -> 0 | N178: =SUM(L178:M178) -> 0
F179: 821300 | H179: Nabavka opreme | I179: 2000 | J179: 0 | K179: 2000 | N179: 0 | O179: 0
H181: Ukupan broj zaposlenih: | I181: 4 | K181: 4
H182: Ukupno za potrošačku jedinicu: | I182: =I177+I174+I162+I159+I154 -> 292520 | J182: 0 | K182: 292520 | L182: 0 | M182: 0 | N182: 0 | O182: 0
H183: Ukupno za proračunsku instituciju:
H184: Ukupno za ministarstvo (razdjel):

Sheet 12
B1: PRORAČUNSKI ZAHTJEV ZA 2023. GODINU
M2: Datum zahtjeva:
B3: NAZIV RAZDJELA: | F3: ZAJEDNIČKA SLUŽBA VLADE ŽUPANIJE POSAVSKE
B5: RAZDJEL: | D5: 12 | I5: Gornja granica razdjela za stupac 12: | L5: 953000
B7: Ministarstvo (razdjel) | C7: Proračunska institucija | D7: Potrošačka jedinica | E7: Funkcija | F7: Ekon. kod | G7: Subanalitika | H7: OPIS | I7: PRORAČUN za 2022./ Izmjene i dopune | L7: ZAHTJEV za 2023. | O7: INDEKS
I8: iz prorač. sredstava | J8: iz ostalih izvora | K8: UKUPNO | L8: iz prorač. sredstava | M8: iz ostalih izvora | N8: UKUPNO
B9: 1 | C9: 2 | D9: 3 | E9: 4 | F9: 5 | G9: 6 | H9: 7 | I9: 8 | J9: 9 | K9: 10=8+9 | L9: 12 | M9: 13 | N9: 14=12+13 | O9: 15=14/10
B10: 12 | C10: 01 | D10: 0001 | E10: 0133 | H10: ZAJEDNIČKA SLUŽBA VLADE ŽP | O10: =IF(K10=0,"",N10/K10*100) -> 
F11: 611000 | H11: Plaće i naknade troškova zaposlenih | I11: =SUM(I12:I15) -> 404080 | J11: 0 | K11: 404080 | L11: 0 | M11: 0 | N11: 0 | O11: 0
F12: 611100 | H12: Bruto plaće i naknade plaća | I12: 324440 | J12: 0 | K12: =SUM(I12:J12) -> 324440 | N12: =SUM(L12:M12) -> 0 | O12: 0
F13: 611200 | H13: Naknade troškova zaposlenih | I13: 79640 | J13: 0 | K13: =SUM(I13:J13) -> 79640 | N13: =SUM(L13:M13) -> 0 | O13: 0
F14: 611200 | H14: Naknade troškova zaposlenih - volonteri () | I14: 0 | J14: 0 | K14: 0 | N14: 0
F16: 612000 | H16: Doprinosi poslodavca i ostali doprinosi | I16: =I17 -> 34850 | J16: 0 | K16: 34850 | L16: 0 | M16: 0 | N16: 0 | O16: 0
F17: 612100 | H17: Doprinosi poslodavca | I17: 34850 | J17: 0 | K17: =SUM(I17:J17) -> 34850 | N17: =SUM(L17:M17) -> 0 | O17: 0
F19: 613000 | H19: Izdaci za materijal, sitan inv. i usluge | I19: =SUM(I20:I29) -> 438000 | J19: 0 | K19: 438000 | L19: 0 | M19: 0 | N19: 0 | O19: 0
F20: 613100 | H20: Putni troškovi | I20: 5000 | J20: 0 | K20: =SUM(I20:J20) -> 5000 | N20: =SUM(L20:M20) -> 0 | O20: 0
F21: 613200 | H21: Izdaci za energiju | I21: 80000 | J21: 0 | K21: 80000 | N21: 0 | O21: 0
F22: 613300 | H22: Izdaci za komunikaciju i komunalne usluge | I22: 50000 | J22: 0 | K22: 50000 | N22: 0 | O22: 0
F23: 613400 | H23: Nabavka materijala i sitnog inventara | I23: 94000 | J23: 0 | K23: 94000 | N23: 0 | O23: 0
F24: 613500 | H24: Izdaci za usluge prijevoza i goriva | I24: 90000 | J24: 0 | K24: 90000 | N24: 0 | O24: 0
F25: 613600 | H25: Unajmljivanje imovine, opreme i nemat.imovine | I25: 0 | J25: 0 | K25: 0 | N25: 0
F26: 613700 | H26: Izdaci za tekuće održavanje | I26: 40000 | J26: 0 | K26: 40000 | N26: 0 | O26: 0
F27: 613800 | H27: Izdaci osiguranja, bank. usluga i usluga p.p. | I27: 9000 | J27: 0 | K27: 9000 | N27: 0 | O27: 0
F28: 613900 | H28: Ugovorene i druge posebne usluge | I28: 70000 | J28: 0 | K28: 70000 | N28: 0 | O28: 0
F29: 613900 | H29: Ugovorene i druge posebne usluge-volonteri () | I29: 0 | J29: 0 | K29: 0 | N29: 0
F31: 821000 | H31: Izdaci za nabavku stalnih sredstava | I31: =SUM(I32:I33) -> 35000 | J31: 0 | K31: 35000 | L31: 0 | M31: 0 | N31: 0 | O31: 0
F32: 821200 | H32: Nabavka građevina | I32: 0 | J32: 0 | K32: =SUM(I32:J32) -> 0 | N32: =SUM(L32:M32) -> 0
F33: 821300 | H33: Nabavka opreme | I33: 35000 | J33: 0 | K33: 35000 | N33: 0 | O33: 0
H35: Ukupan broj zaposlenih: | I35: 19 | K35: 19
H36: Ukupno za potrošačku jedinicu: | I36: =I11+I16+I19+I31 -> 911930 | J36: 0 | K36: 911930 | L36: 0 | M36: 0 | N36: 0 | O36: 0
H37: Ukupno za proračunsku instituciju: | I37: =I36 -> 911930 | J37: 0 | K37: 911930 | L37: 0 | M37: 0 | N37: 0 | O37: 0
H38: Ukupno za ministarstvo (razdjel): | I38: 911930 | J38: 0 | K38: 911930 | L38: 0 | M38: 0 | N38: 0 | O38: 0
L39: =IF(L38>L5,"PROBIJEN LIMIT!!!","") -> 

Sheet 13
B1: PRORAČUNSKI ZAHTJEV ZA 2023. GODINU
M2: Datum zahtjeva:
B3: NAZIV RAZDJELA: | F3: MINISTARSTVO UNUTARNJIH POSLOVA ŽUPANIJE POSAVSKE
B5: RAZDJEL: | D5: 13 | I5: Gornja granica razdjela za stupac 12: | L5: 8607440
B7: Ministarstvo (razdjel) | C7: Proračunska institucija | D7: Potrošačka jedinica | E7: Funkcija | F7: Ekon. kod | G7: Subanalitika | H7: OPIS | I7: PRORAČUN za 2022./ Izmjene i dopune | L7: ZAHTJEV za 2023. | O7: INDEKS
I8: iz prorač. sredstava | J8: iz ostalih izvora | K8: UKUPNO | L8: iz prorač. sredstava | M8: iz ostalih izvora | N8: UKUPNO
B9: 1 | C9: 2 | D9: 3 | E9: 4 | F9: 5 | G9: 6 | H9: 7 | I9: 8 | J9: 9 | K9: 10=8+9 | L9: 12 | M9: 13 | N9: 14=12+13 | O9: 15=14/10
B10: 13 | C10: 01 | D10: 0001 | E10: 0310 | H10: MINISTARSTVO UNUTARNJIH POSLOVA ŽP | O10: =IF(K10=0,"",N10/K10*100) -> 
F11: 611000 | H11: Plaće i naknade troškova zaposlenih | I11: =SUM(I12:I15) -> 6604350 | J11: 0 | K11: 6604350 | L11: 0 | M11: 0 | N11: 0 | O11: 0
F12: 611100 | H12: Bruto plaće i naknade plaća | I12: 5677200 | J12: 0 | K12: =SUM(I12:J12) -> 5677200 | N12: =SUM(L12:M12) -> 0 | O12: 0
F13: 611200 | H13: Naknade troškova zaposlenih | I13: 927150 | J13: 0 | K13: =SUM(I13:J13) -> 927150 | N13: =SUM(L13:M13) -> 0 | O13: 0
F14: 611200 | H14: Naknade troškova zaposlenih - volonteri () | I14: 0 | J14: 0 | K14: 0 | N14: 0
F16: 612000 | H16: Doprinosi poslodavca i ostali doprinosi | I16: =I17+I18 -> 980620 | J16: =J17+J18 -> 0 | K16: 980620 | L16: 0 | M16: 0 | N16: 0 | O16: 0
F17: 612100 | H17: Doprinosi poslodavca | I17: 880620 | J17: 0 | K17: =SUM(I17:J17) -> 880620 | N17: =SUM(L17:M17) -> 0 | O17: 0
F18: 612100 | G18: DA6001 | H18: Doprinosi za beneficirani radni staž 19996-1998 | I18: 100000 | J18: 0 | K18: =SUM(I18:J18) -> 100000 | N18: =SUM(L18:M18) -> 0 | O18: 0
F20: 613000 | H20: Izdaci za materijal, sitan inv. i usluge | I20: =SUM(I21:I30) -> 999000 | J20: 0 | K20: 999000 | L20: 0 | M20: 0 | N20: 0 | O20: 0
F21: 613100 | H21: Putni troškovi | I21: 12000 | J21: 0 | K21: =SUM(I21:J21) -> 12000 | N21: =SUM(L21:M21) -> 0 | O21: 0
F22: 613200 | H22: Izdaci za energiju | I22: 78000 | J22: 0 | K22: 78000 | N22: 0 | O22: 0
F23: 613300 | H23: Izdaci za komunikaciju i komunalne usluge | I23: 81000 | J23: 0 | K23: 81000 | N23: 0 | O23: 0
F24: 613400 | H24: Nabavka materijala i sitnog inventara | I24: 208000 | J24: 0 | K24: 208000 | N24: 0 | O24: 0
F25: 613500 | H25: Izdaci za usluge prijevoza i goriva | I25: 135000 | J25: 0 | K25: 135000 | N25: 0 | O25: 0
F26: 613600 | H26: Unajmljivanje imovine, opreme i nemat.imovine | I26: 27000 | J26: 0 | K26: 27000 | N26: 0 | O26: 0
F27: 613700 | H27: Izdaci za tekuće održavanje | I27: 95000 | J27: 0 | K27: 95000 | N27: 0 | O27: 0
F28: 613800 | H28: Izdaci osiguranja, bank. usluga i usluga p.p. | I28: 28000 | J28: 0 | K28: 28000 | N28: 0 | O28: =IF(K28=0,"",N28/K28*100) -> 0
F29: 613900 | H29: Ugovorene i druge posebne usluge | I29: 335000 | J29: 0 | K29: 335000 | N29: 0 | O29: 0
F30: 613900 | H30: Ugovorene i druge posebne usluge-volonteri () | I30: 0 | J30: 0 | K30: 0 | N30: 0
F32: 821000 | H32: Izdaci za nabavku stalnih sredstava | I32: =SUM(I33:I34) -> 170000 | J32: 0 | K32: 170000 | L32: 0 | M32: 0 | N32: 0 | O32: 0
F33: 821200 | H33: Nabavka građevina | I33: 100000 | J33: 0 | K33: =SUM(I33:J33) -> 100000 | N33: =SUM(L33:M33) -> 0 | O33: 0
F34: 821300 | H34: Nabavka opreme | I34: 70000 | J34: 0 | K34: 70000 | N34: 0 | O34: 0
H36: Ukupan broj zaposlenih: | I36: 220 (222) | K36: 220 (222)
H37: Ukupno za potrošačku jedinicu: | I37: =I11+I16+I20+I32 -> 8753970 | J37: 0 | K37: 8753970 | L37: 0 | M37: 0 | N37: 0 | O37: 0
H38: Ukupno za proračunsku instituciju: | I38: =I37 -> 8753970 | J38: 0 | K38: 8753970 | L38: 0 | M38: 0 | N38: 0 | O38: 0
H39: Ukupno za ministarstvo (razdjel): | I39: 8753970 | J39: 0 | K39: 8753970 | L39: 0 | M39: 0 | N39: 0 | O39: 0
L40: =IF(L39>L5,"PROBIJEN LIMIT!!!","") -> 

Sheet 14
B1: PRORAČUNSKI ZAHTJEV ZA 2023. GODINU
M2: Datum zahtjeva:
B3: NAZIV RAZDJELA: | F3: MINISTARSTVO PRAVOSUĐA I UPRAVE ŽUPANIJE POSAVSKE
B5: RAZDJEL: | D5: 14 | I5: Gornja granica razdjela za stupac 12: | L5: 2373280
B7: Ministarstvo (razdjel) | C7: Proračunska institucija | D7: Potrošačka jedinica | E7: Funkcija | F7: Ekon. kod | G7: Subanalitika | H7: OPIS | I7: PRORAČUN za 2022./ Izmjene i dopune | L7: ZAHTJEV za 2023. | O7: INDEKS
I8: iz prorač. sredstava | J8: iz ostalih izvora | K8: UKUPNO | L8: iz prorač. sredstava | M8: iz ostalih izvora | N8: UKUPNO
B9: 1 | C9: 2 | D9: 3 | E9: 4 | F9: 5 | G9: 6 | H9: 7 | I9: 8 | J9: 9 | K9: 10=8+9 | L9: 12 | M9: 13 | N9: 14=12+13 | O9: 15=14/10
B10: 14 | C10: 01 | D10: 0001 | E10: 0360 | H10: MINISTARSTVO PRAVOSUĐA I UPRAVE ŽP | O10: =IF(K10=0,"",N10/K10*100) -> 
F11: 611000 | H11: Plaće i naknade troškova zaposlenih | I11: =SUM(I12:I15) -> 179940 | J11: 0 | K11: 179940 | L11: 0 | M11: 0 | N11: 0 | O11: 0
F12: 611100 | H12: Bruto plaće i naknade plaća | I12: 154090 | J12: 0 | K12: =SUM(I12:J12) -> 154090 | N12: =SUM(L12:M12) -> 0 | O12: 0
F13: 611200 | H13: Naknade troškova zaposlenih | I13: 25850 | J13: 0 | K13: =SUM(I13:J13) -> 25850 | N13: =SUM(L13:M13) -> 0 | O13: 0
F14: 611200 | H14: Naknade troškova zaposlenih - volonteri () | I14: 0 | J14: 0 | K14: 0 | N14: 0
F16: 612000 | H16: Doprinosi poslodavca i ostali doprinosi | I16: =I17 -> 16330 | J16: 0 | K16: 16330 | L16: 0 | M16: 0 | N16: 0 | O16: 0
F17: 612100 | H17: Doprinosi poslodavca | I17: 16330 | J17: 0 | K17: =SUM(I17:J17) -> 16330 | N17: =SUM(L17:M17) -> 0 | O17: 0
F19: 613000 | H19: Izdaci za materijal, sitan inv. i usluge | I19: =SUM(I20:I31) -> 161300 | J19: 0 | K19: 161300 | L19: 0 | M19: 0 | N19: 0 | O19: 0
F20: 613100 | H20: Putni troškovi | I20: 4000 | J20: 0 | K20: =SUM(I20:J20) -> 4000 | N20: =SUM(L20:M20) -> 0 | O20: 0
F21: 613200 | H21: Izdaci za energiju | I21: 0 | J21: 0 | K21: 0 | N21: 0
F22: 613300 | H22: Izdaci za komunikaciju i komunalne usluge | I22: 2800 | J22: 0 | K22: 2800 | N22: 0 | O22: 0
F23: 613400 | H23: Nabavka materijala i sitnog inventara | I23: 4000 | J23: 0 | K23: 4000 | N23: 0 | O23: 0
F24: 613500 | H24: Izdaci za usluge prijevoza i goriva | I24: 0 | J24: 0 | K24: 0 | N24: 0
F25: 613600 | H25: Unajmljivanje imovine, opreme i nemat.imovine | I25: 0 | J25: 0 | K25: 0 | N25: 0
F26: 613700 | H26: Izdaci za tekuće održavanje | I26: 1000 | J26: 0 | K26: 1000 | N26: 0 | O26: 0
F27: 613800 | H27: Izdaci osiguranja, bank. usluga i usluga p.p. | I27: 0 | J27: 0 | K27: 0 | N27: 0
F28: 613900 | H28: Ugovorene i druge posebne usluge | I28: 20000 | J28: 0 | K28: 20000 | N28: 0 | O28: 0
F29: 613900 | G29: EA6001 | H29: Povjerenstva po Zakonu o drž.službenicima i namještenic. | I29: 44500 | J29: 0 | K29: 44500 | N29: 0 | O29: 0
F30: 613900 | G30: EA6002 | H30: Ugovorene i dr.pos.usluge - troškovi izvršenja mjere pritvora | I30: 85000 | J30: 0 | K30: 85000 | N30: 0 | O30: 0
F31: 613900 | H31: Ugovorene i druge posebne usluge-volonteri () | I31: 0 | J31: 0 | K31: 0 | N31: 0
F33: 821000 | H33: Izdaci za nabavku stalnih sredstava | I33: =SUM(I34:I35) -> 5000 | J33: 0 | K33: 5000 | L33: 0 | M33: 0 | N33: 0 | O33: 0
F34: 821200 | H34: Nabavka građevina | I34: 0 | J34: 0 | K34: =SUM(I34:J34) -> 0 | N34: =SUM(L34:M34) -> 0
F35: 821300 | H35: Nabavka opreme | I35: 5000 | J35: 0 | K35: 5000 | N35: 0 | O35: 0
H37: Ukupan broj zaposlenih: | I37: 5 (6) | K37: 5 (6)
H38: Ukupno za potrošačku jedinicu: | I38: =I11+I16+I19+I33 -> 362570 | J38: 0 | K38: 362570 | L38: 0 | M38: 0 | N38: 0 | O38: 0
H39: Ukupno za proračunsku instituciju: | I39: =I38 -> 362570 | J39: =J38 -> 0 | K39: 362570 | L39: 0 | M39: 0 | N39: 0 | O39: 0
H40: Ukupno za ministarstvo (razdjel): | I40: =I38+I70+I101+I132+I163+I194 -> 2312070 | J40: =J38+J70+J101+J132+J163+J194 -> 0 | K40: 2312070 | L40: 0 | M40: 0 | N40: 0 | O40: 0
L41: =IF(L40>L5,"PROBIJEN LIMIT!!!","") -> 
B43: 14 | C43: 02 | D43: 0003 | E43: 0330 | H43: OPĆINSKI SUD U ORAŠJU
F44: 611000 | H44: Plaće i naknade troškova zaposlenih | I44: =SUM(I45:I48) -> 1232110 | J44: 0 | K44: 1232110 | L44: 0 | M44: 0 | N44: 0 | O44: 0
F45: 611100 | H45: Bruto plaće i naknade plaća | I45: 1032510 | J45: 0 | K45: =SUM(I45:J45) -> 1032510 | N45: =SUM(L45:M45) -> 0 | O45: 0
F46: 611200 | H46: Naknade troškova zaposlenih | I46: 199600 | J46: 0 | K46: =SUM(I46:J46) -> 199600 | N46: =SUM(L46:M46) -> 0 | O46: 0
F47: 611200 | H47: Naknade troškova zaposlenih - volonteri () | I47: 0 | J47: 0 | K47: 0 | N47: 0
F49: 612000 | H49: Doprinosi poslodavca i ostali doprinosi | I49: =I50 -> 112920 | J49: 0 | K49: 112920 | L49: 0 | M49: 0 | N49: 0 | O49: 0
F50: 612100 | H50: Doprinosi poslodavca | I50: 112920 | J50: 0 | K50: =SUM(I50:J50) -> 112920 | N50: =SUM(L50:M50) -> 0 | O50: 0
F52: 613000 | H52: Izdaci za materijal, sitan inv. i usluge | I52: =SUM(I53:I62) -> 269000 | J52: 0 | K52: 269000 | L52: 0 | M52: 0 | N52: 0 | O52: 0
F53: 613100 | H53: Putni troškovi | I53: 4000 | J53: 0 | K53: =SUM(I53:J53) -> 4000 | N53: =SUM(L53:M53) -> 0 | O53: 0
F54: 613200 | H54: Izdaci za energiju | I54: 18000 | J54: 0 | K54: 18000 | N54: 0 | O54: 0
F55: 613300 | H55: Izdaci za komunikaciju i komunalne usluge | I55: 78000 | J55: 0 | K55: 78000 | N55: 0 | O55: 0
F56: 613400 | H56: Nabavka materijala i sitnog inventara | I56: 25000 | J56: 0 | K56: 25000 | N56: 0 | O56: 0
F57: 613500 | H57: Izdaci za usluge prijevoza i goriva | I57: 14000 | J57: 0 | K57: 14000 | N57: 0 | O57: 0
F58: 613600 | H58: Unajmljivanje imovine, opreme i nemat.imovine | I58: 0 | J58: 0 | K58: 0 | N58: 0
F59: 613700 | H59: Izdaci za tekuće održavanje | I59: 7000 | J59: 0 | K59: 7000 | N59: 0 | O59: 0
F60: 613800 | H60: Izdaci osiguranja, bank. usluga i usluga p.p. | I60: 3000 | J60: 0 | K60: 3000 | N60: 0 | O60: =IF(K60=0,"",N60/K60*100) -> 0
F61: 613900 | H61: Ugovorene i druge posebne usluge | I61: 120000 | J61: 0 | K61: 120000 | N61: 0 | O61: 0
F62: 613900 | H62: Ugovorene i druge posebne usluge-volonteri () | I62: 0 | J62: 0 | K62: 0 | N62: 0
F65: 821000 | H65: Izdaci za nabavku stalnih sredstava | I65: =I66+I67 -> 53000 | J65: 0 | K65: 53000 | L65: 0 | M65: 0 | N65: 0 | O65: 0
F66: 821200 | H66: Nabavka građevina | I66: 5000 | J66: 0 | K66: =SUM(I66:J66) -> 5000 | N66: =SUM(L66:M66) -> 0 | O66: 0
F67: 821300 | H67: Nabavka opreme | I67: 48000 | J67: 0 | K67: 48000 | N67: 0 | O67: 0
H69: Ukupan broj zaposlenih: | I69: 41 | K69: 41
H70: Ukupno za potrošačku jedinicu: | I70: =I44+I49+I52+I65 -> 1667030 | J70: 0 | K70: 1667030 | L70: 0 | M70: 0 | N70: 0 | O70: 0
H71: Ukupno za proračunsku instituciju: | I71: =I70 -> 1667030 | J71: 0 | K71: 1667030 | L71: 0 | M71: 0 | N71: 0 | O71: 0
H72: Ukupno za ministarstvo (razdjel):
B75: 14 | C75: 05 | D75: 0001 | E75: 0330 | H75: OPĆINSKO PRAVOBRANITELJSTVO ORAŠJE
F76: 611000 | H76: Plaće i naknade troškova zaposlenih | I76: =SUM(I77:I80) -> 38740 | J76: 0 | K76: 38740 | L76: 0 | M76: 0 | N76: 0 | O76: 0
F77: 611100 | H77: Bruto plaće i naknade plaća | I77: 34820 | J77: 0 | K77: =SUM(I77:J77) -> 34820 | N77: =SUM(L77:M77) -> 0 | O77: 0
F78: 611200 | H78: Naknade troškova zaposlenih | I78: 3920 | J78: 0 | K78: =SUM(I78:J78) -> 3920 | N78: =SUM(L78:M78) -> 0 | O78: 0
F79: 611200 | H79: Naknade troškova zaposlenih - volonteri () | I79: 0 | J79: 0 | K79: 0 | N79: 0
F81: 612000 | H81: Doprinosi poslodavca i ostali doprinosi | I81: =I82 -> 3700 | J81: 0 | K81: 3700 | L81: 0 | M81: 0 | N81: 0 | O81: 0
F82: 612100 | H82: Doprinosi poslodavca | I82: 3700 | J82: 0 | K82: =SUM(I82:J82) -> 3700 | N82: =SUM(L82:M82) -> 0 | O82: 0
F84: 613000 | H84: Izdaci za materijal, sitan inv. i usluge | I84: =SUM(I85:I94) -> 2900 | J84: 0 | K84: 2900 | L84: 0 | M84: 0 | N84: 0 | O84: 0
F85: 613100 | H85: Putni troškovi | I85: 300 | J85: 0 | K85: =SUM(I85:J85) -> 300 | N85: =SUM(L85:M85) -> 0 | O85: 0
F86: 613200 | H86: Izdaci za energiju | I86: 0 | J86: 0 | K86: 0 | N86: 0
F87: 613300 | H87: Izdaci za komunikaciju i komunalne usluge | I87: 1000 | J87: 0 | K87: 1000 | N87: 0 | O87: 0
F88: 613400 | H88: Nabavka materijala i sitnog inventara | I88: 800 | J88: 0 | K88: 800 | N88: 0 | O88: 0
F89: 613500 | H89: Izdaci za usluge prijevoza i goriva | I89: 0 | J89: 0 | K89: 0 | N89: 0
F90: 613600 | H90: Unajmljivanje imovine, opreme i nemat.imovine | I90: 0 | J90: 0 | K90: 0 | N90: 0
F91: 613700 | H91: Izdaci za tekuće održavanje | I91: 0 | J91: 0 | K91: 0 | N91: 0
F92: 613800 | H92: Izdaci osiguranja, bank. usluga i usluga p.p. | I92: 0 | J92: 0 | K92: 0 | N92: 0
F93: 613900 | H93: Ugovorene i druge posebne usluge | I93: 800 | J93: 0 | K93: 800 | N93: 0 | O93: 0
F94: 613900 | H94: Ugovorene i druge posebne usluge-volonteri () | I94: 0 | J94: 0 | K94: 0 | N94: 0
F96: 821000 | H96: Izdaci za nabavku stalnih sredstava | I96: =SUM(I97:I98) -> 1000 | J96: 0 | K96: =SUM(K97:K98) -> 1000 | L96: =SUM(L97:L98) -> 0 | M96: 0 | N96: =SUM(N97:N98) -> 0 | O96: 0
F97: 821200 | H97: Nabavka građevina | I97: 0 | J97: 0 | K97: =SUM(I97:J97) -> 0 | N97: =SUM(L97:M97) -> 0
F98: 821300 | H98: Nabavka opreme | I98: 1000 | J98: 0 | K98: 1000 | N98: 0 | O98: 0
H100: Ukupan broj zaposlenih: | I100: 1 | K100: 1
H101: Ukupno za potrošačku jedinicu: | I101: =I76+I81+I84+I96 -> 46340 | J101: 0 | K101: 46340 | L101: 0 | M101: 0 | N101: 0 | O101: 0
H102: Ukupno za proračunsku instituciju:
H103: Ukupno za ministarstvo (razdjel):
B106: 14 | C106: 05 | D106: 0002 | E106: 0330 | H106: OPĆINSKO PRAVOBRANITELJSTVO ODŽAK
F107: 611000 | H107: Plaće i naknade troškova zaposlenih | I107: =SUM(I108:I111) -> 85430 | J107: 0 | K107: 85430 | L107: 0 | M107: 0 | N107: 0 | O107: 0
F108: 611100 | H108: Bruto plaće i naknade plaća | I108: 73320 | J108: 0 | K108: =SUM(I108:J108) -> 73320 | N108: =SUM(L108:M108) -> 0 | O108: 0
F109: 611200 | H109: Naknade troškova zaposlenih | I109: 12110 | J109: 0 | K109: =SUM(I109:J109) -> 12110 | N109: =SUM(L109:M109) -> 0 | O109: 0
F110: 611200 | H110: Naknade troškova zaposlenih - volonteri () | J110: 0 | K110: 0 | N110: 0
F112: 612000 | H112: Doprinosi poslodavca i ostali doprinosi | I112: =I113 -> 7770 | J112: 0 | K112: 7770 | L112: 0 | M112: 0 | N112: 0 | O112: 0
F113: 612100 | H113: Doprinosi poslodavca | I113: 7770 | J113: 0 | K113: =SUM(I113:J113) -> 7770 | N113: =SUM(L113:M113) -> 0 | O113: 0
F115: 613000 | H115: Izdaci za materijal, sitan inv. i usluge | I115: =SUM(I116:I125) -> 4300 | J115: 0 | K115: 4300 | L115: 0 | M115: 0 | N115: 0 | O115: 0
F116: 613100 | H116: Putni troškovi | I116: 1000 | J116: 0 | K116: =SUM(I116:J116) -> 1000 | N116: =SUM(L116:M116) -> 0 | O116: 0
F117: 613200 | H117: Izdaci za energiju | I117: 0 | J117: 0 | K117: 0 | N117: 0
F118: 613300 | H118: Izdaci za komunikaciju i komunalne usluge | I118: 1000 | J118: 0 | K118: 1000 | N118: 0 | O118: 0
F119: 613400 | H119: Nabavka materijala i sitnog inventara | I119: 800 | J119: 0 | K119: 800 | N119: 0 | O119: 0
F120: 613500 | H120: Izdaci za usluge prijevoza i goriva | I120: 0 | J120: 0 | K120: 0 | N120: 0
F121: 613600 | H121: Unajmljivanje imovine, opreme i nemat.imovine | I121: 0 | J121: 0 | K121: 0 | N121: 0
F122: 613700 | H122: Izdaci za tekuće održavanje | I122: 500 | J122: 0 | K122: 500 | N122: 0 | O122: 0
F123: 613800 | H123: Izdaci osiguranja, bank. usluga i usluga p.p. | I123: 0 | J123: 0 | K123: 0 | N123: 0
F124: 613900 | H124: Ugovorene i druge posebne usluge | I124: 1000 | J124: 0 | K124: 1000 | N124: 0 | O124: =IF(K124=0,"",N124/K124*100) -> 0
F125: 613900 | H125: Ugovorene i druge posebne usluge-volonteri () | I125: 0 | J125: 0 | K125: 0 | N125: 0
F127: 821000 | H127: Izdaci za nabavku stalnih sredstava | I127: =SUM(I128:I129) -> 3000 | J127: 0 | K127: 3000 | L127: 0 | M127: 0 | N127: 0 | O127: 0
F128: 821200 | H128: Nabavka građevina | I128: 0 | J128: 0 | K128: =SUM(I128:J128) -> 0 | N128: =SUM(L128:M128) -> 0
F129: 821300 | H129: Nabavka opreme | I129: 3000 | J129: 0 | K129: 3000 | N129: 0 | O129: 0
H131: Ukupan broj zaposlenih: | I131: 3 | K131: 3
H132: Ukupno za potrošačku jedinicu: | I132: =I107+I112+I115+I127 -> 100500 | J132: 0 | K132: 100500 | L132: 0 | M132: 0 | N132: 0 | O132: 0
H133: Ukupno za proračunsku instituciju: | I133: =I132+I101 -> 146840 | J133: =J132+J101 -> 0 | K133: 146840 | L133: 0 | M133: 0 | N133: 0 | O133: 0
H134: Ukupno za ministarstvo (razdjel):
B137: 14 | C137: 06 | D137: 0001 | E137: 0330 | H137: ŽUP.ZAVOD ZA PRUŽANJE PRAVNE POMOĆI
F138: 611000 | H138: Plaće i naknade troškova zaposlenih | I138: =SUM(I139:I142) -> 100950 | J138: 0 | K138: 100950 | L138: 0 | M138: 0 | N138: 0 | O138: 0
F139: 611100 | H139: Bruto plaće i naknade plaća | I139: 88390 | J139: 0 | K139: =SUM(I139:J139) -> 88390 | N139: =SUM(L139:M139) -> 0 | O139: 0
F140: 611200 | H140: Naknade troškova zaposlenih | I140: 12560 | J140: 0 | K140: =SUM(I140:J140) -> 12560 | N140: =SUM(L140:M140) -> 0 | O140: 0
F141: 611200 | H141: Naknade troškova zaposlenih - volonteri () | I141: 0 | J141: 0 | K141: 0 | N141: 0
F143: 612000 | H143: Doprinosi poslodavca i ostali doprinosi | I143: =I144 -> 9530 | J143: 0 | K143: 9530 | L143: 0 | M143: 0 | N143: 0 | O143: 0
F144: 612100 | H144: Doprinosi poslodavca | I144: 9530 | J144: 0 | K144: =SUM(I144:J144) -> 9530 | N144: =SUM(L144:M144) -> 0 | O144: 0
F146: 613000 | H146: Izdaci za materijal, sitan inv. i usluge | I146: =SUM(I147:I156) -> 4750 | J146: 0 | K146: 4750 | L146: 0 | M146: 0 | N146: 0 | O146: 0
F147: 613100 | H147: Putni troškovi | I147: 900 | J147: 0 | K147: =SUM(I147:J147) -> 900 | N147: =SUM(L147:M147) -> 0 | O147: 0
F148: 613200 | H148: Izdaci za energiju | I148: 0 | J148: 0 | K148: 0 | N148: 0
F149: 613300 | H149: Izdaci za komunikaciju i komunalne usluge | I149: 1700 | J149: 0 | K149: 1700 | N149: 0 | O149: 0
F150: 613400 | H150: Nabavka materijala i sitnog inventara | I150: 600 | J150: 0 | K150: 600 | N150: 0 | O150: 0
F151: 613500 | H151: Izdaci za usluge prijevoza i goriva | I151: 0 | J151: 0 | K151: 0 | N151: 0
F152: 613600 | H152: Unajmljivanje imovine, opreme i nemat.imovine | I152: 0 | J152: 0 | K152: 0 | N152: 0
F153: 613700 | H153: Izdaci za tekuće održavanje | I153: 350 | J153: 0 | K153: 350 | N153: 0 | O153: 0
F154: 613800 | H154: Izdaci osiguranja, bank. usluga i usluga p.p. | I154: 0 | J154: 0 | K154: 0 | N154: 0
F155: 613900 | H155: Ugovorene i druge posebne usluge | I155: 1200 | J155: 0 | K155: 1200 | N155: 0 | O155: 0
F156: 613900 | H156: Ugovorene i druge posebne usluge-volonteri () | I156: 0 | J156: 0 | K156: 0 | N156: 0
F158: 821000 | H158: Izdaci za nabavku stalnih sredstava | I158: =I159+I160 -> 0 | J158: 0 | K158: 0 | L158: 0 | M158: 0 | N158: 0
F159: 821200 | H159: Nabavka građevina | I159: 0 | J159: 0 | K159: =SUM(I159:J159) -> 0 | N159: =SUM(L159:M159) -> 0
F160: 821300 | H160: Nabavka opreme | I160: 0 | J160: 0 | K160: 0 | N160: 0
H162: Ukupan broj zaposlenih: | I162: 4 | K162: 4
H163: Ukupno za potrošačku jedinicu: | I163: =I138+I143+I146+I158 -> 115230 | J163: 0 | K163: 115230 | L163: 0 | M163: 0 | N163: 0 | O163: 0
H164: Ukupno za proračunsku instituciju: | I164: =I163 -> 115230 | J164: 0 | K164: 115230 | L164: 0 | M164: 0 | N164: 0 | O164: 0
H165: Ukupno za ministarstvo (razdjel):
B168: 14 | C168: 07 | D168: 0001 | E168: 0130 | H168: ŽUPANIJSKI ARHIV
F169: 611000 | H169: Plaće i naknade troškova zaposlenih | I169: =SUM(I170:I173) -> 14200 | J169: 0 | K169: 14200 | L169: 0 | M169: 0 | N169: 0 | O169: 0
F170: 611100 | H170: Bruto plaće i naknade plaća | I170: 11500 | J170: 0 | K170: =SUM(I170:J170) -> 11500 | N170: =SUM(L170:M170) -> 0 | O170: 0
F171: 611200 | H171: Naknade troškova zaposlenih | I171: 2700 | J171: 0 | K171: =SUM(I171:J171) -> 2700 | N171: =SUM(L171:M171) -> 0 | O171: 0
F172: 611200 | H172: Naknade troškova zaposlenih - volonteri () | I172: 0 | J172: 0 | K172: 0 | N172: 0
F174: 612000 | H174: Doprinosi poslodavca i ostali doprinosi | I174: =I175 -> 1300 | J174: 0 | K174: 1300 | L174: 0 | M174: 0 | N174: 0 | O174: 0
F175: 612100 | H175: Doprinosi poslodavca | I175: 1300 | J175: 0 | K175: =SUM(I175:J175) -> 1300 | N175: =SUM(L175:M175) -> 0 | O175: 0
F177: 613000 | H177: Izdaci za materijal, sitan inv. i usluge | I177: =SUM(I178:I187) -> 1900 | J177: 0 | K177: 1900 | L177: 0 | M177: 0 | N177: 0 | O177: 0
F178: 613100 | H178: Putni troškovi | I178: 400 | J178: 0 | K178: =SUM(I178:J178) -> 400 | N178: =SUM(L178:M178) -> 0 | O178: 0
F179: 613200 | H179: Izdaci za energiju | I179: 0 | J179: 0 | K179: 0 | N179: 0
F180: 613300 | H180: Izdaci za komunikaciju i komunalne usluge | I180: 0 | J180: 0 | K180: 0 | N180: 0
F181: 613400 | H181: Nabavka materijala i sitnog inventara | I181: 0 | J181: 0 | K181: 0 | N181: 0
F182: 613500 | H182: Izdaci za usluge prijevoza i goriva | I182: 0 | J182: 0 | K182: 0 | N182: 0
F183: 613600 | H183: Unajmljivanje imovine, opreme i nemat.imovine | I183: 0 | J183: 0 | K183: 0 | N183: 0
F184: 613700 | H184: Izdaci za tekuće održavanje | I184: 0 | J184: 0 | K184: 0 | N184: 0
F185: 613800 | H185: Izdaci osiguranja, bank. usluga i usluga p.p. | I185: 0 | J185: 0 | K185: 0 | N185: 0
F186: 613900 | H186: Ugovorene i druge posebne usluge | I186: 1500 | J186: 0 | K186: 1500 | N186: 0 | O186: 0
F187: 613900 | H187: Ugovorene i druge posebne usluge-volonteri () | I187: 0 | J187: 0 | K187: 0 | N187: 0
O188: =IF(K188=0,"",N188/K188*100) -> 
F189: 821000 | H189: Izdaci za nabavku stalnih sredstava | I189: =I190+I191 -> 3000 | J189: 0 | K189: 3000 | L189: 0 | M189: 0 | N189: 0 | O189: 0
F190: 821200 | H190: Nabavka građevina | I190: 0 | J190: 0 | K190: =SUM(I190:J190) -> 0 | N190: =SUM(L190:M190) -> 0
F191: 821300 | H191: Nabavka opreme | I191: 3000 | J191: 0 | K191: 3000 | N191: 0 | O191: 0
H193: Ukupan broj zaposlenih: | I193: 1 | K193: 1
H194: Ukupno za potrošačku jedinicu: | I194: =I169+I174+I177+I189 -> 20400 | J194: 0 | K194: 20400 | L194: 0 | M194: 0 | N194: 0 | O194: 0
H195: Ukupno za proračunsku instituciju: | I195: =I194 -> 20400 | J195: 0 | K195: 20400 | L195: 0 | M195: 0 | N195: 0 | O195: 0
H196: Ukupno za ministarstvo (razdjel):

Sheet 15
B1: PRORAČUNSKI ZAHTJEV ZA 2023. GODINU
M2: Datum zahtjeva:
B3: NAZIV RAZDJELA: | F3: MINISTARSTVO GOSPODARSTVA, RADA I PROSTORNOG UREĐENJA ŽUPANIJE POSAVSKE
B5: RAZDJEL: | D5: 15 | I5: Gornja granica razdjela za stupac 12: | L5: 1367960
B7: Ministarstvo (razdjel) | C7: Proračunska institucija | D7: Potrošačka jedinica | E7: Funkcija | F7: Ekon. kod | G7: Subanalitika | H7: OPIS | I7: PRORAČUN za 2022./ Izmjene i dopune | L7: ZAHTJEV za 2023. | O7: INDEKS
I8: iz prorač. sredstava | J8: iz ostalih izvora | K8: UKUPNO | L8: iz prorač. sredstava | M8: iz ostalih izvora | N8: UKUPNO
B9: 1 | C9: 2 | D9: 3 | E9: 4 | F9: 5 | G9: 6 | H9: 7 | I9: 8 | J9: 9 | K9: 10=8+9 | L9: 12 | M9: 13 | N9: 14=12+13 | O9: 15=14/10
B10: 15 | C10: 01 | D10: 0001 | E10: 0490 | H10: MINIST.GOSPODARSTVA, RADA I PROST.UREĐENJA | O10: =IF(K10=0,"",N10/K10*100) -> 
F11: 611000 | H11: Plaće i naknade troškova zaposlenih | I11: =SUM(I12:I14) -> 299740 | J11: 0 | K11: 299740 | L11: 0 | M11: 0 | N11: 0 | O11: 0
F12: 611100 | H12: Bruto plaće i naknade plaća | I12: 252090 | J12: 0 | K12: =SUM(I12:J12) -> 252090 | N12: =SUM(L12:M12) -> 0 | O12: 0
F13: 611200 | H13: Naknade troškova zaposlenih | I13: 47650 | J13: 0 | K13: =SUM(I13:J13) -> 47650 | N13: =SUM(L13:M13) -> 0 | O13: 0
F14: 611200 | H14: Naknade troškova zaposlenih - volonteri () | I14: 0 | J14: 0 | K14: 0 | N14: 0
F16: 612000 | H16: Doprinosi poslodavca i ostali doprinosi | I16: =I17 -> 27060 | J16: 0 | K16: 27060 | L16: 0 | M16: 0 | N16: 0 | O16: 0
F17: 612100 | H17: Doprinosi poslodavca | I17: 27060 | J17: 0 | K17: =SUM(I17:J17) -> 27060 | N17: =SUM(L17:M17) -> 0 | O17: 0
F19: 613000 | H19: Izdaci za materijal, sitan inv. i usluge | I19: =SUM(I20:I30) -> 55685 | J19: 4865 | K19: 60550 | L19: 0 | M19: 0 | N19: 0 | O19: 0
F20: 613100 | H20: Putni troškovi | I20: 4100 | J20: 0 | K20: =SUM(I20:J20) -> 4100 | N20: =SUM(L20:M20) -> 0 | O20: 0
F21: 613200 | H21: Izdaci za energiju | I21: 0 | J21: 0 | K21: 0 | N21: 0
F22: 613300 | H22: Izdaci za komunikaciju i komunalne usluge | I22: 3250 | J22: 0 | K22: 3250 | N22: 0 | O22: 0
F23: 613400 | H23: Nabavka materijala i sitnog inventara | I23: 100 | J23: 0 | K23: 100 | N23: 0 | O23: 0
F24: 613500 | H24: Izdaci za usluge prijevoza i goriva | I24: 0 | J24: 0 | K24: 0 | N24: 0
F25: 613600 | H25: Unajmljivanje imovine, opreme i nemat.imovine | I25: 0 | J25: 0 | K25: 0 | N25: 0
F26: 613700 | H26: Izdaci za tekuće održavanje | I26: 100 | J26: 0 | K26: 100 | N26: 0 | O26: 0
F27: 613800 | H27: Izdaci osiguranja, bank. usluga i usluga p.p. | I27: 0 | J27: 0 | K27: 0 | N27: 0
F28: 613900 | H28: Ugovorene i druge posebne usluge | I28: 22900 | J28: 0 | K28: 22900 | N28: 0 | O28: 0
F29: 613900 | H29: Ugovorene i druge posebne usluge-volonteri () | I29: 0 | J29: 0 | K29: 0 | N29: 0
F30: 613900 | G30: FA6002 | H30: Ugovorene i druge posebne usluge-prostorni plan | I30: 25235 | J30: 4865 | K30: 30100 | N30: 0 | O30: 0
F32: 614000 | H32: Tekući grantovi i drugi tekući rashodi | I32: =SUM(I33:I34) -> 350000 | J32: 900000 | K32: 1250000 | L32: 0 | M32: 0 | N32: 0 | O32: 0
F33: 614100 | G33: FA6003 | H33: Grant za razvoj turizma | I33: 50000 | J33: 0 | K33: =SUM(I33:J33) -> 50000 | N33: =SUM(L33:M33) -> 0 | O33: 0
F34: 614500 | G34: FA6001 | H34: Grant za razvoj poduzetništva, obrta i zadruga | I34: 300000 | J34: 900000 | K34: =SUM(I34:J34) -> 1200000 | N34: =SUM(L34:M34) -> 0 | O34: 0
F36: 615000 | H36: Kapitalni grantovi | I36: =I37+I38 -> 100000 | J36: =J37+J38 -> 1000000 | K36: 1100000 | L36: 0 | M36: 0 | N36: 0 | O36: 0
F37: 615100 | G37: FA6005 | H37: Kapitalni grant jedinicama lokalne samouprave za razvoj poduzetničke infratsrukture | I37: 0 | J37: 400000 | K37: =SUM(I37:J37) -> 400000 | N37: =SUM(L37:M37) -> 0 | O37: 0
F38: 615500 | G38: FA6004 | H38: Kapitalni grant za razvoj poduzetništva, obrta i zadruga | I38: 100000 | J38: 600000 | K38: =SUM(I38:J38) -> 700000 | N38: =SUM(L38:M38) -> 0 | O38: 0
F40: 821000 | H40: Izdaci za nabavku stalnih sredstava | I40: =SUM(I41:I42) -> 4000 | J40: 0 | K40: 4000 | L40: 0 | M40: 0 | N40: 0 | O40: 0
F41: 821200 | H41: Nabavka građevina | I41: 0 | J41: 0 | K41: =SUM(I41:J41) -> 0 | N41: =SUM(L41:M41) -> 0
F42: 821300 | H42: Nabavka opreme | I42: 4000 | J42: 0 | K42: 4000 | N42: 0 | O42: 0
H44: Ukupan broj zaposlenih: | I44: 10 (11) | K44: 10 (11)
H45: Ukupno za potrošačku jedinicu: | I45: =I11+I16+I19+I32+I36+I40 -> 836485 | J45: 1904865 | K45: 2741350 | L45: 0 | M45: 0 | N45: 0 | O45: 0
H46: Ukupno za proračunsku instituciju: | I46: =I45 -> 836485 | J46: 1904865 | K46: 2741350 | L46: 0 | M46: 0 | N46: 0 | O46: 0
H47: Ukupno za ministarstvo (razdjel): | I47: 836485 | J47: 1904865 | K47: 2741350 | L47: 0 | M47: 0 | N47: 0 | O47: 0
L48: =IF(L47>L5,"PROBIJEN LIMIT!!!","") -> 

Sheet 16
B1: PRORAČUNSKI ZAHTJEV ZA 2023. GODINU
M2: Datum zahtjeva:
B3: NAZIV RAZDJELA: | F3: MINISTARSTVO FINANCIJA ŽUPANIJE POSAVSKE
B5: RAZDJEL: | D5: 16 | I5: Gornja granica razdjela za stupac 12: | L5: 2108210
B7: Ministarstvo (razdjel) | C7: Proračunska institucija | D7: Potrošačka jedinica | E7: Funkcija | F7: Ekon. kod | G7: Subanalitika | H7: OPIS | I7: PRORAČUN za 2022./ Izmjene i dopune | L7: ZAHTJEV za 2023. | O7: INDEKS
I8: iz prorač. sredstava | J8: iz ostalih izvora | K8: UKUPNO | L8: iz prorač. sredstava | M8: iz ostalih izvora | N8: UKUPNO
B9: 1 | C9: 2 | D9: 3 | E9: 4 | F9: 5 | G9: 6 | H9: 7 | I9: 8 | J9: 9 | K9: 10=8+9 | L9: 12 | M9: 13 | N9: 14=12+13 | O9: 15=14/10
B10: 16 | C10: 01 | D10: 0001 | E10: 0112 | H10: MINISTARSTVO FINANCIJA ŽP | O10: =IF(K10=0,"",N10/K10*100) -> 
F11: 600000 | H11: Rashodi - Tekuća pričuva | I11: =I12 -> 15000 | J11: 0 | K11: 15000 | L11: 0 | M11: 0 | N11: 0 | O11: 0
F12: 600000 | H12: Tekuća pričuva ministra financija | I12: 15000 | J12: 0 | K12: =SUM(I12:J12) -> 15000 | M12: 0 | N12: =SUM(L12:M12) -> 0 | O12: 0
F14: 611000 | H14: Plaće i naknade troškova zaposlenih | I14: =SUM(I15:I17) -> 474390 | J14: 0 | K14: 474390 | L14: 0 | M14: 0 | N14: 0 | O14: 0
F15: 611100 | H15: Bruto plaće i naknade plaća | I15: 403430 | J15: 0 | K15: =SUM(I15:J15) -> 403430 | M15: 0 | N15: =SUM(L15:M15) -> 0 | O15: 0
F16: 611200 | H16: Naknade troškova zaposlenih | I16: 70960 | J16: 0 | K16: 70960 | M16: 0 | N16: 0 | O16: 0
F17: 611200 | H17: Naknade troškova zaposlenih - volonteri () | I17: 0 | J17: 0 | K17: 0 | L17: 0 | M17: 0 | N17: 0
F19: 612000 | H19: Doprinosi poslodavca i ostali doprinosi | I19: =I20+I21 -> 43330 | J19: 0 | K19: 43330 | L19: 0 | M19: 0 | N19: 0 | O19: 0
F20: 612100 | H20: Doprinosi poslodavca | I20: 43330 | J20: 0 | K20: =SUM(I20:J20) -> 43330 | M20: 0 | N20: =SUM(L20:M20) -> 0 | O20: 0
F22: 613000 | H22: Izdaci za materijal, sitan inv. i usluge | I22: =SUM(I23:I33) -> 300380 | J22: 0 | K22: 300380 | L22: 0 | M22: 0 | N22: 0 | O22: 0
F23: 613100 | H23: Putni troškovi | I23: 7200 | J23: 0 | K23: =SUM(I23:J23) -> 7200 | N23: =SUM(L23:M23) -> 0 | O23: =IF(K23=0,"",N23/K23*100) -> 0
F24: 613200 | H24: Izdaci za energiju | I24: 0 | J24: 0 | K24: 0 | N24: 0
F25: 613300 | H25: Izdaci za komunikaciju i komunalne usluge | I25: 9600 | J25: 0 | K25: 9600 | N25: 0 | O25: 0
F26: 613400 | H26: Nabavka materijala i sitnog inventara | I26: 2100 | J26: 0 | K26: 2100 | N26: 0 | O26: 0
F27: 613500 | H27: Izdaci za usluge prijevoza i goriva | I27: 0 | J27: 0 | K27: 0 | N27: 0
F28: 613600 | H28: Unajmljivanje imovine, opreme i nemat.imovine | I28: 0 | J28: 0 | K28: 0 | N28: 0
F29: 613700 | H29: Izdaci za tekuće održavanje | I29: 1300 | J29: 0 | K29: 1300 | N29: 0 | O29: 0
F30: 613800 | H30: Izdaci osiguranja, bank. usluga i usluga p.p. | I30: 25240 | J30: 0 | K30: 25240 | N30: 0 | O30: 0
F31: 613900 | H31: Ugovorene i druge posebne usluge | I31: 20400 | J31: 0 | K31: 20400 | N31: 0 | O31: 0
F32: 613900 | G32: GA6003 | H32: Potpora riznici | I32: 234540 | J32: 0 | K32: 234540 | N32: 0 | O32: 0
F33: 613900 | H33: Ugovorene i druge posebne usluge-volonteri () | I33: 0 | J33: 0 | K33: 0 | N33: 0
F35: 614000 | H35: Tekući grantovi i drugi tekući rashodi | I35: =SUM(I36:I38) -> 1190000 | J35: 300000 | K35: 1490000 | L35: 0 | M35: 0 | N35: 0 | O35: 0
F36: 614100 | G36: GA6002 | H36: Grant nižim razinama vlasti | I36: 1000000 | J36: 300000 | K36: =SUM(I36:J36) -> 1300000 | N36: =SUM(L36:M36) -> 0 | O36: 0
F37: 614800 | G37: GA6005 | H37: Ostali grantovi-povrat i drugo | I37: 170000 | J37: 0 | K37: 170000 | N37: 0 | O37: 0
F38: 614800 | G38: GA6006 | H38: Ostali grantovi-izvršenje sudskih presuda i rješenja o izvršenju | I38: 20000 | J38: 0 | K38: 20000 | N38: 0 | O38: 0
F40: 616000 | H40: Izdaci za kamate | I40: =SUM(I41:I42) -> 30430 | J40: 0 | K40: 30430 | L40: 0 | M40: 0 | N40: 0 | O40: 0
F41: 616200 | G41: GA6008 | H41: Izdaci za inozemne kamate-Koreja | I41: 17900 | J41: 0 | K41: =SUM(I41:J41) -> 17900 | N41: =SUM(L41:M41) -> 0 | O41: 0
F42: 616200 | G42: GA6009 | H42: Izdaci za inozemne kamate-Austrija | I42: 12530 | J42: 0 | K42: 12530 | N42: 0 | O42: 0
F44: 821000 | H44: Izdaci za nabavku stalnih sredstava | I44: =SUM(I45:I46) -> 20000 | J44: 0 | K44: 20000 | L44: 0 | M44: 0 | N44: 0 | O44: 0
F45: 821200 | H45: Nabavka građevina | I45: 0 | J45: 0 | K45: =SUM(I45:J45) -> 0 | N45: =SUM(L45:M45) -> 0
F46: 821300 | H46: Nabavka opreme | I46: 20000 | J46: 0 | K46: 20000 | N46: 0 | O46: 0
F48: 823000 | H48: Izdaci za otplate dugova | I48: =SUM(I49:I50) -> 518890 | J48: 0 | K48: 518890 | L48: 0 | M48: 0 | N48: 0 | O48: 0
F49: 823200 | G49: GA6008 | H49: Vanjske otplate-Koreja | I49: 88600 | J49: 0 | K49: =SUM(I49:J49) -> 88600 | N49: =SUM(L49:M49) -> 0 | O49: 0
F50: 823200 | G50: GA6009 | H50: Vanjske otplate-Austrija | I50: 430290 | J50: 0 | K50: 430290 | N50: 0 | O50: 0
H52: Ukupan broj zaposlenih: | I52: 17 | K52: 17
H53: Ukupno za potrošačku jedinicu: | I53: =I11+I14+I19+I22+I35+I40+I44+I48 -> 2592420 | J53: 300000 | K53: 2892420 | L53: 0 | M53: 0 | N53: 0 | O53: 0
H54: Ukupno za proračunsku instituciju: | I54: =I53 -> 2592420 | J54: 300000 | K54: 2892420 | L54: 0 | M54: 0 | N54: 0 | O54: 0
H55: Ukupno za ministarstvo (razdjel): | I55: 2592420 | J55: 300000 | K55: 2892420 | L55: 0 | M55: 0 | N55: 0 | O55: 0
L56: =IF(L55>L5,"PROBIJEN LIMIT!!!","") -> 

Sheet 17
B1: PRORAČUNSKI ZAHTJEV ZA 2023. GODINU
M2: Datum zahtjeva:
B3: NAZIV RAZDJELA: | F3: MINISTARSTVO ZDRAVSTVA I SOCIJALNE POLITIKE ŽUPANIJE POSAVSKE
B5: RAZDJEL: | D5: 17 | I5: Gornja granica razdjela za stupac 12: | L5: 4778860
B7: Ministarstvo (razdjel) | C7: Proračunska institucija | D7: Potrošačka jedinica | E7: Funkcija | F7: Ekon. kod | G7: Subanalitika | H7: OPIS | I7: PRORAČUN za 2022./ Izmjene i dopune | L7: ZAHTJEV za 2023. | O7: INDEKS
I8: iz prorač. sredstava | J8: iz ostalih izvora | K8: UKUPNO | L8: iz prorač. sredstava | M8: iz ostalih izvora | N8: UKUPNO
B9: 1 | C9: 2 | D9: 3 | E9: 4 | F9: 5 | G9: 6 | H9: 7 | I9: 8 | J9: 9 | K9: 10=8+9 | L9: 12 | M9: 13 | N9: 14=12+13 | O9: 15=14/10
B10: 17 | C10: 01 | D10: 0001 | E10: 1090 | H10: MINISTARSTVO ZDRAVSTVA I SOC.POLITIKE ŽP | O10: =IF(K10=0,"",N10/K10*100) -> 
F11: 611000 | H11: Plaće i naknade troškova zaposlenih | I11: =SUM(I12:I15) -> 322270 | J11: 0 | K11: 322270 | L11: 0 | M11: 0 | N11: 0 | O11: 0
F12: 611100 | H12: Bruto plaće i naknade plaća | I12: 279750 | J12: 0 | K12: =SUM(I12:J12) -> 279750 | N12: =SUM(L12:M12) -> 0 | O12: 0
F13: 611200 | H13: Naknade troškova zaposlenih | I13: 42520 | J13: 0 | K13: =SUM(I13:J13) -> 42520 | N13: =SUM(L13:M13) -> 0 | O13: 0
F14: 611200 | H14: Naknade troškova zaposlenih - volonteri () | I14: 0 | J14: 0 | K14: 0 | N14: 0
F16: 612000 | H16: Doprinosi poslodavca i ostali doprinosi | I16: =I17 -> 29650 | J16: 0 | K16: 29650 | L16: 0 | M16: 0 | N16: 0 | O16: 0
F17: 612100 | H17: Doprinosi poslodavca | I17: 29650 | J17: 0 | K17: =SUM(I17:J17) -> 29650 | N17: =SUM(L17:M17) -> 0 | O17: 0
F19: 613000 | H19: Izdaci za materijal, sitan inv. i usluge | I19: =SUM(I20:I29) -> 89500 | J19: 0 | K19: 89500 | L19: 0 | M19: 0 | N19: 0 | O19: 0
F20: 613100 | H20: Putni troškovi | I20: 2000 | J20: 0 | K20: =SUM(I20:J20) -> 2000 | N20: =SUM(L20:M20) -> 0 | O20: 0
F21: 613200 | H21: Izdaci za energiju | I21: 0 | J21: 0 | K21: 0 | N21: 0
F22: 613300 | H22: Izdaci za komunikaciju i komunalne usluge | I22: 16500 | J22: 0 | K22: 16500 | N22: 0 | O22: 0
F23: 613400 | H23: Nabavka materijala i sitnog inventara | I23: 1000 | J23: 0 | K23: 1000 | N23: 0 | O23: 0
F24: 613500 | H24: Izdaci za usluge prijevoza i goriva | I24: 0 | J24: 0 | K24: 0 | N24: 0
F25: 613600 | H25: Unajmljivanje imovine, opreme i nemat.imovine | I25: 0 | J25: 0 | K25: 0 | N25: 0
F26: 613700 | H26: Izdaci za tekuće održavanje | I26: 1000 | J26: 0 | K26: 1000 | N26: 0 | O26: 0
F27: 613800 | H27: Izdaci osiguranja, bank. usluga i usluga p.p. | I27: 0 | J27: 0 | K27: 0 | N27: 0
F28: 613900 | H28: Ugovorene i druge posebne usluge | I28: 69000 | J28: 0 | K28: 69000 | N28: 0 | O28: 0
F29: 613900 | H29: Ugovorene i druge posebne usluge-volonteri () | I29: 0 | J29: 0 | K29: 0 | N29: 0
F31: 614000 | H31: Tekući grantovi i drugi tekući rashodi | I31: =SUM(I32:I35) -> 3708680 | J31: 1726320 | K31: 5435000 | L31: 0 | M31: 0 | N31: 0 | O31: 0
F32: 614100 | H32: Grant za zdravstvene institucije i centre za soc.rad | I32: 0 | J32: 1500000 | K32: =SUM(I32:J32) -> 1500000 | N32: =SUM(L32:M32) -> 0 | O32: 0
F33: 614200 | G33: HA6003 | H33: Grant za zdravstvene potrebe | I33: 65000 | J33: 0 | K33: 65000 | N33: 0 | O33: 0
F34: 614200 | G34: HA6004 | H34: Grant za socijalne potrebe | I34: 3543680 | J34: 226320 | K34: 3770000 | N34: 0 | O34: 0
F35: 614300 | G35: HA6005 | H35: Grant za udruge roditelja djece s posebnim potrebama | I35: 100000 | J35: 0 | K35: 100000 | N35: 0 | O35: 0
F37: 821000 | H37: Izdaci za nabavku stalnih sredstava | I37: =I38+I39 -> 3400 | J37: 0 | K37: 3400 | L37: 0 | M37: 0 | N37: 0 | O37: 0
F38: 821200 | H38: Nabavka građevina | I38: 0 | J38: 0 | K38: =SUM(I38:J38) -> 0 | N38: =SUM(L38:M38) -> 0
F39: 821300 | H39: Nabavka opreme | I39: 3400 | J39: 0 | K39: 3400 | N39: 0 | O39: =IF(K39=0,"",N39/K39*100) -> 0
H41: Ukupan broj zaposlenih: | I41: 10 (11) | K41: 10 (11)
H42: Ukupno za potrošačku jedinicu: | I42: =I11+I16+I19+I31+I37 -> 4153500 | J42: 1726320 | K42: 5879820 | L42: 0 | M42: 0 | N42: 0 | O42: 0
H43: Ukupno za proračunsku instituciju: | I43: =I42 -> 4153500 | J43: 1726320 | K43: 5879820 | L43: 0 | M43: 0 | N43: 0 | O43: 0
H44: Ukupno za ministarstvo (razdjel): | I44: 4153500 | J44: 1726320 | K44: 5879820 | L44: 0 | M44: 0 | N44: 0 | O44: 0
L45: =IF(L44>L5,"PROBIJEN LIMIT!!!","") -> 

Sheet 18
B1: PRORAČUNSKI ZAHTJEV ZA 2023. GODINU
M2: Datum zahtjeva:
B3: NAZIV RAZDJELA: | F3: MINISTARSTVO PROMETA, VEZA I ZAŠTITE OKOLIŠA ŽUPANIJE POSAVSKE
B5: RAZDJEL: | D5: 18 | I5: Gornja granica razdjela za stupac 12: | L5: 470490
B7: Ministarstvo (razdjel) | C7: Proračunska institucija | D7: Potrošačka jedinica | E7: Funkcija | F7: Ekon. kod | G7: Subanalitika | H7: OPIS | I7: PRORAČUN za 2022./ Izmjene i dopune | L7: ZAHTJEV za 2023. | O7: INDEKS
I8: iz prorač. sredstava | J8: iz ostalih izvora | K8: UKUPNO | L8: iz prorač. sredstava | M8: iz ostalih izvora | N8: UKUPNO
B9: 1 | C9: 2 | D9: 3 | E9: 4 | F9: 5 | G9: 6 | H9: 7 | I9: 8 | J9: 9 | K9: 10=8+9 | L9: 12 | M9: 13 | N9: 14=12+13 | O9: 15=14/10
B10: 18 | C10: 01 | D10: 0001 | E10: 0490 | H10: MINIST.PROMETA, VEZA I ZAŠTITE OKOLIŠA ŽP | O10: =IF(K10=0,"",N10/K10*100) -> 
F11: 611000 | H11: Plaće i naknade troškova zaposlenih | I11: =SUM(I12:I15) -> 331900 | J11: 0 | K11: 331900 | L11: 0 | M11: 0 | N11: 0 | O11: 0
F12: 611100 | H12: Bruto plaće i naknade plaća | I12: 271060 | J12: 0 | K12: =SUM(I12:J12) -> 271060 | N12: =SUM(L12:M12) -> 0 | O12: 0
F13: 611200 | H13: Naknade troškova zaposlenih | I13: 60840 | J13: 0 | K13: =SUM(I13:J13) -> 60840 | N13: =SUM(L13:M13) -> 0 | O13: 0
F14: 611200 | H14: Naknade troškova zaposlenih - volonteri () | I14: 0 | J14: 0 | K14: 0 | N14: 0
F16: 612000 | H16: Doprinosi poslodavca i ostali doprinosi | I16: =I17 -> 28910 | J16: 0 | K16: 28910 | L16: 0 | M16: 0 | N16: 0 | O16: 0
F17: 612100 | H17: Doprinosi poslodavca | I17: 28910 | J17: 0 | K17: =SUM(I17:J17) -> 28910 | N17: =SUM(L17:M17) -> 0 | O17: 0
F19: 613000 | H19: Izdaci za materijal, sitan inv. i usluge | I19: =SUM(I20:I30) -> 37000 | J19: 420000 | K19: 457000 | L19: 0 | M19: 0 | N19: 0 | O19: 0
F20: 613100 | H20: Putni troškovi | I20: 2500 | J20: 0 | K20: =SUM(I20:J20) -> 2500 | N20: =SUM(L20:M20) -> 0 | O20: 0
F21: 613200 | H21: Izdaci za energiju | I21: 0 | J21: 0 | K21: 0 | N21: 0
F22: 613300 | H22: Izdaci za komunikaciju i komunalne usluge | I22: 6500 | J22: 0 | K22: 6500 | N22: 0 | O22: 0
F23: 613400 | H23: Nabavka materijala i sitnog inventara | I23: 1000 | J23: 0 | K23: 1000 | N23: 0 | O23: 0
F24: 613500 | H24: Izdaci za usluge prijevoza i goriva | I24: 0 | J24: 0 | K24: 0 | N24: 0
F25: 613600 | H25: Unajmljivanje imovine, opreme i nemat.imovine | I25: 0 | J25: 0 | K25: 0 | N25: 0
F26: 613700 | H26: Izdaci za tekuće održavanje | I26: 2000 | J26: 0 | K26: 2000 | N26: 0 | O26: 0
F27: 613700 | G27: IA6004 | H27: Tekuće održavanje cesta | I27: 0 | J27: 420000 | K27: 420000 | N27: 0 | O27: 0
F28: 613800 | H28: Izdaci osiguranja, bank. usluga i usluga p.p. | I28: 0 | J28: 0 | K28: 0 | N28: 0
F29: 613900 | H29: Ugovorene i druge posebne usluge | I29: 25000 | J29: 0 | K29: 25000 | N29: 0 | O29: 0
F30: 613900 | H30: Ugovorene i druge posebne usluge-volonteri () | I30: 0 | J30: 0 | K30: 0 | N30: 0
F32: 614000 | H32: Tekući grantovi i drugi tekući rashodi | I32: =SUM(I33:I33) -> 0 | J32: 280000 | K32: 280000 | L32: 0 | M32: 0 | N32: 0 | O32: 0
F33: 614100 | G33: IA6002 | H33: Grant za zaštitu okoliša | I33: 0 | J33: 280000 | K33: =SUM(I33:J33) -> 280000 | N33: =SUM(L33:M33) -> 0 | O33: 0
F35: 821000 | H35: Izdaci za nabavku stalnih sredstava | I35: =SUM(I36:I39) -> 6000 | J35: 1980000 | K35: 1986000 | L35: 0 | M35: 0 | N35: 0 | O35: 0
F36: 821200 | H36: Nabavka građevina | I36: 0 | J36: 0 | K36: =SUM(I36:J36) -> 0 | N36: =SUM(L36:M36) -> 0
F37: 821300 | H37: Nabavka opreme | I37: 6000 | J37: 0 | K37: 6000 | N37: 0 | O37: 0
F38: 821500 | G38: IA6005 | H38: Rekonstrukcija i investicijsko održavanje lokalnih cesta | I38: 0 | J38: 1430000 | K38: =SUM(I38:J38) -> 1430000 | N38: =SUM(L38:M38) -> 0 | O38: 0
F39: 821600 | G39: IA6006 | H39: Rekonstrukcija i investicijsko održavanje regionalnih cesta | I39: 0 | J39: 550000 | K39: =SUM(I39:J39) -> 550000 | N39: 0 | O39: 0
H41: Ukupan broj zaposlenih: | I41: 11 (13) | K41: 11 (13)
H42: Ukupno za potrošačku jedinicu: | I42: =I11+I16+I19+I32+I35 -> 403810 | J42: 2680000 | K42: 3083810 | L42: 0 | M42: 0 | N42: 0 | O42: 0
H43: Ukupno za proračunsku instituciju: | I43: =I42 -> 403810 | J43: 2680000 | K43: 3083810 | L43: 0 | M43: 0 | N43: 0 | O43: 0
H44: Ukupno za ministarstvo (razdjel): | I44: 403810 | J44: 2680000 | K44: 3083810 | L44: 0 | M44: 0 | N44: 0 | O44: 0
L45: =IF(L44>L5,"PROBIJEN LIMIT!!!","") -> 

Sheet 19
B1: PRORAČUNSKI ZAHTJEV ZA 2023. GODINU
M2: Datum zahtjeva:
B3: NAZIV RAZDJELA: | F3: MINISTARSTVO POLJOPRIVREDE, VODOPRIVREDE I ŠUMARSTVA ŽUPANIJE POSAVSKE
B5: RAZDJEL: | D5: 19 | I5: Gornja granica razdjela za stupac 12: | L5: 2989780
B7: Ministarstvo (razdjel) | C7: Proračunska institucija | D7: Potrošačka jedinica | E7: Funkcija | F7: Ekon. kod | G7: Subanalitika | H7: OPIS | I7: PRORAČUN za 2022./ Izmjene i dopune | L7: ZAHTJEV za 2023. | O7: INDEKS
I8: iz prorač. sredstava | J8: iz ostalih izvora | K8: UKUPNO | L8: iz prorač. sredstava | M8: iz ostalih izvora | N8: UKUPNO
B9: 1 | C9: 2 | D9: 3 | E9: 4 | F9: 5 | G9: 6 | H9: 7 | I9: 8 | J9: 9 | K9: 10=8+9 | L9: 12 | M9: 13 | N9: 14=12+13 | O9: 15=14/10
B10: 19 | C10: 01 | D10: 0001 | E10: 0421 | H10: MINIST.POLJOPR.,VODOPR.I ŠUMARSTVA ŽP | O10: =IF(K10=0,"",N10/K10*100) -> 
F11: 611000 | H11: Plaće i naknade troškova zaposlenih | I11: =SUM(I12:I15) -> 858820 | J11: 0 | K11: 858820 | L11: 0 | M11: 0 | N11: 0 | O11: 0
F12: 611100 | H12: Bruto plaće i naknade plaća | I12: 717640 | J12: 0 | K12: =SUM(I12:J12) -> 717640 | N12: =SUM(L12:M12) -> 0 | O12: 0
F13: 611200 | H13: Naknade troškova zaposlenih | I13: 141180 | J13: 0 | K13: =SUM(I13:J13) -> 141180 | N13: =SUM(L13:M13) -> 0 | O13: 0
F14: 611200 | H14: Naknade troškova zaposlenih - volonteri () | I14: 0 | J14: 0 | K14: 0 | N14: 0
F16: 612000 | H16: Doprinosi poslodavca i ostali doprinosi | I16: =I17 -> 75850 | J16: 0 | K16: 75850 | L16: 0 | M16: 0 | N16: 0 | O16: 0
F17: 612100 | H17: Doprinosi poslodavca | I17: 75850 | J17: 0 | K17: =SUM(I17:J17) -> 75850 | N17: =SUM(L17:M17) -> 0 | O17: 0
F19: 613000 | H19: Izdaci za materijal, sitan inv. i usluge | I19: =SUM(I20:I29) -> 79350 | J19: 0 | K19: 79350 | L19: 0 | M19: 0 | N19: 0 | O19: 0
F20: 613100 | H20: Putni troškovi | I20: 7300 | J20: 0 | K20: =SUM(I20:J20) -> 7300 | N20: =SUM(L20:M20) -> 0 | O20: 0
F21: 613200 | H21: Izdaci za energiju | I21: 1500 | J21: 0 | K21: 1500 | N21: 0 | O21: 0
F22: 613300 | H22: Izdaci za komunikaciju i komunalne usluge | I22: 7000 | J22: 0 | K22: 7000 | N22: 0 | O22: 0
F23: 613400 | H23: Nabavka materijala i sitnog inventara | I23: 3500 | J23: 0 | K23: 3500 | N23: 0 | O23: 0
F24: 613500 | H24: Izdaci za usluge prijevoza i goriva | I24: 500 | J24: 0 | K24: 500 | N24: 0 | O24: 0
F25: 613600 | H25: Unajmljivanje imovine, opreme i nemat.imovine | I25: 5500 | J25: 0 | K25: 5500 | N25: 0 | O25: 0
F26: 613700 | H26: Izdaci za tekuće održavanje | I26: 9000 | J26: 0 | K26: 9000 | N26: 0 | O26: 0
F27: 613800 | H27: Izdaci osiguranja, bank. usluga i usluga p.p. | I27: 50 | J27: 0 | K27: 50 | N27: 0 | O27: 0
F28: 613900 | H28: Ugovorene i druge posebne usluge | I28: 45000 | J28: 0 | K28: 45000 | N28: 0 | O28: 0
F29: 613900 | H29: Ugovorene i druge posebne usluge-volonteri () | I29: 0 | J29: 0 | K29: 0 | N29: 0 | O29: =IF(K29=0,"",N29/K29*100) -> 
F31: 614000 | H31: Tekući grantovi i drugi tekući rashodi | I31: =SUM(I32:I35) -> 2118110 | J31: 531890 | K31: 2650000 | L31: 0 | M31: 0 | N31: 0 | O31: 0
F32: 614100 | G32: JA6008 | H32: Grant za šumarstvo | I32: 0 | J32: 100000 | K32: =SUM(I32:J32) -> 100000 | N32: =SUM(L32:M32) -> 0 | O32: 0
F33: 614500 | G33: JA6004 | H33: Grant za poljoprivredu | I33: 2050000 | J33: 0 | K33: 2050000 | N33: 0 | O33: 0
F34: 614500 | G34: JA6005 | H34: Grant za vodoprivredu | I34: 68110 | J34: 231890 | K34: 300000 | N34: 0 | O34: 0
F35: 614500 | G35: JA6007 | H35: Grant za uređenje poljoprivrednog zemljišta | I35: 0 | J35: 200000 | K35: 200000 | N35: 0 | O35: 0
F37: 615000 | H37: Kapitalni grantovi | I37: =SUM(I38:I39) -> 0 | J37: 550000 | K37: 550000 | N37: 0 | O37: 0
F38: 615100 | G38: JA6009 | H38: Kapitalni grant za vodoprivredu | I38: 0 | J38: 400000 | K38: =SUM(I38:J38) -> 400000 | N38: =SUM(L38:M38) -> 0 | O38: 0
F39: 615100 | G39: JA6010 | H39: Kapitalni grant za uređenje poljoprivrednog zemljišta | I39: 0 | J39: 150000 | K39: 150000 | N39: 0 | O39: 0
F41: 821000 | H41: Izdaci za nabavku stalnih sredstava | I41: =SUM(I42:I44) -> 18000 | J41: 20000 | K41: 38000 | L41: 0 | M41: 0 | N41: 0 | O41: 0
F42: 821200 | H42: Nabavka građevina | I42: 0 | J42: 0 | K42: =SUM(I42:J42) -> 0 | N42: =SUM(L42:M42) -> 0
F43: 821300 | H43: Nabavka opreme | I43: 18000 | J43: 20000 | K43: 38000 | N43: 0 | O43: 0
H45: Ukupan broj zaposlenih: | I45: 28 (30) | K45: 28 (30)
H46: Ukupno za potrošačku jedinicu: | I46: =I11+I16+I19+I31+I37+I41 -> 3150130 | J46: 1101890 | K46: 4252020 | L46: 0 | M46: 0 | N46: 0 | O46: 0
H47: Ukupno za proračunsku instituciju: | I47: =I46 -> 3150130 | J47: 1101890 | K47: 4252020 | L47: 0 | M47: 0 | N47: 0 | O47: 0
H48: Ukupno za ministarstvo (razdjel): | I48: 3150130 | J48: 1101890 | K48: 4252020 | L48: 0 | M48: 0 | N48: 0 | O48: 0
L49: =IF(L48>L5,"PROBIJEN LIMIT!!!","") -> 

Sheet 20
B1: PRORAČUNSKI ZAHTJEV ZA 2023. GODINU
M2: Datum zahtjeva:
B3: NAZIV RAZDJELA: | F3: MINISTARSTVO PROSVJETE, ZNANOSTI, KULTURE I SPORTA ŽUPANIJE POSAVSKE
B5: RAZDJEL: | D5: 20 | I5: Gornja granica razdjela za stupac 12: | L5: 16712680
B7: Ministarstvo (razdjel) | C7: Proračunska institucija | D7: Potrošačka jedinica | E7: Funkcija | F7: Ekon. kod | G7: Subanalitika | H7: OPIS | I7: PRORAČUN za 2022./ Izmjene i dopune | L7: ZAHTJEV za 2023. | O7: INDEKS
I8: iz prorač. sredstava | J8: iz ostalih izvora | K8: UKUPNO | L8: iz prorač. sredstava | M8: iz ostalih izvora | N8: UKUPNO
B9: 1 | C9: 2 | D9: 3 | E9: 4 | F9: 5 | G9: 6 | H9: 7 | I9: 8 | J9: 9 | K9: 10=8+9 | L9: 12 | M9: 13 | N9: 14=12+13 | O9: 15=14/10
B10: 20 | C10: 01 | D10: 0001 | E10: 0980 | H10: MINIST.PROSVJETE, ZNAN., KULTURE I SPORTA ŽP | O10: =IF(K10=0,"",N10/K10*100) -> 
F11: 611000 | H11: Plaće i naknade troškova zaposlenih | I11: =SUM(I12:I15) -> 461340 | J11: 0 | K11: 461340 | L11: 0 | M11: 0 | N11: 0 | O11: 0
F12: 611100 | H12: Bruto plaće i naknade plaća | I12: 392250 | J12: 0 | K12: =SUM(I12:J12) -> 392250 | N12: =SUM(L12:M12) -> 0 | O12: 0
F13: 611200 | H13: Naknade troškova zaposlenih | I13: 69090 | J13: 0 | K13: =SUM(I13:J13) -> 69090 | N13: =SUM(L13:M13) -> 0 | O13: 0
F14: 611200 | H14: Naknade troškova zaposlenih - volonteri () | I14: 0 | J14: 0 | K14: 0 | N14: 0
F16: 612000 | H16: Doprinosi poslodavca i ostali doprinosi | I16: =I17 -> 41850 | J16: 0 | K16: 41850 | L16: 0 | M16: 0 | N16: 0 | O16: 0
F17: 612100 | H17: Doprinosi poslodavca | I17: 41850 | J17: 0 | K17: =SUM(I17:J17) -> 41850 | N17: =SUM(L17:M17) -> 0 | O17: 0
F19: 613000 | H19: Izdaci za materijal, sitan inv. i usluge | I19: =SUM(I20:I32) -> 306200 | J19: 0 | K19: 306200 | L19: 0 | M19: 0 | N19: 0 | O19: 0
F20: 613100 | H20: Putni troškovi | I20: 6500 | J20: 0 | K20: =SUM(I20:J20) -> 6500 | N20: =SUM(L20:M20) -> 0 | O20: 0
F21: 613200 | H21: Izdaci za energiju | I21: 0 | J21: 0 | K21: 0 | N21: 0
F22: 613300 | H22: Izdaci za komunikaciju i komunalne usluge | I22: 3700 | J22: 0 | K22: 3700 | N22: 0 | O22: 0
F23: 613400 | H23: Nabavka materijala i sitnog inventara | I23: 14000 | J23: 0 | K23: 14000 | N23: 0 | O23: 0
E24: 0912 | F24: 613400 | G24: KA6014 | H24: Nabavka materijala i sitnog inventara-obroci za učenike i-V razreda | I24: 188000 | J24: 0 | K24: 188000 | N24: 0 | O24: 0
F25: 613500 | H25: Izdaci za usluge prijevoza i goriva | I25: 0 | J25: 0 | K25: 0 | N25: 0
F26: 613600 | H26: Unajmljivanje imovine, opreme i nemat.imovine | I26: 0 | J26: 0 | K26: 0 | N26: 0
F27: 613700 | H27: Izdaci za tekuće održavanje | I27: 4000 | J27: 0 | K27: 4000 | N27: 0 | O27: 0
F28: 613800 | H28: Izdaci osiguranja, bank. usluga i usluga p.p. | I28: 0 | J28: 0 | K28: 0 | N28: 0
F29: 613800 | H29: Izdaci za negativne tečajne razlike | I29: 0 | J29: 0 | K29: 0 | N29: 0
F30: 613900 | H30: Ugovorene i druge posebne usluge | I30: 35000 | J30: 0 | K30: 35000 | N30: 0 | O30: 0
F31: 613900 | G31: KA6007 | H31: Vozački ispiti-vlastiti prihodi | I31: 55000 | J31: 0 | K31: 55000 | N31: 0 | O31: 0
F32: 613900 | H32: Ugovorene i druge posebne usluge-volonteri () | I32: 0 | J32: 0 | K32: 0 | N32: 0
F34: 614000 | H34: Tekući grantovi i drugi tekući rashodi | I34: =SUM(I35:I42) -> 1915000 | J34: 0 | K34: 1915000 | L34: 0 | M34: 0 | N34: 0 | O34: 0
E35: 0941 | F35: 614100 | G35: KA6004 | H35: Grant za financiranje visokog obrazovanja | I35: 165000 | J35: 0 | K35: =SUM(I35:J35) -> 165000 | N35: =SUM(L35:M35) -> 0 | O35: 0
F36: 614100 | G36: KA6009 | H36: Grant za sufinanciranje prijevoza učenika | I36: 370000 | J36: 0 | K36: 370000 | N36: 0 | O36: 0
E37: 0941 | F37: 614200 | G37: KA6003 | H37: Isplate stipendija | I37: 150000 | J37: 0 | K37: 150000 | N37: 0 | O37: 0
E38: 0912 0921 | F38: 614200 | G38: KA6008 | H38: Grant za sufinanciranje osn.i srednjeg obrazovanja djece s posebnim potrebama | I38: 20000 | J38: 0 | K38: 20000 | N38: 0 | O38: 0
E39: 0830 | F39: 614300 | G39: KA6001 | H39: Grant za informiranje | I39: 370000 | J39: 0 | K39: 370000 | N39: 0 | O39: 0
E40: 0840 | F40: 614300 | G40: KA6006 | H40: Grant za financiranje vjerskih zajednica | I40: 340000 | J40: 0 | K40: 340000 | N40: 0 | O40: 0
E41: 0810 | F41: 614300 | G41: KA6012 | H41: Grant za sport | I41: 350000 | J41: 0 | K41: 350000 | N41: 0 | O41: 0
E42: 0820 | F42: 614300 | G42: KA6013 | H42: Grant za kulturu | I42: 150000 | J42: 0 | K42: 150000 | N42: 0 | O42: 0
F44: 821000 | H44: Izdaci za nabavku stalnih sredstava | I44: =SUM(I45:I46) -> 211000 | J44: 20000 | K44: 231000 | L44: 0 | M44: 0 | N44: 0 | O44: 0
F45: 821200 | H45: Nabavka građevina | I45: 200000 | J45: 0 | K45: =SUM(I45:J45) -> 200000 | N45: =SUM(L45:M45) -> 0 | O45: 0
F46: 821300 | H46: Nabavka opreme | I46: 11000 | J46: 20000 | K46: 31000 | N46: 0 | O46: 0
H48: Ukupan broj zaposlenih: | I48: 14 (15) | K48: 14 (15)
H49: Ukupno za potrošačku jedinicu: | I49: =I11+I16+I19+I34+I44 -> 2935390 | J49: 20000 | K49: 2955390 | L49: 0 | M49: 0 | N49: 0 | O49: 0
H50: Ukupno za proračunsku instituciju: | I50: =I49 -> 2935390 | J50: =J49 -> 20000 | K50: 2955390 | L50: 0 | M50: 0 | N50: 0 | O50: 0
H51: Ukupno za ministarstvo (razdjel): | I51: =I49+I80+I111+I142+I173+I204+I235+I266+I297+I328+I359 -> 16954930 | J51: =J49+J80+J111+J142+J173+J204+J235+J266+J297+J328+J359 -> 35000 | K51: 16989930 | L51: 0 | M51: 0 | N51: 0 | O51: 0
L52: =IF(L51>L5,"PROBIJEN LIMIT!!!","") ->  | O52: =IF(K52=0,"",N52/K52*100) -> 
B54: 20 | C54: 02 | D54: 0002 | E54: 0922 | H54: SREDNJA ŠKOLA PERE ZEČEVIĆA U ODŽAKU
F55: 611000 | H55: Plaće i naknade troškova zaposlenih | I55: =SUM(I56:I59) -> 1278510 | J55: 0 | K55: 1278510 | L55: 0 | M55: 0 | N55: 0 | O55: 0
F56: 611100 | H56: Bruto plaće i naknade plaća | I56: 1059820 | J56: 0 | K56: =SUM(I56:J56) -> 1059820 | N56: =SUM(L56:M56) -> 0 | O56: 0
F57: 611200 | H57: Naknade troškova zaposlenih | I57: 218690 | J57: 0 | K57: =SUM(I57:J57) -> 218690 | N57: =SUM(L57:M57) -> 0 | O57: 0
F58: 611200 | H58: Naknade troškova zaposlenih - volonteri () | I58: 0 | J58: 0 | K58: 0 | N58: 0
F60: 612000 | H60: Doprinosi poslodavca i ostali doprinosi | I60: =I61 -> 110750 | J60: 0 | K60: 110750 | L60: 0 | M60: 0 | N60: 0 | O60: 0
F61: 612100 | H61: Doprinosi poslodavca | I61: 110750 | J61: 0 | K61: =SUM(I61:J61) -> 110750 | N61: =SUM(L61:M61) -> 0 | O61: 0
F63: 613000 | H63: Izdaci za materijal, sitan inv. i usluge | I63: =SUM(I64:I73) -> 184080 | J63: 0 | K63: 184080 | L63: 0 | M63: 0 | N63: 0 | O63: 0
F64: 613100 | H64: Putni troškovi | I64: 5500 | J64: 0 | K64: =SUM(I64:J64) -> 5500 | N64: =SUM(L64:M64) -> 0 | O64: 0
F65: 613200 | H65: Izdaci za energiju | I65: 90000 | J65: 0 | K65: 90000 | N65: 0 | O65: 0
F66: 613300 | H66: Izdaci za komunikaciju i komunalne usluge | I66: 8500 | J66: 0 | K66: 8500 | N66: 0 | O66: 0
F67: 613400 | H67: Nabavka materijala i sitnog inventara | I67: 22000 | J67: 0 | K67: 22000 | N67: 0 | O67: 0
F68: 613500 | H68: Izdaci za usluge prijevoza i goriva | I68: 3500 | J68: 0 | K68: 3500 | N68: 0 | O68: 0
F69: 613600 | H69: Unajmljivanje imovine, opreme i nemat.imovine | I69: 0 | J69: 0 | K69: 0 | N69: 0
F70: 613700 | H70: Izdaci za tekuće održavanje | I70: 23000 | J70: 0 | K70: 23000 | N70: 0 | O70: 0
F71: 613800 | H71: Izdaci osiguranja, bank. usluga i usluga p.p. | I71: 1580 | J71: 0 | K71: 1580 | N71: 0 | O71: 0
F72: 613900 | H72: Ugovorene i druge posebne usluge | I72: 30000 | J72: 0 | K72: 30000 | N72: 0 | O72: 0
F73: 613900 | H73: Ugovorene i druge posebne usluge-volonteri () | I73: 0 | J73: 0 | K73: 0 | N73: 0
F75: 821000 | H75: Izdaci za nabavku stalnih sredstava | I75: =SUM(I76:I78) -> 63000 | J75: 0 | K75: 63000 | L75: 0 | M75: 0 | N75: 0 | O75: 0
F76: 821200 | H76: Nabavka građevina | I76: 30000 | J76: 0 | K76: =SUM(I76:J76) -> 30000 | N76: =SUM(L76:M76) -> 0 | O76: 0
F77: 821300 | H77: Nabavka opreme | I77: 33000 | J77: 0 | K77: 33000 | N77: 0 | O77: 0
H79: Ukupan broj zaposlenih: | I79: 50 (53) | K79: 50 (53)
H80: Ukupno za potrošačku jedinicu: | I80: =I55+I60+I63+I75 -> 1636340 | J80: 0 | K80: 1636340 | L80: 0 | M80: 0 | N80: 0 | O80: 0
H81: Ukupno za proračunsku instituciju:
H82: Ukupno za ministarstvo (razdjel):
B85: 20 | C85: 02 | D85: 0003 | E85: 0922 | H85: ŠKOLSKI CENTAR FRA M.NEDIĆA U ORAŠJU
F86: 611000 | H86: Plaće i naknade troškova zaposlenih | I86: =SUM(I87:I90) -> 1095940 | J86: 0 | K86: 1095940 | L86: 0 | M86: 0 | N86: 0 | O86: 0
F87: 611100 | H87: Bruto plaće i naknade plaća | I87: 897740 | J87: 0 | K87: =SUM(I87:J87) -> 897740 | N87: =SUM(L87:M87) -> 0 | O87: 0
F88: 611200 | H88: Naknade troškova zaposlenih | I88: 198200 | J88: 0 | K88: =SUM(I88:J88) -> 198200 | N88: =SUM(L88:M88) -> 0 | O88: 0
F89: 611200 | H89: Naknade troškova zaposlenih - volonteri () | I89: 0 | J89: 0 | K89: 0 | N89: 0
F91: 612000 | H91: Doprinosi poslodavca i ostali doprinosi | I91: =I92 -> 101570 | J91: 0 | K91: 101570 | L91: 0 | M91: 0 | N91: 0 | O91: 0
F92: 612100 | H92: Doprinosi poslodavca | I92: 101570 | J92: 0 | K92: =SUM(I92:J92) -> 101570 | N92: =SUM(L92:M92) -> 0 | O92: 0
F94: 613000 | H94: Izdaci za materijal, sitan inv. i usluge | I94: =SUM(I95:I104) -> 200030 | J94: 0 | K94: 200030 | L94: 0 | M94: 0 | N94: 0 | O94: 0
F95: 613100 | H95: Putni troškovi | I95: 5000 | J95: 0 | K95: =SUM(I95:J95) -> 5000 | N95: =SUM(L95:M95) -> 0 | O95: 0
F96: 613200 | H96: Izdaci za energiju | I96: 110000 | J96: 0 | K96: 110000 | N96: 0 | O96: 0
F97: 613300 | H97: Izdaci za komunikaciju i komunalne usluge | I97: 14500 | J97: 0 | K97: 14500 | N97: 0 | O97: 0
F98: 613400 | H98: Nabavka materijala i sitnog inventara | I98: 24000 | J98: 0 | K98: 24000 | N98: 0 | O98: 0
F99: 613500 | H99: Izdaci za usluge prijevoza i goriva | I99: 500 | J99: 0 | K99: 500 | N99: 0 | O99: 0
F100: 613600 | H100: Unajmljivanje imovine, opreme i nemat.imovine | I100: 0 | J100: 0 | K100: 0 | N100: 0
F101: 613700 | H101: Izdaci za tekuće održavanje | I101: 28000 | J101: 0 | K101: 28000 | N101: 0 | O101: 0
F102: 613800 | H102: Izdaci osiguranja, bank. usluga i usluga p.p. | I102: 1030 | J102: 0 | K102: 1030 | N102: 0 | O102: 0
F103: 613900 | H103: Ugovorene i druge posebne usluge | I103: 17000 | J103: 0 | K103: 17000 | N103: 0 | O103: 0
F104: 613900 | H104: Ugovorene i druge posebne usluge-volonteri () | I104: 0 | J104: 0 | K104: 0 | N104: 0
F106: 821000 | H106: Izdaci za nabavku stalnih sredstava | I106: =SUM(I107:I108) -> 40000 | J106: 0 | K106: 40000 | L106: 0 | M106: 0 | N106: 0 | O106: 0
F107: 821200 | H107: Nabavka građevina | I107: 10000 | J107: 0 | K107: =SUM(I107:J107) -> 10000 | N107: =SUM(L107:M107) -> 0 | O107: 0
F108: 821300 | H108: Nabavka opreme | I108: 30000 | J108: 0 | K108: 30000 | N108: 0 | O108: 0
H110: Ukupan broj zaposlenih: | I110: 46 (48) | K110: 46 (48)
H111: Ukupno za potrošačku jedinicu: | I111: =I86+I91+I94+I106 -> 1437540 | J111: 0 | K111: 1437540 | L111: 0 | M111: 0 | N111: 0 | O111: 0
H112: Ukupno za proračunsku instituciju:
H113: Ukupno za ministarstvo (razdjel):
B116: 20 | C116: 02 | D116: 0004 | E116: 0922 | H116: SREDNJA STRUKOVNA ŠKOLA ORAŠJE U ORAŠJU | O116: =IF(K116=0,"",N116/K116*100) -> 
F117: 611000 | H117: Plaće i naknade troškova zaposlenih | I117: =SUM(I118:I121) -> 1032750 | J117: 0 | K117: 1032750 | L117: 0 | M117: 0 | N117: 0 | O117: 0
F118: 611100 | H118: Bruto plaće i naknade plaća | I118: 861940 | J118: 0 | K118: =SUM(I118:J118) -> 861940 | N118: =SUM(L118:M118) -> 0 | O118: 0
F119: 611200 | H119: Naknade troškova zaposlenih | I119: 170810 | J119: 0 | K119: =SUM(I119:J119) -> 170810 | N119: =SUM(L119:M119) -> 0 | O119: 0
F120: 611200 | H120: Naknade troškova zaposlenih - volonteri () | I120: 0 | J120: 0 | K120: 0 | N120: 0
F122: 612000 | H122: Doprinosi poslodavca i ostali doprinosi | I122: =I123 -> 91260 | J122: 0 | K122: 91260 | L122: 0 | M122: 0 | N122: 0 | O122: 0
F123: 612100 | H123: Doprinosi poslodavca | I123: 91260 | J123: 0 | K123: =SUM(I123:J123) -> 91260 | N123: =SUM(L123:M123) -> 0 | O123: 0
F125: 613000 | H125: Izdaci za materijal, sitan inv. i usluge | I125: =SUM(I126:I135) -> 160700 | J125: 0 | K125: 160700 | L125: 0 | M125: 0 | N125: 0 | O125: 0
F126: 613100 | H126: Putni troškovi | I126: 4800 | J126: 0 | K126: =SUM(I126:J126) -> 4800 | N126: =SUM(L126:M126) -> 0 | O126: 0
F127: 613200 | H127: Izdaci za energiju | I127: 65000 | J127: 0 | K127: 65000 | N127: 0 | O127: 0
F128: 613300 | H128: Izdaci za komunikaciju i komunalne usluge | I128: 8000 | J128: 0 | K128: 8000 | N128: 0 | O128: 0
F129: 613400 | H129: Nabavka materijala i sitnog inventara | I129: 20000 | J129: 0 | K129: 20000 | N129: 0 | O129: 0
F130: 613500 | H130: Izdaci za usluge prijevoza i goriva | I130: 3500 | J130: 0 | K130: 3500 | N130: 0 | O130: 0
F131: 613600 | H131: Unajmljivanje imovine, opreme i nemat.imovine | I131: 0 | J131: 0 | K131: 0 | N131: 0
F132: 613700 | H132: Izdaci za tekuće održavanje | I132: 21000 | J132: 0 | K132: 21000 | N132: 0 | O132: 0
F133: 613800 | H133: Izdaci osiguranja, bank. usluga i usluga p.p. | I133: 1400 | J133: 0 | K133: 1400 | N133: 0 | O133: 0
F134: 613900 | H134: Ugovorene i druge posebne usluge | I134: 37000 | J134: 0 | K134: 37000 | N134: 0 | O134: 0
F135: 613900 | H135: Ugovorene i druge posebne usluge-volonteri () | I135: 0 | J135: 0 | K135: 0 | N135: 0
F137: 821000 | H137: Izdaci za nabavku stalnih sredstava | I137: =SUM(I138:I139) -> 28000 | J137: 0 | K137: 28000 | L137: 0 | M137: 0 | N137: 0 | O137: 0
F138: 821200 | H138: Nabavka građevina | I138: 0 | J138: 0 | K138: =SUM(I138:J138) -> 0 | N138: =SUM(L138:M138) -> 0
F139: 821300 | H139: Nabavka opreme | I139: 28000 | K139: 28000 | N139: 0 | O139: 0
H141: Ukupan broj zaposlenih: | I141: 42 (46) | K141: 42 (46)
H142: Ukupno za potrošačku jedinicu: | I142: =I117+I122+I125+I137 -> 1312710 | J142: 0 | K142: 1312710 | L142: 0 | M142: 0 | N142: 0 | O142: 0
H143: Ukupno za proračunsku instituciju: | I143: =I142+I111+I80 -> 4386590 | J143: =J142+J111+J80 -> 0 | K143: 4386590 | L143: 0 | M143: 0 | N143: 0 | O143: 0
H144: Ukupno za ministarstvo (razdjel):
B147: 20 | C147: 03 | D147: 0001 | E147: 0912 | H147: OSNOVNA ŠKOLA ORAŠJE U ORAŠJU
F148: 611000 | H148: Plaće i naknade troškova zaposlenih | I148: =SUM(I149:I152) -> 1359440 | J148: 0 | K148: 1359440 | L148: 0 | M148: 0 | N148: 0 | O148: 0
F149: 611100 | H149: Bruto plaće i naknade plaća | I149: 1148060 | J149: 0 | K149: =SUM(I149:J149) -> 1148060 | N149: =SUM(L149:M149) -> 0 | O149: 0
F150: 611200 | H150: Naknade troškova zaposlenih | I150: 211380 | J150: 0 | K150: =SUM(I150:J150) -> 211380 | N150: =SUM(L150:M150) -> 0 | O150: 0
F151: 611200 | H151: Naknade troškova zaposlenih - volonteri () | I151: 0 | J151: 0 | K151: 0 | N151: 0
F153: 612000 | H153: Doprinosi poslodavca i ostali doprinosi | I153: =I154 -> 126940 | J153: 0 | K153: 126940 | L153: 0 | M153: 0 | N153: 0 | O153: 0
F154: 612100 | H154: Doprinosi poslodavca | I154: 126940 | J154: 0 | K154: =SUM(I154:J154) -> 126940 | N154: =SUM(L154:M154) -> 0 | O154: 0
F156: 613000 | H156: Izdaci za materijal, sitan inv. i usluge | I156: =SUM(I157:I166) -> 118800 | J156: 0 | K156: 118800 | L156: 0 | M156: 0 | N156: 0 | O156: 0
F157: 613100 | H157: Putni troškovi | I157: 5000 | J157: 0 | K157: =SUM(I157:J157) -> 5000 | N157: =SUM(L157:M157) -> 0 | O157: 0
F158: 613200 | H158: Izdaci za energiju | I158: 45000 | J158: 0 | K158: 45000 | N158: 0 | O158: 0
F159: 613300 | H159: Izdaci za komunikaciju i komunalne usluge | I159: 7000 | J159: 0 | K159: 7000 | N159: 0 | O159: 0
F160: 613400 | H160: Nabavka materijala i sitnog inventara | I160: 15000 | J160: 0 | K160: 15000 | N160: 0 | O160: 0
F161: 613500 | H161: Izdaci za usluge prijevoza i goriva | I161: 500 | J161: 0 | K161: 500 | N161: 0 | O161: 0
F162: 613600 | H162: Unajmljivanje imovine, opreme i nemat.imovine | I162: 0 | J162: 0 | K162: 0 | N162: 0
F163: 613700 | H163: Izdaci za tekuće održavanje | I163: 10000 | J163: 0 | K163: 10000 | N163: 0 | O163: 0
F164: 613800 | H164: Izdaci osiguranja, bank. usluga i usluga p.p. | I164: 1300 | J164: 0 | K164: 1300 | N164: 0 | O164: 0
F165: 613900 | H165: Ugovorene i druge posebne usluge | I165: 35000 | J165: 0 | K165: 35000 | N165: 0 | O165: 0
F166: 613900 | H166: Ugovorene i druge posebne usluge-volonteri () | I166: 0 | J166: 0 | K166: 0 | N166: 0
F168: 821000 | H168: Izdaci za nabavku stalnih sredstava | I168: =SUM(I169:I170) -> 25000 | J168: 15000 | K168: 40000 | L168: 0 | M168: 0 | N168: 0 | O168: 0
F169: 821200 | H169: Nabavka građevina | I169: 15000 | J169: 0 | K169: =SUM(I169:J169) -> 15000 | N169: =SUM(L169:M169) -> 0 | O169: 0
F170: 821300 | H170: Nabavka opreme | I170: 10000 | J170: 15000 | K170: 25000 | N170: 0 | O170: 0
H172: Ukupan broj zaposlenih: | I172: 53 (57) | K172: 53 (57)
H173: Ukupno za potrošačku jedinicu: | I173: =I148+I153+I156+I168 -> 1630180 | J173: 15000 | K173: 1645180 | L173: 0 | M173: 0 | N173: 0 | O173: 0
H174: Ukupno za proračunsku instituciju:
H175: Ukupno za ministarstvo (razdjel):
B178: 20 | C178: 03 | D178: 0002 | E178: 0912 | H178: OSNOVNA ŠKOLA VLADIMIRA NAZORA U ODŽAKU
F179: 611000 | H179: Plaće i naknade troškova zaposlenih | I179: =SUM(I180:I183) -> 2779300 | J179: 0 | K179: 2779300 | L179: 0 | M179: 0 | N179: 0 | O179: 0
F180: 611100 | H180: Bruto plaće i naknade plaća | I180: 2328030 | J180: 0 | K180: =SUM(I180:J180) -> 2328030 | N180: =SUM(L180:M180) -> 0 | O180: =IF(K180=0,"",N180/K180*100) -> 0
F181: 611200 | H181: Naknade troškova zaposlenih | I181: 451270 | J181: 0 | K181: =SUM(I181:J181) -> 451270 | N181: =SUM(L181:M181) -> 0 | O181: 0
F182: 611200 | H182: Naknade troškova zaposlenih - volonteri () | I182: 0 | J182: 0 | K182: 0 | N182: 0
F184: 612000 | H184: Doprinosi poslodavca i ostali doprinosi | I184: =I185 -> 245580 | J184: 0 | K184: 245580 | L184: 0 | M184: 0 | N184: 0 | O184: 0
F185: 612100 | H185: Doprinosi poslodavca | I185: 245580 | J185: 0 | K185: =SUM(I185:J185) -> 245580 | N185: =SUM(L185:M185) -> 0 | O185: 0
F187: 613000 | H187: Izdaci za materijal, sitan inv. i usluge | I187: =SUM(I188:I197) -> 228050 | J187: 0 | K187: 228050 | L187: 0 | M187: 0 | N187: 0 | O187: 0
F188: 613100 | H188: Putni troškovi | I188: 5500 | J188: 0 | K188: =SUM(I188:J188) -> 5500 | N188: =SUM(L188:M188) -> 0 | O188: 0
F189: 613200 | H189: Izdaci za energiju | I189: 95000 | J189: 0 | K189: 95000 | N189: 0 | O189: 0
F190: 613300 | H190: Izdaci za komunikaciju i komunalne usluge | I190: 12000 | J190: 0 | K190: 12000 | N190: 0 | O190: 0
F191: 613400 | H191: Nabavka materijala i sitnog inventara | I191: 25000 | J191: 0 | K191: 25000 | N191: 0 | O191: 0
F192: 613500 | H192: Izdaci za usluge prijevoza i goriva | I192: 2000 | J192: 0 | K192: 2000 | N192: 0 | O192: 0
F193: 613600 | H193: Unajmljivanje imovine, opreme i nemat.imovine | I193: 0 | J193: 0 | K193: 0 | N193: 0
F194: 613700 | H194: Izdaci za tekuće održavanje | I194: 36000 | J194: 0 | K194: 36000 | N194: 0 | O194: 0
F195: 613800 | H195: Izdaci osiguranja, bank. usluga i usluga p.p. | I195: 2550 | J195: 0 | K195: 2550 | N195: 0 | O195: 0
F196: 613900 | H196: Ugovorene i druge posebne usluge | I196: 50000 | J196: 0 | K196: 50000 | N196: 0 | O196: 0
F197: 613900 | H197: Ugovorene i druge posebne usluge-volonteri () | I197: 0 | J197: 0 | K197: 0 | N197: 0
F199: 821000 | H199: Izdaci za nabavku stalnih sredstava | I199: =SUM(I200:I202) -> 44000 | J199: 0 | K199: 44000 | L199: 0 | M199: 0 | N199: 0 | O199: 0
F200: 821200 | H200: Nabavka građevina | I200: 20000 | J200: 0 | K200: =SUM(I200:J200) -> 20000 | N200: =SUM(L200:M200) -> 0 | O200: 0
F201: 821300 | H201: Nabavka opreme | I201: 24000 | J201: 0 | K201: 24000 | N201: 0 | O201: 0
H203: Ukupan broj zaposlenih: | I203: 104 (108) | K203: 104 (108)
H204: Ukupno za potrošačku jedinicu: | I204: =I179+I184+I187+I199 -> 3296930 | J204: 0 | K204: 3296930 | L204: 0 | M204: 0 | N204: 0 | O204: 0
H205: Ukupno za proračunsku instituciju:
H206: Ukupno za ministarstvo (razdjel):
B209: 20 | C209: 03 | D209: 0003 | E209: 0912 | H209: OSNOVNA ŠKOLA R.BOŠKOVIĆA U DONJOJ MAHALI
F210: 611000 | H210: Plaće i naknade troškova zaposlenih | I210: =SUM(I211:I214) -> 767940 | J210: 0 | K210: 767940 | L210: 0 | M210: 0 | N210: 0 | O210: 0
F211: 611100 | H211: Bruto plaće i naknade plaća | I211: 655850 | J211: 0 | K211: =SUM(I211:J211) -> 655850 | N211: =SUM(L211:M211) -> 0 | O211: 0
F212: 611200 | H212: Naknade troškova zaposlenih | I212: 112090 | J212: 0 | K212: =SUM(I212:J212) -> 112090 | N212: =SUM(L212:M212) -> 0 | O212: 0
F213: 611200 | H213: Naknade troškova zaposlenih - volonteri () | I213: 0 | J213: 0 | K213: 0 | N213: 0
F215: 612000 | H215: Doprinosi poslodavca i ostali doprinosi | I215: =I216 -> 72150 | J215: 0 | K215: 72150 | L215: 0 | M215: 0 | N215: 0 | O215: 0
F216: 612100 | H216: Doprinosi poslodavca | I216: 72150 | J216: 0 | K216: =SUM(I216:J216) -> 72150 | N216: =SUM(L216:M216) -> 0 | O216: 0
F218: 613000 | H218: Izdaci za materijal, sitan inv. i usluge | I218: =SUM(I219:I228) -> 59180 | J218: 0 | K218: 59180 | L218: 0 | M218: 0 | N218: 0 | O218: 0
F219: 613100 | H219: Putni troškovi | I219: 2500 | J219: 0 | K219: =SUM(I219:J219) -> 2500 | N219: =SUM(L219:M219) -> 0 | O219: 0
F220: 613200 | H220: Izdaci za energiju | I220: 20000 | J220: 0 | K220: 20000 | N220: 0 | O220: 0
F221: 613300 | H221: Izdaci za komunikaciju i komunalne usluge | I221: 3700 | J221: 0 | K221: 3700 | N221: 0 | O221: 0
F222: 613400 | H222: Nabavka materijala i sitnog inventara | I222: 12000 | J222: 0 | K222: 12000 | N222: 0 | O222: 0
F223: 613500 | H223: Izdaci za usluge prijevoza i goriva | I223: 300 | J223: 0 | K223: 300 | N223: 0 | O223: 0
F224: 613600 | H224: Unajmljivanje imovine, opreme i nemat.imovine | I224: 0 | J224: 0 | K224: 0 | N224: 0
F225: 613700 | H225: Izdaci za tekuće održavanje | I225: 12000 | J225: 0 | K225: 12000 | N225: 0 | O225: 0
F226: 613800 | H226: Izdaci osiguranja, bank. usluga i usluga p.p. | I226: 680 | J226: 0 | K226: 680 | N226: 0 | O226: 0
F227: 613900 | H227: Ugovorene i druge posebne usluge | I227: 8000 | J227: 0 | K227: 8000 | N227: 0 | O227: 0
F228: 613900 | H228: Ugovorene i druge posebne usluge-volonteri () | I228: 0 | J228: 0 | K228: 0 | N228: 0
F230: 821000 | H230: Izdaci za nabavku stalnih sredstava | I230: =SUM(I231:I232) -> 15000 | J230: 0 | K230: 15000 | L230: 0 | M230: 0 | N230: 0 | O230: 0
F231: 821200 | H231: Nabavka građevina | I231: 12000 | J231: 0 | K231: =SUM(I231:J231) -> 12000 | N231: =SUM(L231:M231) -> 0 | O231: 0
F232: 821300 | H232: Nabavka opreme | I232: 3000 | J232: 0 | K232: 3000 | N232: 0 | O232: 0
H234: Ukupan broj zaposlenih: | I234: 32 (33) | K234: 32 (33)
H235: Ukupno za potrošačku jedinicu: | I235: =I210+I215+I218+I230 -> 914270 | J235: 0 | K235: 914270 | L235: 0 | M235: 0 | N235: 0 | O235: 0
H236: Ukupno za proračunsku instituciju:
H237: Ukupno za ministarstvo (razdjel):
B240: 20 | C240: 03 | D240: 0004 | E240: 0912 | H240: OSNOVNA ŠKOLA FRA I.STARČEVIĆA U TOLISI
F241: 611000 | H241: Plaće i naknade troškova zaposlenih | I241: =SUM(I242:I244) -> 869980 | J241: 0 | K241: 869980 | L241: 0 | M241: 0 | N241: 0 | O241: 0
F242: 611100 | H242: Bruto plaće i naknade plaća | I242: 731930 | J242: 0 | K242: =SUM(I242:J242) -> 731930 | N242: =SUM(L242:M242) -> 0 | O242: 0
F243: 611200 | H243: Naknade troškova zaposlenih | I243: 138050 | J243: 0 | K243: =SUM(I243:J243) -> 138050 | N243: =SUM(L243:M243) -> 0 | O243: 0
F244: 611200 | H244: Naknade troškova zaposlenih - volonteri () | I244: 0 | J244: 0 | K244: 0 | N244: 0 | O244: =IF(K244=0,"",N244/K244*100) -> 
... 95 more rows

Sheet 21
B1: PRORAČUNSKI ZAHTJEV ZA 2023. GODINU
M2: Datum zahtjeva:
B3: NAZIV RAZDJELA: | F3: MINISTARSTVO BRANITELJA ŽUPANIJE POSAVSKE
B5: RAZDJEL: | D5: 21 | I5: Gornja granica razdjela za stupac 12: | L5: 2216540
B7: Ministarstvo (razdjel) | C7: Proračunska institucija | D7: Potrošačka jedinica | E7: Funkcija | F7: Ekon. kod | G7: Subanalitika | H7: OPIS | I7: PRORAČUN za 2022./ Izmjene i dopune | L7: ZAHTJEV za 2023. | O7: INDEKS
I8: iz prorač. sredstava | J8: iz ostalih izvora | K8: UKUPNO | L8: iz prorač. sredstava | M8: iz ostalih izvora | N8: UKUPNO
B9: 1 | C9: 2 | D9: 3 | E9: 4 | F9: 5 | G9: 6 | H9: 7 | I9: 8 | J9: 9 | K9: 10=8+9 | L9: 12 | M9: 13 | N9: 14=12+13 | O9: 15=14/10
B10: 21 | C10: 01 | D10: 0001 | E10: 1090 | H10: MINISTARSTVO BRANITELJA ŽP | O10: =IF(K10=0,"",N10/K10*100) -> 
F11: 611000 | H11: Plaće i naknade troškova zaposlenih | I11: =SUM(I12:I14) -> 311630 | J11: 0 | K11: 311630 | L11: 0 | M11: 0 | N11: 0 | O11: 0
F12: 611100 | H12: Bruto plaće i naknade plaća | I12: 252510 | J12: 0 | K12: =SUM(I12:J12) -> 252510 | N12: =SUM(L12:M12) -> 0 | O12: 0
F13: 611200 | H13: Naknade troškova zaposlenih | I13: 59120 | J13: 0 | K13: =SUM(I13:J13) -> 59120 | N13: =SUM(L13:M13) -> 0 | O13: 0
F14: 611200 | H14: Naknade troškova zaposlenih - volonteri () | I14: 0 | J14: 0 | K14: 0 | N14: 0
F16: 612000 | H16: Doprinosi poslodavca i ostali doprinosi | I16: =I17 -> 26840 | J16: 0 | K16: 26840 | L16: 0 | M16: 0 | N16: 0 | O16: 0
F17: 612100 | H17: Doprinosi poslodavca | I17: 26840 | J17: 0 | K17: =SUM(I17:J17) -> 26840 | N17: =SUM(L17:M17) -> 0 | O17: 0
O18: =IF(K18=0,"",N18/K18*100) -> 
F19: 613000 | H19: Izdaci za materijal, sitan inv. i usluge | I19: =SUM(I20:I29) -> 49000 | J19: =SUM(J20:J29) -> 0 | K19: =SUM(K20:K29) -> 49000 | L19: =SUM(L20:L29) -> 0 | M19: =SUM(M20:M29) -> 0 | N19: =SUM(N20:N29) -> 0 | O19: 0
F20: 613100 | H20: Putni troškovi | I20: 2000 | J20: 0 | K20: =SUM(I20:J20) -> 2000 | N20: =SUM(L20:M20) -> 0 | O20: 0
F21: 613200 | H21: Izdaci za energiju | I21: 0 | J21: 0 | K21: 0 | N21: 0
F22: 613300 | H22: Izdaci za komunikaciju i komunalne usluge | I22: 3000 | J22: 0 | K22: 3000 | N22: 0 | O22: 0
F23: 613400 | H23: Nabavka materijala i sitnog inventara | I23: 1500 | J23: 0 | K23: 1500 | N23: 0 | O23: 0
F24: 613500 | H24: Izdaci za usluge prijevoza i goriva | I24: 0 | J24: 0 | K24: 0 | N24: 0
F25: 613600 | H25: Unajmljivanje imovine, opreme i nemat.imovine | I25: 0 | J25: 0 | K25: 0 | N25: 0
F26: 613700 | H26: Izdaci za tekuće održavanje | I26: 1500 | J26: 0 | K26: 1500 | N26: 0 | O26: 0
F27: 613800 | H27: Izdaci osiguranja, bank. usluga i usluga p.p. | I27: 0 | J27: 0 | K27: 0 | N27: 0
F28: 613900 | H28: Ugovorene i druge posebne usluge | I28: 41000 | J28: 0 | K28: 41000 | N28: 0 | O28: 0
F29: 613900 | H29: Ugovorene i druge posebne usluge-volonteri () | I29: 0 | J29: 0 | K29: 0 | N29: 0
F31: 614000 | H31: Tekući grantovi i drugi tekući rashodi | I31: =SUM(I32:I32) -> 1800000 | J31: 0 | K31: 1800000 | L31: 0 | M31: 0 | N31: 0 | O31: 0
F32: 614200 | G32: LA6001 | H32: Grant za branitelje i stradalnike Domovinskog rata | I32: 1800000 | J32: 0 | K32: =SUM(I32:J32) -> 1800000 | N32: =SUM(L32:M32) -> 0 | O32: 0
F34: 821000 | H34: Izdaci za nabavku stalnih sredstava | I34: =SUM(I35:I36) -> 6200 | J34: =SUM(J35:J36) -> 0 | K34: =SUM(K35:K36) -> 6200 | L34: =SUM(L35:L36) -> 0 | M34: =SUM(M35:M36) -> 0 | N34: =SUM(N35:N36) -> 0 | O34: 0
F35: 821200 | H35: Nabavka građevina | I35: 0 | J35: 0 | K35: =SUM(I35:J35) -> 0 | N35: =SUM(L35:M35) -> 0
F36: 821300 | H36: Nabavka opreme | I36: 6200 | J36: 0 | K36: 6200 | N36: 0 | O36: 0
H38: Ukupan broj zaposlenih: | I38: 12 (13) | K38: 12 (13)
H39: Ukupno za potrošačku jedinicu: | I39: =I11+I16+I19+I31+I34 -> 2193670 | J39: 0 | K39: 2193670 | L39: 0 | M39: 0 | N39: 0 | O39: 0
H40: Ukupno za proračunsku instituciju: | I40: =I39 -> 2193670 | J40: 0 | K40: 2193670 | L40: 0 | M40: 0 | N40: 0 | O40: 0
H41: Ukupno za ministarstvo (razdjel): | I41: 2193670 | J41: 0 | K41: 2193670 | L41: 0 | M41: 0 | N41: 0 | O41: 0
L42: =IF(L41>L5,"PROBIJEN LIMIT!!!","") -> 

Sheet 22
B1: PRORAČUNSKI ZAHTJEV ZA 2023. GODINU
M2: Datum zahtjeva:
B3: NAZIV RAZDJELA: | F3: AGENCIJA ZA PRIVATIZACIJU U ŽUPANIJI POSAVSKOJ
B5: RAZDJEL: | D5: 22 | I5: Gornja granica razdjela za stupac 12: | L5: 175470
B7: Ministarstvo (razdjel) | C7: Proračunska institucija | D7: Potrošačka jedinica | E7: Funkcija | F7: Ekon. kod | G7: Subanalitika | H7: OPIS | I7: PRORAČUN za 2022./ Izmjene i dopune | L7: ZAHTJEV za 2023. | O7: INDEKS
I8: iz prorač. sredstava | J8: iz ostalih izvora | K8: UKUPNO | L8: iz prorač. sredstava | M8: iz ostalih izvora | N8: UKUPNO
B9: 1 | C9: 2 | D9: 3 | E9: 4 | F9: 5 | G9: 6 | H9: 7 | I9: 8 | J9: 9 | K9: 10=8+9 | L9: 12 | M9: 13 | N9: 14=12+13 | O9: 15=14/10
B10: 22 | C10: 01 | D10: 0001 | E10: 0490 | H10: AGENCIJA ZA PRIVATIZACIJU U ŽP | O10: =IF(K10=0,"",N10/K10*100) -> 
F11: 611000 | H11: Plaće i naknade troškova zaposlenih | I11: =SUM(I12:I14) -> 104240 | J11: 0 | K11: 104240 | L11: 0 | M11: 0 | N11: 0 | O11: 0
F12: 611100 | H12: Bruto plaće i naknade plaća | I12: 88910 | J12: 0 | K12: =SUM(I12:J12) -> 88910 | N12: =SUM(L12:M12) -> 0 | O12: 0
F13: 611200 | H13: Naknade troškova zaposlenih | I13: 15330 | J13: 0 | K13: =SUM(I13:J13) -> 15330 | N13: =SUM(L13:M13) -> 0 | O13: 0
F14: 611200 | H14: Naknade troškova zaposlenih - volonteri () | I14: 0 | J14: 0 | K14: 0 | N14: 0
F16: 612000 | H16: Doprinosi poslodavca i ostali doprinosi | I16: =I17 -> 8850 | J16: 0 | K16: 8850 | L16: 0 | M16: 0 | N16: 0 | O16: 0
F17: 612100 | H17: Doprinosi poslodavca | I17: 8850 | J17: 0 | K17: =SUM(I17:J17) -> 8850 | N17: =SUM(L17:M17) -> 0 | O17: 0
F19: 613000 | H19: Izdaci za materijal, sitan inv. i usluge | I19: =SUM(I20:I29) -> 24700 | J19: 0 | K19: 24700 | L19: 0 | M19: 0 | N19: 0 | O19: 0
F20: 613100 | H20: Putni troškovi | I20: 400 | J20: 0 | K20: =SUM(I20:J20) -> 400 | N20: =SUM(L20:M20) -> 0 | O20: 0
F21: 613200 | H21: Izdaci za energiju | I21: 6000 | J21: 0 | K21: 6000 | N21: 0 | O21: 0
F22: 613300 | H22: Izdaci za komunikaciju i komunalne usluge | I22: 3300 | J22: 0 | K22: 3300 | N22: 0 | O22: 0
F23: 613400 | H23: Nabavka materijala i sitnog inventara | I23: 1000 | J23: 0 | K23: 1000 | N23: 0 | O23: 0
F24: 613500 | H24: Izdaci za usluge prijevoza i goriva | I24: 0 | J24: 0 | K24: 0 | N24: 0
F25: 613600 | H25: Unajmljivanje imovine, opreme i nemat.imovine | I25: 0 | J25: 0 | K25: 0 | N25: 0
F26: 613700 | H26: Izdaci za tekuće održavanje | I26: 1000 | J26: 0 | K26: 1000 | N26: 0 | O26: 0
F27: 613800 | H27: Izdaci osiguranja, bank. usluga i usluga p.p. | I27: 0 | J27: 0 | K27: 0 | N27: 0
F28: 613900 | H28: Ugovorene i druge posebne usluge | I28: 13000 | J28: 0 | K28: 13000 | N28: 0 | O28: 0
F29: 613900 | H29: Ugovorene i druge posebne usluge-volonteri () | I29: 0 | J29: 0 | K29: 0 | N29: 0
F31: 821000 | H31: Izdaci za nabavku stalnih sredstava | I31: =SUM(I32:I33) -> 0 | J31: 0 | K31: 0 | L31: 0 | M31: 0 | N31: 0
F32: 821200 | H32: Nabavka građevina | I32: 0 | J32: 0 | K32: =SUM(I32:J32) -> 0 | N32: =SUM(L32:M32) -> 0
F33: 821300 | H33: Nabavka opreme | I33: 0 | J33: 0 | K33: 0 | N33: 0
H35: Ukupan broj zaposlenih: | I35: 3 | K35: 3
H36: Ukupno za potrošačku jedinicu: | I36: =I11+I16+I19+I31 -> 137790 | J36: 0 | K36: 137790 | L36: 0 | M36: 0 | N36: 0 | O36: 0
H37: Ukupno za proračunsku instituciju: | I37: =I36 -> 137790 | J37: 0 | K37: 137790 | L37: 0 | M37: 0 | N37: 0 | O37: 0
H38: Ukupno za ministarstvo (razdjel): | I38: 137790 | J38: 0 | K38: 137790 | L38: 0 | M38: 0 | N38: 0 | O38: 0
L39: =IF(L38>L5,"PROBIJEN LIMIT!!!","") -> 
O40: =IF(K40=0,"",N40/K40*100) -> 

Sheet 23
B1: PRORAČUNSKI ZAHTJEV ZA 2023. GODINU
M2: Datum zahtjeva:
B3: NAZIV RAZDJELA: | F3: ŽUPANIJSKA UPRAVA CIVILNE ZAŠTITE
B5: RAZDJEL: | D5: 23 | I5: Gornja granica razdjela za stupac 12: | L5: 786270
B7: Ministarstvo (razdjel) | C7: Proračunska institucija | D7: Potrošačka jedinica | E7: Funkcija | F7: Ekon. kod | G7: Subanalitika | H7: OPIS | I7: PRORAČUN za 2022./ Izmjene i dopune | L7: ZAHTJEV za 2023. | O7: INDEKS
I8: iz prorač. sredstava | J8: iz ostalih izvora | K8: UKUPNO | L8: iz prorač. sredstava | M8: iz ostalih izvora | N8: UKUPNO
B9: 1 | C9: 2 | D9: 3 | E9: 4 | F9: 5 | G9: 6 | H9: 7 | I9: 8 | J9: 9 | K9: 10=8+9 | L9: 12 | M9: 13 | N9: 14=12+13 | O9: 15=14/10
B10: 23 | C10: 01 | D10: 0001 | E10: 0320 | H10: ŽUPANIJSKA UPRAVA CIVILNE ZAŠTITE | O10: =IF(K10=0,"",N10/K10*100) -> 
F11: 611000 | H11: Plaće i naknade troškova zaposlenih | I11: =SUM(I12:I15) -> 487210 | J11: 0 | K11: 487210 | L11: 0 | M11: 0 | N11: 0 | O11: 0
F12: 611100 | H12: Bruto plaće i naknade plaća | I12: 391880 | J12: 0 | K12: =SUM(I12:J12) -> 391880 | N12: =SUM(L12:M12) -> 0 | O12: 0
F13: 611200 | H13: Naknade troškova zaposlenih | I13: 95330 | J13: 0 | K13: =SUM(I13:J13) -> 95330 | N13: =SUM(L13:M13) -> 0 | O13: 0
F14: 611200 | H14: Naknade troškova zaposlenih - volonteri () | I14: 0 | J14: 0 | K14: 0 | N14: 0
F16: 612000 | H16: Doprinosi poslodavca i ostali doprinosi | I16: =I17 -> 42710 | J16: 0 | K16: 42710 | L16: 0 | M16: 0 | N16: 0 | O16: 0
F17: 612100 | H17: Doprinosi poslodavca | I17: 42710 | J17: 0 | K17: =SUM(I17:J17) -> 42710 | N17: =SUM(L17:M17) -> 0 | O17: 0
F19: 613000 | H19: Izdaci za materijal, sitan inv. i usluge | I19: =SUM(I20:I29) -> 87200 | J19: 70000 | K19: 157200 | L19: 0 | M19: 0 | N19: 0 | O19: 0
F20: 613100 | H20: Putni troškovi | I20: 1500 | J20: 0 | K20: =SUM(I20:J20) -> 1500 | N20: =SUM(L20:M20) -> 0 | O20: 0
F21: 613200 | H21: Izdaci za energiju | I21: 20000 | J21: 0 | K21: 20000 | N21: 0 | O21: 0
F22: 613300 | H22: Izdaci za komunikaciju i komunalne usluge | I22: 6000 | J22: 0 | K22: 6000 | N22: 0 | O22: 0
F23: 613400 | H23: Nabavka materijala i sitnog inventara | I23: 1200 | J23: =40000-6500 -> 33500 | K23: 34700 | N23: 0 | O23: 0
F24: 613500 | H24: Izdaci za usluge prijevoza i goriva | I24: 1000 | J24: 6500 | K24: 7500 | N24: 0 | O24: 0
F25: 613600 | H25: Unajmljivanje imovine, opreme i nemat.imovine | I25: 0 | J25: 0 | K25: 0 | N25: 0
F26: 613700 | H26: Izdaci za tekuće održavanje | I26: 24000 | J26: 16000 | K26: 40000 | N26: 0 | O26: 0
F27: 613800 | H27: Izdaci osiguranja, bank. usluga i usluga p.p. | I27: 800 | J27: 4000 | K27: 4800 | N27: 0 | O27: 0
F28: 613900 | H28: Ugovorene i druge posebne usluge | I28: 32700 | J28: 10000 | K28: 42700 | N28: 0 | O28: 0
F29: 613900 | H29: Ugovorene i druge posebne usluge-volonteri () | I29: 0 | J29: 0 | K29: 0 | N29: 0
F31: 614000 | H31: Tekući grantovi i drugi tekući rashodi | I31: =I32+I33 -> 0 | J31: 110000 | K31: 110000 | L31: 0 | M31: 0 | N31: 0 | O31: 0
F32: 614200 | G32: NA6002 | H32: Grant za zaštitu od prirodnih i drugih nesreća | I32: 0 | J32: 110000 | K32: =SUM(I32:J32) -> 110000 | N32: =SUM(L32:M32) -> 0 | O32: 0
F33: 614300 | G33: NA6003 | H33: Grant za sufinanc.profesionalne vatrogasne postrojbe | I33: 0 | J33: 0 | K33: 0 | N33: 0
F35: 821000 | H35: Izdaci za nabavku stalnih sredstava | I35: =SUM(I36:I39) -> 0 | J35: 45000 | K35: 45000 | L35: 0 | M35: 0 | N35: 0 | O35: 0
F36: 821200 | H36: Nabavka građevina | I36: 0 | J36: 40000 | K36: =SUM(I36:J36) -> 40000 | N36: =SUM(L36:M36) -> 0 | O36: 0
F37: 821300 | H37: Nabavka opreme | I37: 0 | J37: 5000 | K37: 5000 | N37: 0 | O37: 0
F38: 821300 | G38: NA8001 | H38: Nabavka opreme - vatrogasna postrojba | I38: 0 | J38: 0 | K38: 0 | N38: 0
H40: Ukupan broj zaposlenih: | I40: 31 | K40: 31
H41: Ukupno za potrošačku jedinicu: | I41: =I11+I16+I19+I31+I35 -> 617120 | J41: 225000 | K41: 842120 | L41: 0 | M41: 0 | N41: 0 | O41: 0
H42: Ukupno za proračunsku instituciju: | I42: =I41 -> 617120 | J42: 225000 | K42: 842120 | L42: 0 | M42: 0 | N42: 0 | O42: 0
H43: Ukupno za ministarstvo (razdjel): | I43: 617120 | J43: 225000 | K43: 842120 | L43: 0 | M43: 0 | N43: 0 | O43: 0
L44: =IF(L43>L5,"PROBIJEN LIMIT!!!","") -> 

Sheet 24
B1: PRORAČUNSKI ZAHTJEV ZA 2023. GODINU
M2: Datum zahtjeva:
B3: NAZIV RAZDJELA: | F3: KANTONALNI SUD ODŽAK
B5: RAZDJEL: | D5: 24 | I5: Gornja granica razdjela za stupac 12: | L5: 843000
B7: Ministarstvo (razdjel) | C7: Proračunska institucija | D7: Potrošačka jedinica | E7: Funkcija | F7: Ekon. kod | G7: Subanalitika | H7: OPIS | I7: PRORAČUN za 2022./ Izmjene i dopune | L7: ZAHTJEV za 2023. | O7: INDEKS
I8: iz prorač. sredstava | J8: iz ostalih izvora | K8: UKUPNO | L8: iz prorač. sredstava | M8: iz ostalih izvora | N8: UKUPNO
B9: 1 | C9: 2 | D9: 3 | E9: 4 | F9: 5 | G9: 6 | H9: 7 | I9: 8 | J9: 9 | K9: 10=8+9 | L9: 12 | M9: 13 | N9: 14=12+13 | O9: 15=14/10
B10: 24 | C10: 01 | D10: 0001 | E10: 0330 | H10: KANTONALNI SUD ODŽAK | O10: =IF(K10=0,"",N10/K10*100) -> 
F11: 611000 | H11: Plaće i naknade troškova zaposlenih | I11: =SUM(I12:I14) -> 621190 | J11: 0 | K11: 621190 | L11: 0 | M11: 0 | N11: 0 | O11: 0
F12: 611100 | H12: Bruto plaće i naknade plaća | I12: 540530 | J12: 0 | K12: =SUM(I12:J12) -> 540530 | N12: =SUM(L12:M12) -> 0 | O12: 0
F13: 611200 | H13: Naknade troškova zaposlenih | I13: 80660 | J13: 0 | K13: =SUM(I13:J13) -> 80660 | N13: =SUM(L13:M13) -> 0 | O13: 0
F14: 611200 | H14: Naknade troškova zaposlenih - volonteri () | I14: 0 | J14: 0 | K14: 0 | N14: 0
F16: 612000 | H16: Doprinosi poslodavca i ostali doprinosi | I16: =I17 -> 59300 | J16: 0 | K16: 59300 | L16: 0 | M16: 0 | N16: 0 | O16: 0
F17: 612100 | H17: Doprinosi poslodavca | I17: 59300 | J17: 0 | K17: =SUM(I17:J17) -> 59300 | N17: =SUM(L17:M17) -> 0 | O17: 0
F19: 613000 | H19: Izdaci za materijal, sitan inv. i usluge | I19: =SUM(I20:I29) -> 117000 | J19: 0 | K19: 117000 | L19: 0 | M19: 0 | N19: 0 | O19: 0
F20: 613100 | H20: Putni troškovi | I20: 4000 | J20: 0 | K20: =SUM(I20:J20) -> 4000 | N20: =SUM(L20:M20) -> 0 | O20: 0
F21: 613200 | H21: Izdaci za energiju | I21: 30000 | J21: 0 | K21: 30000 | N21: 0 | O21: 0
F22: 613300 | H22: Izdaci za komunikaciju i komunalne usluge | I22: 14000 | J22: 0 | K22: 14000 | N22: 0 | O22: 0
F23: 613400 | H23: Nabavka materijala i sitnog inventara | I23: 8000 | J23: 0 | K23: 8000 | N23: 0 | O23: 0
F24: 613500 | H24: Izdaci za usluge prijevoza i goriva | I24: 5000 | J24: 0 | K24: 5000 | N24: 0 | O24: 0
F25: 613600 | H25: Unajmljivanje imovine, opreme i nemat.imovine | I25: 0 | J25: 0 | K25: 0 | N25: 0
F26: 613700 | H26: Izdaci za tekuće održavanje | I26: 9000 | J26: 0 | K26: 9000 | N26: 0 | O26: 0
F27: 613800 | H27: Izdaci osiguranja, bank. usluga i usluga p.p. | I27: 2000 | J27: 0 | K27: 2000 | N27: 0 | O27: 0
F28: 613900 | H28: Ugovorene i druge posebne usluge | I28: 45000 | J28: 0 | K28: 45000 | N28: 0 | O28: 0
F29: 613900 | H29: Ugovorene i druge posebne usluge-volonteri () | I29: 0 | J29: 0 | K29: 0 | N29: 0
F31: 821000 | H31: Izdaci za nabavku stalnih sredstava | I31: =SUM(I32:I33) -> 10000 | J31: 0 | K31: 10000 | L31: 0 | M31: 0 | N31: 0 | O31: 0
F32: 821200 | H32: Nabavka građevina | I32: 5000 | J32: 0 | K32: =SUM(I32:J32) -> 5000 | N32: =SUM(L32:M32) -> 0 | O32: 0
F33: 821300 | H33: Nabavka opreme | I33: 5000 | J33: 0 | K33: 5000 | N33: 0 | O33: 0
H35: Ukupan broj zaposlenih: | I35: 17 | K35: 17
H36: Ukupno za potrošačku jedinicu: | I36: =I11+I16+I19+I31 -> 807490 | J36: 0 | K36: 807490 | L36: 0 | M36: 0 | N36: 0 | O36: 0
H37: Ukupno za proračunsku instituciju: | I37: =I36 -> 807490 | J37: 0 | K37: 807490 | L37: 0 | M37: 0 | N37: 0 | O37: =IF(K37=0,"",N37/K37*100) -> 0
H38: Ukupno za ministarstvo (razdjel): | I38: 807490 | J38: 0 | K38: 807490 | L38: 0 | M38: 0 | N38: 0 | O38: 0
L39: =IF(L38>L5,"PROBIJEN LIMIT!!!","") -> 

Sheet 26
B1: PRORAČUNSKI ZAHTJEV ZA 2023. GODINU
M2: Datum zahtjeva:
B3: NAZIV RAZDJELA: | F3: ŽUPANIJSKO PRAVOBRANITELJSTVO
B5: RAZDJEL: | D5: 26 | I5: Gornja granica razdjela za stupac 12: | L5: 123870
B7: Ministarstvo (razdjel) | C7: Proračunska institucija | D7: Potrošačka jedinica | E7: Funkcija | F7: Ekon. kod | G7: Subanalitika | H7: OPIS | I7: PRORAČUN za 2022./ Izmjene i dopune | L7: ZAHTJEV za 2023. | O7: INDEKS
I8: iz prorač. sredstava | J8: iz ostalih izvora | K8: UKUPNO | L8: iz prorač. sredstava | M8: iz ostalih izvora | N8: UKUPNO
B9: 1 | C9: 2 | D9: 3 | E9: 4 | F9: 5 | G9: 6 | H9: 7 | I9: 8 | J9: 9 | K9: 10=8+9 | L9: 12 | M9: 13 | N9: 14=12+13 | O9: 15=14/10
B10: 26 | C10: 01 | D10: 0001 | E10: 0330 | H10: ŽUPANIJSKO PRAVOBRANITELJSTVO | O10: =IF(K10=0,"",N10/K10*100) -> 
F11: 611000 | H11: Plaće i naknade troškova zaposlenih | I11: =SUM(I12:I14) -> 81190 | J11: 0 | K11: 81190 | L11: 0 | M11: 0 | N11: 0 | O11: 0
F12: 611100 | H12: Bruto plaće i naknade plaća | I12: 69730 | J12: 0 | K12: =SUM(I12:J12) -> 69730 | N12: =SUM(L12:M12) -> 0 | O12: 0
F13: 611200 | H13: Naknade troškova zaposlenih | I13: 11460 | J13: 0 | K13: =SUM(I13:J13) -> 11460 | N13: =SUM(L13:M13) -> 0 | O13: 0
F14: 611200 | H14: Naknade troškova zaposlenih - volonteri () | I14: 0 | J14: 0 | K14: 0 | N14: 0
F16: 612000 | H16: Doprinosi poslodavca i ostali doprinosi | I16: =I17 -> 7390 | J16: 0 | K16: 7390 | L16: 0 | M16: 0 | N16: 0 | O16: 0
F17: 612100 | H17: Doprinosi poslodavca | I17: 7390 | J17: 0 | K17: =SUM(I17:J17) -> 7390 | N17: =SUM(L17:M17) -> 0 | O17: 0
F19: 613000 | H19: Izdaci za materijal, sitan inv. i usluge | I19: =SUM(I20:I29) -> 17000 | J19: 0 | K19: 17000 | L19: 0 | M19: 0 | N19: 0 | O19: 0
F20: 613100 | H20: Putni troškovi | I20: 1500 | J20: 0 | K20: =SUM(I20:J20) -> 1500 | N20: =SUM(L20:M20) -> 0 | O20: 0
F21: 613200 | H21: Izdaci za energiju | I21: 0 | J21: 0 | K21: 0 | N21: 0
F22: 613300 | H22: Izdaci za komunikaciju i komunalne usluge | I22: 4000 | J22: 0 | K22: 4000 | N22: 0 | O22: 0
F23: 613400 | H23: Nabavka materijala i sitnog inventara | I23: 1000 | J23: 0 | K23: 1000 | N23: 0 | O23: 0
F24: 613500 | H24: Izdaci za usluge prijevoza i goriva | I24: 0 | J24: 0 | K24: 0 | N24: 0
F25: 613600 | H25: Unajmljivanje imovine, opreme i nemat.imovine | I25: 0 | J25: 0 | K25: 0 | N25: 0
F26: 613700 | H26: Izdaci za tekuće održavanje | I26: 500 | J26: 0 | K26: 500 | N26: 0 | O26: 0
F27: 613800 | H27: Izdaci osiguranja, bank. usluga i usluga p.p. | I27: 0 | J27: 0 | K27: 0 | N27: 0
F28: 613900 | H28: Ugovorene i druge posebne usluge | I28: 10000 | J28: 0 | K28: 10000 | N28: 0 | O28: 0
F29: 613900 | H29: Ugovorene i druge posebne usluge-volonteri (1) (0) | I29: 0 | J29: 0 | K29: 0 | N29: 0
F31: 821000 | H31: Izdaci za nabavku stalnih sredstava | I31: =I32+I33 -> 1000 | J31: 0 | K31: 1000 | L31: 0 | M31: 0 | N31: 0 | O31: 0
F32: 821200 | H32: Nabavka građevina | I32: 0 | J32: 0 | K32: =SUM(I32:J32) -> 0 | N32: =SUM(L32:M32) -> 0
F33: 821300 | H33: Nabavka opreme | I33: 1000 | J33: 0 | K33: 1000 | N33: 0 | O33: 0
H35: Ukupan broj zaposlenih: | I35: 3 | K35: 3
H36: Ukupno za potrošačku jedinicu: | I36: =I11+I16+I19+I31 -> 106580 | J36: 0 | K36: 106580 | L36: 0 | M36: 0 | N36: 0 | O36: 0
H37: Ukupno za proračunsku instituciju: | I37: =I36 -> 106580 | J37: 0 | K37: 106580 | L37: 0 | M37: 0 | N37: 0 | O37: 0
H38: Ukupno za ministarstvo (razdjel): | I38: 106580 | J38: 0 | K38: 106580 | L38: 0 | M38: 0 | N38: 0 | O38: 0
L39: =IF(L38>L5,"PROBIJEN LIMIT!!!","") -> 

Sheet 27
B1: PRORAČUNSKI ZAHTJEV ZA 2023. GODINU
M2: Datum zahtjeva:
B3: NAZIV RAZDJELA: | F3: KANTONALNO TUŽITELJSTVO POSAVSKOG KANTONA ORAŠJE
B5: RAZDJEL: | D5: 27 | I5: Gornja granica razdjela za stupac 12: | L5: 600190
B7: Ministarstvo (razdjel) | C7: Proračunska institucija | D7: Potrošačka jedinica | E7: Funkcija | F7: Ekon. kod | G7: Subanalitika | H7: OPIS | I7: PRORAČUN za 2022./ Izmjene i dopune | L7: ZAHTJEV za 2023. | O7: INDEKS
I8: iz prorač. sredstava | J8: iz ostalih izvora | K8: UKUPNO | L8: iz prorač. sredstava | M8: iz ostalih izvora | N8: UKUPNO
B9: 1 | C9: 2 | D9: 3 | E9: 4 | F9: 5 | G9: 6 | H9: 7 | I9: 8 | J9: 9 | K9: 10=8+9 | L9: 12 | M9: 13 | N9: 14=12+13 | O9: 15=14/10
B10: 27 | C10: 01 | D10: 0001 | E10: 0330 | H10: KANTONALNO TUŽITELJSTVO PK U ORAŠJU | O10: =IF(K10=0,"",N10/K10*100) -> 
F11: 611000 | H11: Plaće i naknade troškova zaposlenih | I11: =SUM(I12:I14) -> 376224 | J11: 32236 | K11: 408460 | L11: 0 | M11: 0 | N11: 0 | O11: 0
F12: 611100 | H12: Bruto plaće i naknade plaća | I12: 321192 | J12: 22608 | K12: =SUM(I12:J12) -> 343800 | N12: =SUM(L12:M12) -> 0 | O12: 0
F13: 611200 | H13: Naknade troškova zaposlenih | I13: 55032 | J13: 9628 | K13: =SUM(I13:J13) -> 64660 | N13: =SUM(L13:M13) -> 0 | O13: 0
F14: 611200 | H14: Naknade troškova zaposlenih - volonteri () | I14: 0 | J14: 0 | K14: 0 | N14: 0
F16: 612000 | H16: Doprinosi poslodavca i ostali doprinosi | I16: =I17 -> 34089 | J16: 3051 | K16: 37140 | L16: 0 | M16: 0 | N16: 0 | O16: 0
F17: 612100 | H17: Doprinosi poslodavca | I17: 34089 | J17: 3051 | K17: =SUM(I17:J17) -> 37140 | N17: =SUM(L17:M17) -> 0 | O17: 0
F19: 613000 | H19: Izdaci za materijal, sitan inv. i usluge | I19: =SUM(I20:I29) -> 71607 | J19: 3993 | K19: 75600 | L19: 0 | M19: 0 | N19: 0 | O19: 0
F20: 613100 | H20: Putni troškovi | I20: 1409 | J20: 391 | K20: =SUM(I20:J20) -> 1800 | N20: =SUM(L20:M20) -> 0 | O20: 0
F21: 613200 | H21: Izdaci za energiju | I21: 5300 | J21: 0 | K21: 5300 | N21: 0 | O21: 0
F22: 613300 | H22: Izdaci za komunikaciju i komunalne usluge | I22: 9200 | J22: 0 | K22: 9200 | N22: 0 | O22: 0
F23: 613400 | H23: Nabavka materijala i sitnog inventara | I23: 12000 | J23: 0 | K23: 12000 | N23: 0 | O23: 0
F24: 613500 | H24: Izdaci za usluge prijevoza i goriva | I24: 1800 | J24: 0 | K24: 1800 | N24: 0 | O24: 0
F25: 613600 | H25: Unajmljivanje imovine, opreme i nemat.imovine | I25: 0 | J25: 0 | K25: 0 | N25: 0
F26: 613700 | H26: Izdaci za tekuće održavanje | I26: 2000 | J26: 0 | K26: 2000 | N26: 0 | O26: 0
F27: 613800 | H27: Izdaci osiguranja, bank. usluga i usluga p.p. | I27: 500 | J27: 0 | K27: 500 | N27: 0 | O27: 0
F28: 613900 | H28: Ugovorene i druge posebne usluge | I28: 39398 | J28: 3602 | K28: 43000 | N28: 0 | O28: 0
F29: 613900 | H29: Ugovorene i druge posebne usluge-volonteri () | I29: 0 | J29: 0 | K29: 0 | N29: 0
F31: 821000 | H31: Izdaci za nabavku stalnih sredstava | I31: =I32+I33 -> 6000 | J31: 0 | K31: 6000 | L31: 0 | M31: 0 | N31: 0 | O31: 0
F32: 821200 | H32: Nabavka građevina | I32: 0 | J32: 0 | K32: =SUM(I32:J32) -> 0 | N32: =SUM(L32:M32) -> 0
F33: 821300 | H33: Nabavka opreme | I33: 6000 | J33: 0 | K33: 6000 | N33: 0 | O33: 0
H35: Ukupan broj zaposlenih: | I35: 11 | J35: 1 | K35: 12
H36: Ukupno za potrošačku jedinicu: | I36: =I11+I16+I19+I31 -> 487920 | J36: 39280 | K36: 527200 | L36: 0 | M36: 0 | N36: 0 | O36: 0
H37: Ukupno za proračunsku instituciju: | I37: =I36 -> 487920 | J37: 39280 | K37: 527200 | L37: 0 | M37: 0 | N37: 0 | O37: 0
H38: Ukupno za ministarstvo (razdjel): | I38: 487920 | J38: 39280 | K38: 527200 | L38: 0 | M38: 0 | N38: 0 | O38: 0
L39: =IF(L38>L5,"PROBIJEN LIMIT!!!","") ->  | O39: =IF(K39=0,"",N39/K39*100) -> 

Sheet 28
B1: PRORAČUNSKI ZAHTJEV ZA 2023. GODINU
M2: Datum zahtjeva:
B3: NAZIV RAZDJELA: | F3: ŽUPANIJSKA UPRAVA ZA INSPEKCIJSKE POSLOVE
B5: RAZDJEL: | D5: 28 | I5: Gornja granica razdjela za stupac 12: | L5: 609270
B7: Ministarstvo (razdjel) | C7: Proračunska institucija | D7: Potrošačka jedinica | E7: Funkcija | F7: Ekon. kod | G7: Subanalitika | H7: OPIS | I7: PRORAČUN za 2022./ Izmjene i dopune | L7: ZAHTJEV za 2023. | O7: INDEKS
I8: iz prorač. sredstava | J8: iz ostalih izvora | K8: UKUPNO | L8: iz prorač. sredstava | M8: iz ostalih izvora | N8: UKUPNO
B9: 1 | C9: 2 | D9: 3 | E9: 4 | F9: 5 | G9: 6 | H9: 7 | I9: 8 | J9: 9 | K9: 10=8+9 | L9: 12 | M9: 13 | N9: 14=12+13 | O9: 15=14/10
B10: 28 | C10: 01 | D10: 0001 | E10: 0490 | H10: ŽUP.UPRAVA ZA INSPEKCIJSKE POSLOVE | O10: =IF(K10=0,"",N10/K10*100) -> 
F11: 611000 | H11: Plaće i naknade troškova zaposlenih | I11: =SUM(I12:I14) -> 488660 | J11: 0 | K11: 488660 | L11: 0 | M11: 0 | N11: 0 | O11: 0
F12: 611100 | H12: Bruto plaće i naknade plaća | I12: 422890 | J12: 0 | K12: =SUM(I12:J12) -> 422890 | N12: =SUM(L12:M12) -> 0 | O12: 0
F13: 611200 | H13: Naknade troškova zaposlenih | I13: 65770 | J13: 0 | K13: =SUM(I13:J13) -> 65770 | N13: =SUM(L13:M13) -> 0 | O13: 0
F14: 611200 | H14: Naknade troškova zaposlenih - volonteri () | I14: 0 | J14: 0 | K14: 0 | N14: 0
F16: 612000 | H16: Doprinosi poslodavca i ostali doprinosi | I16: =I17 -> 45020 | J16: 0 | K16: 45020 | L16: 0 | M16: 0 | N16: 0 | O16: 0
F17: 612100 | H17: Doprinosi poslodavca | I17: 45020 | J17: 0 | K17: =SUM(I17:J17) -> 45020 | N17: =SUM(L17:M17) -> 0 | O17: 0
F19: 613000 | H19: Izdaci za materijal, sitan inv. i usluge | I19: =SUM(I20:I29) -> 34600 | J19: 0 | K19: 34600 | L19: 0 | M19: 0 | N19: 0 | O19: 0
F20: 613100 | H20: Putni troškovi | I20: 1300 | J20: 0 | K20: =SUM(I20:J20) -> 1300 | N20: =SUM(L20:M20) -> 0 | O20: 0
F21: 613200 | H21: Izdaci za energiju | I21: 8000 | J21: 0 | K21: 8000 | N21: 0 | O21: 0
F22: 613300 | H22: Izdaci za komunikaciju i komunalne usluge | I22: 8500 | J22: 0 | K22: 8500 | N22: 0 | O22: 0
F23: 613400 | H23: Nabavka materijala i sitnog inventara | I23: 1000 | J23: 0 | K23: 1000 | N23: 0 | O23: 0
F24: 613500 | H24: Izdaci za usluge prijevoza i goriva | I24: 6500 | J24: 0 | K24: 6500 | N24: 0 | O24: 0
F25: 613600 | H25: Unajmljivanje imovine, opreme i nemat.imovine | I25: 0 | J25: 0 | K25: 0 | N25: 0
F26: 613700 | H26: Izdaci za tekuće održavanje | I26: 4000 | J26: 0 | K26: 4000 | N26: 0 | O26: 0
F27: 613800 | H27: Izdaci osiguranja, bank. usluga i usluga p.p. | I27: 1800 | J27: 0 | K27: 1800 | N27: 0 | O27: 0
F28: 613900 | H28: Ugovorene i druge posebne usluge | I28: 3500 | J28: 0 | K28: 3500 | N28: 0 | O28: 0
F29: 613900 | H29: Ugovorene i druge posebne usluge-volonteri () | I29: 0 | J29: 0 | K29: 0 | N29: 0
F31: 821000 | H31: Izdaci za nabavku stalnih sredstava | I31: =SUM(I32:I33) -> 35000 | J31: 0 | K31: 35000 | L31: 0 | M31: 0 | N31: 0 | O31: 0
F32: 821200 | H32: Nabavka građevina | I32: 0 | J32: 0 | K32: =SUM(I32:J32) -> 0 | N32: =SUM(L32:M32) -> 0
F33: 821300 | H33: Nabavka opreme | I33: 35000 | J33: 0 | K33: 35000 | N33: 0 | O33: 0
H35: Ukupan broj zaposlenih: | I35: 14 | K35: 14
H36: Ukupno za potrošačku jedinicu: | I36: =I11+I16+I19+I31 -> 603280 | J36: 0 | K36: 603280 | L36: 0 | M36: 0 | N36: 0 | O36: 0
H37: Ukupno za proračunsku instituciju: | I37: =I36 -> 603280 | J37: 0 | K37: 603280 | L37: 0 | M37: 0 | N37: 0 | O37: 0
H38: Ukupno za ministarstvo (razdjel): | I38: 603280 | J38: 0 | K38: 603280 | L38: 0 | M38: 0 | N38: 0 | O38: 0
L39: =IF(L38>L5,"PROBIJEN LIMIT!!!","") -> 

Sheet List1
C3: II - RASHODI I IZDACI
B4: Ministarstvo (razdjel) | C4: Ekon. kod | D4: Subanalitika | E4: OPIS | F4: PRORAČUN za 2022./ Izmjene i dopune | I4: ZAHTJEV za 2023. | L4: INDEKS
F5: iz prorač. sredstava | G5: iz ostalih izvora | H5: UKUPNO | I5: iz prorač. sredstava | J5: iz ostalih izvora | K5: UKUPNO
B6: 1 | C6: 1 | E6: 2 | F6: 3 | G6: 4 | H6: 5 | I6: 6 | J6: 7 | K6: 8=6+7 | L6: 9=8/4
E7: UKUPNI IZDACI | F7: =F9+F15+F21+F25+F50+F90+F97+F101+F109 -> 49100195 | G7: 8392355 | H7: 57492550 | I7: 0 | J7: 0 | K7: 0 | L7: =IF(H7=0,"",K7/H7*100) -> 0
L8: =IF(F8=0,"",K8/F8*100) -> 
C9: 600000 | E9: Rashodi - Tekuća pričuva | F9: =F10+F11+F12+F13 -> 910000 | G9: =G10+G11+G12+G13 -> 0 | H9: 910000 | I9: =I10+I11+I12+I13 -> 0 | J9: =J10+J11+J12+J13 -> 0 | K9: =K10+K11+K12+K13 -> 0 | L9: =IF(H9=0,"",K9/H9*100) -> 0
C10: 600000 | E10: Tekuća pričuva Vlade | F10: ='11'!I12 -> 850000 | G10: ='11'!J12 -> 0 | H10: =SUM(F10,G10) -> 850000 | I10: ='11'!L12 -> 0 | J10: ='[3]2'!M9 -> 0 | K10: =SUM(I10,J10) -> 0 | L10: 0
C11: 600000 | E11: Tekuća pričuva predsjednika Vlade | F11: ='11'!I13 -> 30000 | G11: ='11'!J13 -> 0 | H11: =SUM(F11,G11) -> 30000 | I11: ='11'!L13 -> 0 | J11: ='[3]2'!M10 -> 0 | K11: 0 | L11: 0
C12: 600000 | E12: Tekuća pričuva zamjenika pred. Vlade | F12: ='11'!I14 -> 15000 | G12: ='11'!J14 -> 0 | H12: 15000 | I12: ='11'!L14 -> 0 | J12: ='[3]2'!M11 -> 0 | K12: 0 | L12: 0
C13: 600000 | E13: Tekuća pričuva ministra financija | F13: ='16'!I12 -> 15000 | G13: ='16'!J12 -> 0 | H13: 15000 | I13: ='16'!L12 -> 0 | J13: ='[3]16'!M9 -> 0 | K13: 0 | L13: 0
C15: 611000 | E15: Plaće i naknade troškova zaposlenih | F15: =F16+F17 -> 26589854 | G15: =G16+G17 -> 32236 | H15: 26622090 | I15: =I16+I17 -> 0 | J15: =J16+J17 -> 0 | K15: =K16+K17 -> 0 | L15: 0
C16: 611100 | E16: Bruto plaće i naknade plaća | F16: ='10'!I12+'11'!I17+'11'!I62+'11'!I93+'11'!I124+'11'!I155+'12'!I12+'13'!I12+'14'!I12+'14'!I45+'14'!I77+'14'!I108+'14'!I139+'14'!I170+'15'!I12+'16'!I15+'17'!I12+'18'!I12+'19'!I12+'20'!I12+'20'!I56+'20'!I87+'20'!I118+'20'!I149+'20'!I180+'20'!I211+'20'!I242+'20'!I273+'20'!I304+'20'!I335+'21'!I12+'22'!I12+'23'!I12+'24'!I12+'26'!I12+'27'!I12+'28'!I12 -> 22387502 | G16: ='10'!J12+'11'!J17+'11'!J62+'11'!J93+'11'!J124+'11'!J155+'12'!J12+'13'!J12+'14'!J12+'14'!J45+'14'!J77+'14'!J108+'14'!J139+'14'!J170+'15'!J12+'16'!J15+'17'!J12+'18'!J12+'19'!J12+'20'!J12+'20'!J56+'20'!J87+'20'!J118+'20'!J149+'20'!J180+'20'!J211+'20'!J242+'20'!J273+'20'!J304+'20'!J335+'21'!J12+'22'!J12+'23'!J12+'24'!J12+'26'!J12+'27'!J12+'28'!J12 -> 22608 | H16: =F16+G16 -> 22410110 | I16: ='10'!L12+'11'!L17+'11'!L62+'11'!L93+'11'!L124+'11'!L155+'12'!L12+'13'!L12+'14'!L12+'14'!L45+'14'!L77+'14'!L108+'14'!L139+'14'!L170+'15'!L12+'16'!L15+'17'!L12+'18'!L12+'19'!L12+'20'!L12+'20'!L56+'20'!L87+'20'!L118+'20'!L149+'20'!L180+'20'!L211+'20'!L242+'20'!L273+'20'!L304+'20'!L335+'21'!L12+'22'!L12+'23'!L12+'24'!L12+'26'!L12+'27'!L12+'28'!L12 -> 0 | J16: ='10'!M12+'11'!M17+'11'!M62+'11'!M93+'11'!M124+'11'!M155+'12'!M12+'13'!M12+'14'!M12+'14'!M45+'14'!M77+'14'!M108+'14'!M139+'14'!M170+'15'!M12+'16'!M15+'17'!M12+'18'!M12+'19'!M12+'20'!M12+'20'!M56+'20'!M87+'20'!M118+'20'!M149+'20'!M180+'20'!M211+'20'!M242+'20'!M273+'20'!M304+'20'!M335+'21'!M12+'22'!M12+'23'!M12+'24'!M12+'26'!M12+'27'!M12+'28'!M12 -> 0 | K16: =I16+J16 -> 0 | L16: 0
C17: 611200 | E17: Naknade troškova zaposlenih | F17: =F18+F19 -> 4202352 | G17: =G18+G19 -> 9628 | H17: =F17+G17 -> 4211980 | I17: 0 | J17: 0 | K17: 0 | L17: 0
C18: 611200 | E18: o/č Naknade troškova zaposlenih | F18: ='10'!I13+'11'!I18+'11'!I63+'11'!I94+'11'!I125+'11'!I156+'12'!I13+'13'!I13+'14'!I13+'14'!I46+'14'!I78+'14'!I109+'14'!I140+'14'!I171+'15'!I13+'16'!I16+'17'!I13+'18'!I13+'19'!I13+'20'!I13+'20'!I57+'20'!I88+'20'!I119+'20'!I150+'20'!I181+'20'!I212+'20'!I243+'20'!I274+'20'!I305+'20'!I336+'21'!I13+'22'!I13+'23'!I13+'24'!I13+'26'!I13+'27'!I13+'28'!I13 -> 4164762 | G18: ='10'!J13+'11'!J18+'11'!J63+'11'!J94+'11'!J125+'11'!J156+'12'!J13+'13'!J13+'14'!J13+'14'!J46+'14'!J78+'14'!J109+'14'!J140+'14'!J171+'15'!J13+'16'!J16+'17'!J13+'18'!J13+'19'!J13+'20'!J13+'20'!J57+'20'!J88+'20'!J119+'20'!J150+'20'!J181+'20'!J212+'20'!J243+'20'!J274+'20'!J305+'20'!J336+'21'!J13+'22'!J13+'23'!J13+'24'!J13+'26'!J13+'27'!J13+'28'!J13 -> 9628 | H18: 4174390 | I18: ='10'!L13+'11'!L18+'11'!L63+'11'!L94+'11'!L125+'11'!L156+'12'!L13+'13'!L13+'14'!L13+'14'!L46+'14'!L78+'14'!L109+'14'!L140+'14'!L171+'15'!L13+'16'!L16+'17'!L13+'18'!L13+'19'!L13+'20'!L13+'20'!L57+'20'!L88+'20'!L119+'20'!L150+'20'!L181+'20'!L212+'20'!L243+'20'!L274+'20'!L305+'20'!L336+'21'!L13+'22'!L13+'23'!L13+'24'!L13+'26'!L13+'27'!L13+'28'!L13 -> 0 | J18: ='10'!M13+'11'!M18+'11'!M63+'11'!M94+'11'!M125+'11'!M156+'12'!M13+'13'!M13+'14'!M13+'14'!M46+'14'!M78+'14'!M109+'14'!M140+'14'!M171+'15'!M13+'16'!M16+'17'!M13+'18'!M13+'19'!M13+'20'!M13+'20'!M57+'20'!M88+'20'!M119+'20'!M150+'20'!M181+'20'!M212+'20'!M243+'20'!M274+'20'!M305+'20'!M336+'21'!M13+'22'!M13+'23'!M13+'24'!M13+'26'!M13+'27'!M13+'28'!M13 -> 0 | K18: 0 | L18: 0
C19: 611200 | D19: BA6017 | E19: o/č Naknade troškova zaposlenih - volonteri (14) (10) | F19: ='10'!I14+'11'!I19+'11'!I64+'11'!I95+'11'!I126+'11'!I157+'12'!I14+'13'!I14+'14'!I14+'14'!I47+'14'!I79+'14'!I110+'14'!I141+'14'!I172+'15'!I14+'16'!I17+'17'!I14+'18'!I14+'19'!I14+'20'!I14+'20'!I58+'20'!I89+'20'!I120+'20'!I151+'20'!I182+'20'!I213+'20'!I244+'20'!I275+'20'!I306+'20'!I337+'21'!I14+'22'!I14+'23'!I14+'24'!I14+'26'!I14+'27'!I14+'28'!I14 -> 37590 | G19: ='10'!J14+'11'!J19+'11'!J64+'11'!J95+'11'!J126+'11'!J157+'12'!J14+'13'!J14+'14'!J14+'14'!J47+'14'!J79+'14'!J110+'14'!J141+'14'!J172+'15'!J14+'16'!J17+'17'!J14+'18'!J14+'19'!J14+'20'!J14+'20'!J58+'20'!J89+'20'!J120+'20'!J151+'20'!J182+'20'!J213+'20'!J244+'20'!J275+'20'!J306+'20'!J337+'21'!J14+'22'!J14+'23'!J14+'24'!J14+'26'!J14+'27'!J14+'28'!J14 -> 0 | H19: 37590 | I19: ='10'!L14+'11'!L19+'11'!L64+'11'!L95+'11'!L126+'11'!L157+'12'!L14+'13'!L14+'14'!L14+'14'!L47+'14'!L79+'14'!L110+'14'!L141+'14'!L172+'15'!L14+'16'!L17+'17'!L14+'18'!L14+'19'!L14+'20'!L14+'20'!L58+'20'!L89+'20'!L120+'20'!L151+'20'!L182+'20'!L213+'20'!L244+'20'!L275+'20'!L306+'20'!L337+'21'!L14+'22'!L14+'23'!L14+'24'!L14+'26'!L14+'27'!L14+'28'!L14 -> 0 | J19: ='10'!M14+'11'!M19+'11'!M64+'11'!M95+'11'!M126+'11'!M157+'12'!M14+'13'!M14+'14'!M14+'14'!M47+'14'!M79+'14'!M110+'14'!M141+'14'!M172+'15'!M14+'16'!M17+'17'!M14+'18'!M14+'19'!M14+'20'!M14+'20'!M58+'20'!M89+'20'!M120+'20'!M151+'20'!M182+'20'!M213+'20'!M244+'20'!M275+'20'!M306+'20'!M337+'21'!M14+'22'!M14+'23'!M14+'24'!M14+'26'!M14+'27'!M14+'28'!M14 -> 0 | K19: 0 | L19: 0
C21: 612000 | E21: Doprinosi poslodavca i ostali doprinosi | F21: =SUM(F22:F23) -> 2766959 | G21: =SUM(G22:G23) -> 3051 | H21: 2770010 | I21: 0 | J21: 0 | K21: 0 | L21: 0
C22: 612100 | E22: Doprinosi poslodavca | F22: ='10'!I17+'11'!I22+'11'!I67+'11'!I98+'11'!I129+'11'!I160+'12'!I17+'13'!I17+'14'!I17+'14'!I50+'14'!I82+'14'!I113+'14'!I144+'14'!I175+'15'!I17+'16'!I20+'17'!I17+'18'!I17+'19'!I17+'20'!I17+'20'!I61+'20'!I92+'20'!I123+'20'!I154+'20'!I185+'20'!I216+'20'!I247+'20'!I278+'20'!I309+'20'!I340+'21'!I17+'22'!I17+'23'!I17+'24'!I17+'26'!I17+'27'!I17+'28'!I17 -> 2666959 | G22: ='10'!J17+'11'!J22+'11'!J67+'11'!J98+'11'!J129+'11'!J160+'12'!J17+'13'!J17+'14'!J17+'14'!J50+'14'!J82+'14'!J113+'14'!J144+'14'!J175+'15'!J17+'16'!J20+'17'!J17+'18'!J17+'19'!J17+'20'!J17+'20'!J61+'20'!J92+'20'!J123+'20'!J154+'20'!J185+'20'!J216+'20'!J247+'20'!J278+'20'!J309+'20'!J340+'21'!J17+'22'!J17+'23'!J17+'24'!J17+'26'!J17+'27'!J17+'28'!J17 -> 3051 | H22: =F22+G22 -> 2670010 | I22: ='10'!L17+'11'!L22+'11'!L67+'11'!L98+'11'!L129+'11'!L160+'12'!L17+'13'!L17+'14'!L17+'14'!L50+'14'!L82+'14'!L113+'14'!L144+'14'!L175+'15'!L17+'16'!L20+'17'!L17+'18'!L17+'19'!L17+'20'!L17+'20'!L61+'20'!L92+'20'!L123+'20'!L154+'20'!L185+'20'!L216+'20'!L247+'20'!L278+'20'!L309+'20'!L340+'21'!L17+'22'!L17+'23'!L17+'24'!L17+'26'!L17+'27'!L17+'28'!L17 -> 0 | J22: ='10'!M17+'11'!M22+'11'!M67+'11'!M98+'11'!M129+'11'!M160+'12'!M17+'13'!M17+'14'!M17+'14'!M50+'14'!M82+'14'!M113+'14'!M144+'14'!M175+'15'!M17+'16'!M20+'17'!M17+'18'!M17+'19'!M17+'20'!M17+'20'!M61+'20'!M92+'20'!M123+'20'!M154+'20'!M185+'20'!M216+'20'!M247+'20'!M278+'20'!M309+'20'!M340+'21'!M17+'22'!M17+'23'!M17+'24'!M17+'26'!M17+'27'!M17+'28'!M17 -> 0 | K22: =I22+J22 -> 0 | L22: 0
C23: 612100 | D23: DA6001 | E23: Doprinosi za beneficirani radni staž 1996-1998 | F23: ='10'!I18+'11'!I23+'11'!I68+'11'!I99+'11'!I130+'11'!I161+'12'!I18+'13'!I18+'14'!I18+'14'!I51+'14'!I83+'14'!I114+'14'!I145+'14'!I176+'15'!I18+'16'!I21+'17'!I18+'18'!I18+'19'!I18+'20'!I18+'20'!I62+'20'!I93+'20'!I124+'20'!I155+'20'!I186+'20'!I217+'20'!I248+'20'!I279+'20'!I310+'20'!I341+'21'!I18+'22'!I18+'23'!I18+'24'!I18+'26'!I18+'27'!I18+'28'!I18 -> 100000 | G23: ='10'!J18+'11'!J23+'11'!J68+'11'!J99+'11'!J130+'11'!J161+'12'!J18+'13'!J18+'14'!J18+'14'!J51+'14'!J83+'14'!J114+'14'!J145+'14'!J176+'15'!J18+'16'!J21+'17'!J18+'18'!J18+'19'!J18+'20'!J18+'20'!J62+'20'!J93+'20'!J124+'20'!J155+'20'!J186+'20'!J217+'20'!J248+'20'!J279+'20'!J310+'20'!J341+'21'!J18+'22'!J18+'23'!J18+'24'!J18+'26'!J18+'27'!J18+'28'!J18 -> 0 | H23: 100000 | I23: ='10'!L18+'11'!L23+'11'!L68+'11'!L99+'11'!L130+'11'!L161+'12'!L18+'13'!L18+'14'!L18+'14'!L51+'14'!L83+'14'!L114+'14'!L145+'14'!L176+'15'!L18+'16'!L21+'17'!L18+'18'!L18+'19'!L18+'20'!L18+'20'!L62+'20'!L93+'20'!L124+'20'!L155+'20'!L186+'20'!L217+'20'!L248+'20'!L279+'20'!L310+'20'!L341+'21'!L18+'22'!L18+'23'!L18+'24'!L18+'26'!L18+'27'!L18+'28'!L18 -> 0 | J23: ='10'!M18+'11'!M23+'11'!M68+'11'!M99+'11'!M130+'11'!M161+'12'!M18+'13'!M18+'14'!M18+'14'!M51+'14'!M83+'14'!M114+'14'!M145+'14'!M176+'15'!M18+'16'!M21+'17'!M18+'18'!M18+'19'!M18+'20'!M18+'20'!M62+'20'!M93+'20'!M124+'20'!M155+'20'!M186+'20'!M217+'20'!M248+'20'!M279+'20'!M310+'20'!M341+'21'!M18+'22'!M18+'23'!M18+'24'!M18+'26'!M18+'27'!M18+'28'!M18 -> 0 | K23: 0 | L23: 0
C25: 613000 | E25: Izdaci za materijal, sitan inv. i usluge | F25: =F26+F27+F28+F29+F32+F33+F34+F37+F40 -> 5132672 | G25: =G26+G27+G28+G29+G32+G33+G34+G37+G40 -> 498858 | H25: 5631530 | I25: 0 | J25: 0 | K25: 0 | L25: 0
C26: 613100 | E26: Putni troškovi | F26: ='10'!I20+'11'!I25+'11'!I70+'11'!I101+'11'!I132+'11'!I163+'12'!I20+'13'!I21+'14'!I20+'14'!I53+'14'!I85+'14'!I116+'14'!I147+'14'!I178+'15'!I20+'16'!I23+'17'!I20+'18'!I20+'19'!I20+'20'!I20+'20'!I64+'20'!I95+'20'!I126+'20'!I157+'20'!I188+'20'!I219+'20'!I250+'20'!I281+'20'!I312+'20'!I343+'21'!I20+'22'!I20+'23'!I20+'24'!I20+'26'!I20+'27'!I20+'28'!I20 -> 132909 | G26: ='10'!J20+'11'!J25+'11'!J70+'11'!J101+'11'!J132+'11'!J163+'12'!J20+'13'!J21+'14'!J20+'14'!J53+'14'!J85+'14'!J116+'14'!J147+'14'!J178+'15'!J20+'16'!J23+'17'!J20+'18'!J20+'19'!J20+'20'!J20+'20'!J64+'20'!J95+'20'!J126+'20'!J157+'20'!J188+'20'!J219+'20'!J250+'20'!J281+'20'!J312+'20'!J343+'21'!J20+'22'!J20+'23'!J20+'24'!J20+'26'!J20+'27'!J20+'28'!J20 -> 391 | H26: =F26+G26 -> 133300 | I26: ='10'!L20+'11'!L25+'11'!L70+'11'!L101+'11'!L132+'11'!L163+'12'!L20+'13'!L21+'14'!L20+'14'!L53+'14'!L85+'14'!L116+'14'!L147+'14'!L178+'15'!L20+'16'!L23+'17'!L20+'18'!L20+'19'!L20+'20'!L20+'20'!L64+'20'!L95+'20'!L126+'20'!L157+'20'!L188+'20'!L219+'20'!L250+'20'!L281+'20'!L312+'20'!L343+'21'!L20+'22'!L20+'23'!L20+'24'!L20+'26'!L20+'27'!L20+'28'!L20 -> 0 | J26: ='10'!M20+'11'!M25+'11'!M70+'11'!M101+'11'!M132+'11'!M163+'12'!M20+'13'!M21+'14'!M20+'14'!M53+'14'!M85+'14'!M116+'14'!M147+'14'!M178+'15'!M20+'16'!M23+'17'!M20+'18'!M20+'19'!M20+'20'!M20+'20'!M64+'20'!M95+'20'!M126+'20'!M157+'20'!M188+'20'!M219+'20'!M250+'20'!M281+'20'!M312+'20'!M343+'21'!M20+'22'!M20+'23'!M20+'24'!M20+'26'!M20+'27'!M20+'28'!M20 -> 0 | K26: =I26+J26 -> 0 | L26: 0
C27: 613200 | E27: Izdaci za energiju | F27: ='10'!I21+'11'!I26+'11'!I71+'11'!I102+'11'!I133+'11'!I164+'12'!I21+'13'!I22+'14'!I21+'14'!I54+'14'!I86+'14'!I117+'14'!I148+'14'!I179+'15'!I21+'16'!I24+'17'!I21+'18'!I21+'19'!I21+'20'!I21+'20'!I65+'20'!I96+'20'!I127+'20'!I158+'20'!I189+'20'!I220+'20'!I251+'20'!I282+'20'!I313+'20'!I344+'21'!I21+'22'!I21+'23'!I21+'24'!I21+'26'!I21+'27'!I21+'28'!I21 -> 884300 | G27: ='10'!J21+'11'!J26+'11'!J71+'11'!J102+'11'!J133+'11'!J164+'12'!J21+'13'!J22+'14'!J21+'14'!J54+'14'!J86+'14'!J117+'14'!J148+'14'!J179+'15'!J21+'16'!J24+'17'!J21+'18'!J21+'19'!J21+'20'!J21+'20'!J65+'20'!J96+'20'!J127+'20'!J158+'20'!J189+'20'!J220+'20'!J251+'20'!J282+'20'!J313+'20'!J344+'21'!J21+'22'!J21+'23'!J21+'24'!J21+'26'!J21+'27'!J21+'28'!J21 -> 0 | H27: 884300 | I27: ='10'!L21+'11'!L26+'11'!L71+'11'!L102+'11'!L133+'11'!L164+'12'!L21+'13'!L22+'14'!L21+'14'!L54+'14'!L86+'14'!L117+'14'!L148+'14'!L179+'15'!L21+'16'!L24+'17'!L21+'18'!L21+'19'!L21+'20'!L21+'20'!L65+'20'!L96+'20'!L127+'20'!L158+'20'!L189+'20'!L220+'20'!L251+'20'!L282+'20'!L313+'20'!L344+'21'!L21+'22'!L21+'23'!L21+'24'!L21+'26'!L21+'27'!L21+'28'!L21 -> 0 | J27: ='10'!M21+'11'!M26+'11'!M71+'11'!M102+'11'!M133+'11'!M164+'12'!M21+'13'!M22+'14'!M21+'14'!M54+'14'!M86+'14'!M117+'14'!M148+'14'!M179+'15'!M21+'16'!M24+'17'!M21+'18'!M21+'19'!M21+'20'!M21+'20'!M65+'20'!M96+'20'!M127+'20'!M158+'20'!M189+'20'!M220+'20'!M251+'20'!M282+'20'!M313+'20'!M344+'21'!M21+'22'!M21+'23'!M21+'24'!M21+'26'!M21+'27'!M21+'28'!M21 -> 0 | K27: 0 | L27: 0
C28: 613300 | E28: Izdaci za komunikaciju i komunalne usluge | F28: ='10'!I22+'11'!I27+'11'!I72+'11'!I103+'11'!I134+'11'!I165+'12'!I22+'13'!I23+'14'!I22+'14'!I55+'14'!I87+'14'!I118+'14'!I149+'14'!I180+'15'!I22+'16'!I25+'17'!I22+'18'!I22+'19'!I22+'20'!I22+'20'!I66+'20'!I97+'20'!I128+'20'!I159+'20'!I190+'20'!I221+'20'!I252+'20'!I283+'20'!I314+'20'!I345+'21'!I22+'22'!I22+'23'!I22+'24'!I22+'26'!I22+'27'!I22+'28'!I22 -> 397050 | G28: ='10'!J22+'11'!J27+'11'!J72+'11'!J103+'11'!J134+'11'!J165+'12'!J22+'13'!J23+'14'!J22+'14'!J55+'14'!J87+'14'!J118+'14'!J149+'14'!J180+'15'!J22+'16'!J25+'17'!J22+'18'!J22+'19'!J22+'20'!J22+'20'!J66+'20'!J97+'20'!J128+'20'!J159+'20'!J190+'20'!J221+'20'!J252+'20'!J283+'20'!J314+'20'!J345+'21'!J22+'22'!J22+'23'!J22+'24'!J22+'26'!J22+'27'!J22+'28'!J22 -> 0 | H28: 397050 | I28: ='10'!L22+'11'!L27+'11'!L72+'11'!L103+'11'!L134+'11'!L165+'12'!L22+'13'!L23+'14'!L22+'14'!L55+'14'!L87+'14'!L118+'14'!L149+'14'!L180+'15'!L22+'16'!L25+'17'!L22+'18'!L22+'19'!L22+'20'!L22+'20'!L66+'20'!L97+'20'!L128+'20'!L159+'20'!L190+'20'!L221+'20'!L252+'20'!L283+'20'!L314+'20'!L345+'21'!L22+'22'!L22+'23'!L22+'24'!L22+'26'!L22+'27'!L22+'28'!L22 -> 0 | J28: ='10'!M22+'11'!M27+'11'!M72+'11'!M103+'11'!M134+'11'!M165+'12'!M22+'13'!M23+'14'!M22+'14'!M55+'14'!M87+'14'!M118+'14'!M149+'14'!M180+'15'!M22+'16'!M25+'17'!M22+'18'!M22+'19'!M22+'20'!M22+'20'!M66+'20'!M97+'20'!M128+'20'!M159+'20'!M190+'20'!M221+'20'!M252+'20'!M283+'20'!M314+'20'!M345+'21'!M22+'22'!M22+'23'!M22+'24'!M22+'26'!M22+'27'!M22+'28'!M22 -> 0 | K28: 0 | L28: 0
C29: 613400 | E29: Nabavka materijala i sitnog inventara | F29: =F30+F31 -> 737500 | G29: =G30+G31 -> 33500 | H29: 771000 | I29: 0 | J29: 0 | K29: 0 | L29: 0
C30: 613400 | E30: o/č Nabavka materijala i sitnog inventara | F30: ='10'!I23+'11'!I28+'11'!I73+'11'!I104+'11'!I135+'11'!I166+'12'!I23+'13'!I24+'14'!I181+'14'!I150+'14'!I119+'14'!I88+'14'!I56+'14'!I23+'15'!I23+'16'!I26+'17'!I23+'18'!I23+'19'!I23+'20'!I23+'20'!I67+'20'!I98+'20'!I129+'20'!I160+'20'!I191+'20'!I222+'20'!I253+'20'!I284+'20'!I315+'20'!I346+'21'!I23+'22'!I23+'23'!I23+'24'!I23+'26'!I23+'27'!I23+'28'!I23 -> 549500 | G30: ='10'!J23+'11'!J28+'11'!J73+'11'!J104+'11'!J135+'11'!J166+'12'!J23+'13'!J24+'14'!J181+'14'!J150+'14'!J119+'14'!J88+'14'!J56+'14'!J23+'15'!J23+'16'!J26+'17'!J23+'18'!J23+'19'!J23+'20'!J23+'20'!J67+'20'!J98+'20'!J129+'20'!J160+'20'!J191+'20'!J222+'20'!J253+'20'!J284+'20'!J315+'20'!J346+'21'!J23+'22'!J23+'23'!J23+'24'!J23+'26'!J23+'27'!J23+'28'!J23 -> 33500 | H30: 583000 | I30: ='10'!L23+'11'!L28+'11'!L73+'11'!L104+'11'!L135+'11'!L166+'12'!L23+'13'!L24+'14'!L181+'14'!L150+'14'!L119+'14'!L88+'14'!L56+'14'!L23+'15'!L23+'16'!L26+'17'!L23+'18'!L23+'19'!L23+'20'!L23+'20'!L67+'20'!L98+'20'!L129+'20'!L160+'20'!L191+'20'!L222+'20'!L253+'20'!L284+'20'!L315+'20'!L346+'21'!L23+'22'!L23+'23'!L23+'24'!L23+'26'!L23+'27'!L23+'28'!L23 -> 0 | J30: ='10'!M23+'11'!M28+'11'!M73+'11'!M104+'11'!M135+'11'!M166+'12'!M23+'13'!M24+'14'!M181+'14'!M150+'14'!M119+'14'!M88+'14'!M56+'14'!M23+'15'!M23+'16'!M26+'17'!M23+'18'!M23+'19'!M23+'20'!M23+'20'!M67+'20'!M98+'20'!M129+'20'!M160+'20'!M191+'20'!M222+'20'!M253+'20'!M284+'20'!M315+'20'!M346+'21'!M23+'22'!M23+'23'!M23+'24'!M23+'26'!M23+'27'!M23+'28'!M23 -> 0 | K30: 0 | L30: 0
C31: 613400 | D31: KA6014 | E31: o/č Nabavka mat.i sitn.invent.-obroci za učenike I-V razreda osnovnih škola | F31: ='20'!I24 -> 188000 | G31: ='20'!J24 -> 0 | H31: 188000 | I31: ='20'!L24 -> 0 | J31: ='20'!M24 -> 0 | K31: 0 | L31: 0
C32: 613500 | E32: Izdaci za usluge prijevoza i goriva | F32: ='10'!I24+'11'!I29+'11'!I74+'11'!I105+'11'!I136+'11'!I167+'12'!I24+'13'!I25+'14'!I24+'14'!I89+'14'!I120+'14'!I151+'14'!I182+'14'!I57+'15'!I24+'16'!I27+'17'!I24+'18'!I24+'19'!I24+'20'!I25+'20'!I68+'20'!I99+'20'!I130+'20'!I161+'20'!I192+'20'!I223+'20'!I254+'20'!I285+'20'!I316+'20'!I347+'21'!I24+'22'!I24+'23'!I24+'24'!I24+'26'!I24+'27'!I24+'28'!I24 -> 278900 | G32: ='10'!J24+'11'!J29+'11'!J74+'11'!J105+'11'!J136+'11'!J167+'12'!J24+'13'!J25+'14'!J24+'14'!J89+'14'!J120+'14'!J151+'14'!J182+'14'!J57+'15'!J24+'16'!J27+'17'!J24+'18'!J24+'19'!J24+'20'!J25+'20'!J68+'20'!J99+'20'!J130+'20'!J161+'20'!J192+'20'!J223+'20'!J254+'20'!J285+'20'!J316+'20'!J347+'21'!J24+'22'!J24+'23'!J24+'24'!J24+'26'!J24+'27'!J24+'28'!J24 -> 6500 | H32: 285400 | I32: ='10'!L24+'11'!L29+'11'!L74+'11'!L105+'11'!L136+'11'!L167+'12'!L24+'13'!L25+'14'!L24+'14'!L89+'14'!L120+'14'!L151+'14'!L182+'14'!L57+'15'!L24+'16'!L27+'17'!L24+'18'!L24+'19'!L24+'20'!L25+'20'!L68+'20'!L99+'20'!L130+'20'!L161+'20'!L192+'20'!L223+'20'!L254+'20'!L285+'20'!L316+'20'!L347+'21'!L24+'22'!L24+'23'!L24+'24'!L24+'26'!L24+'27'!L24+'28'!L24 -> 0 | J32: ='10'!M24+'11'!M29+'11'!M74+'11'!M105+'11'!M136+'11'!M167+'12'!M24+'13'!M25+'14'!M24+'14'!M89+'14'!M120+'14'!M151+'14'!M182+'14'!M57+'15'!M24+'16'!M27+'17'!M24+'18'!M24+'19'!M24+'20'!M25+'20'!M68+'20'!M99+'20'!M130+'20'!M161+'20'!M192+'20'!M223+'20'!M254+'20'!M285+'20'!M316+'20'!M347+'21'!M24+'22'!M24+'23'!M24+'24'!M24+'26'!M24+'27'!M24+'28'!M24 -> 0 | K32: 0 | L32: 0
C33: 613600 | E33: Unajmljivanje imovine, opreme i nemat.imovine | F33: ='10'!I25+'11'!I30+'11'!I75+'11'!I106+'11'!I137+'11'!I168+'12'!I25+'13'!I26+'14'!I25+'15'!I25+'16'!I28+'17'!I25+'18'!I25+'19'!I25+'20'!I26+'20'!I69+'20'!I100+'20'!I131+'20'!I162+'20'!I193+'20'!I224+'20'!I255+'20'!I286+'20'!I317+'20'!I348+'21'!I25+'22'!I25+'23'!I25+'24'!I25+'26'!I25+'27'!I25+'28'!I25 -> 34000 | G33: ='10'!J25+'11'!J30+'11'!J75+'11'!J106+'11'!J137+'11'!J168+'12'!J25+'13'!J26+'14'!J25+'15'!J25+'16'!J28+'17'!J25+'18'!J25+'19'!J25+'20'!J26+'20'!J69+'20'!J100+'20'!J131+'20'!J162+'20'!J193+'20'!J224+'20'!J255+'20'!J286+'20'!J317+'20'!J348+'21'!J25+'22'!J25+'23'!J25+'24'!J25+'26'!J25+'27'!J25+'28'!J25 -> 0 | H33: 34000 | I33: ='10'!L25+'11'!L30+'11'!L75+'11'!L106+'11'!L137+'11'!L168+'12'!L25+'13'!L26+'14'!L25+'15'!L25+'16'!L28+'17'!L25+'18'!L25+'19'!L25+'20'!L26+'20'!L69+'20'!L100+'20'!L131+'20'!L162+'20'!L193+'20'!L224+'20'!L255+'20'!L286+'20'!L317+'20'!L348+'21'!L25+'22'!L25+'23'!L25+'24'!L25+'26'!L25+'27'!L25+'28'!L25 -> 0 | J33: ='[3]1'!M22+'[3]2'!M27+'[3]6'!M22+'[3]3'!M22+'[3]4'!M22+'[3]7'!M22+'[3]8'!M23+'[3]9'!M22+'[3]10'!M22+'[3]11'!M22+'[3]12'!M22+'[3]13'!M22+'[3]15'!M22+'[3]16'!M25+'[3]17'!M22+'[3]18'!M22+'[3]19'!M22+'[3]20'!M23+'[3]22'!M22+'[3]23'!M22+'[3]21'!M22+'[3]24'!M22+'[3]25'!M22+'[3]26'!M22+'[3]27'!M22+'[3]28'!M22+'[3]29'!M22+'[3]30'!M22+'[3]31'!M22+'[3]32'!M22+'[3]33'!M22+'[3]34'!M22+'[3]35'!M22+'[3]36'!M22+'[3]37'!M22+'[3]5'!M22+'[3]14'!M22 -> 0 | K33: 0 | L33: 0
C34: 613700 | E34: Izdaci za tekuće održavanje | F34: =F35+F36 -> 394250 | G34: =G35+G36 -> 436000 | H34: 830250 | I34: 0 | J34: 0 | K34: 0 | L34: 0
C35: 613700 | E35: o/č Izdaci za tekuće održavanje | F35: ='10'!I26+'11'!I31+'11'!I76+'11'!I107+'11'!I138+'11'!I169+'12'!I26+'13'!I27+'14'!I26+'14'!I59+'14'!I91+'14'!I122+'14'!I153+'14'!I184+'15'!I26+'16'!I29+'17'!I26+'18'!I26+'19'!I26+'20'!I27+'20'!I70+'20'!I101+'20'!I132+'20'!I163+'20'!I194+'20'!I225+'20'!I256+'20'!I287+'20'!I318+'20'!I349+'21'!I26+'22'!I26+'23'!I26+'24'!I26+'26'!I26+'27'!I26+'28'!I26 -> 394250 | G35: ='10'!J26+'11'!J31+'11'!J76+'11'!J107+'11'!J138+'11'!J169+'12'!J26+'13'!J27+'14'!J26+'14'!J59+'14'!J91+'14'!J122+'14'!J153+'14'!J184+'15'!J26+'16'!J29+'17'!J26+'18'!J26+'19'!J26+'20'!J27+'20'!J70+'20'!J101+'20'!J132+'20'!J163+'20'!J194+'20'!J225+'20'!J256+'20'!J287+'20'!J318+'20'!J349+'21'!J26+'22'!J26+'23'!J26+'24'!J26+'26'!J26+'27'!J26+'28'!J26 -> 16000 | H35: 410250 | I35: ='10'!L26+'11'!L31+'11'!L76+'11'!L107+'11'!L138+'11'!L169+'12'!L26+'13'!L27+'14'!L26+'14'!L59+'14'!L91+'14'!L122+'14'!L153+'14'!L184+'15'!L26+'16'!L29+'17'!L26+'18'!L26+'19'!L26+'20'!L27+'20'!L70+'20'!L101+'20'!L132+'20'!L163+'20'!L194+'20'!L225+'20'!L256+'20'!L287+'20'!L318+'20'!L349+'21'!L26+'22'!L26+'23'!L26+'24'!L26+'26'!L26+'27'!L26+'28'!L26 -> 0 | J35: ='10'!M26+'11'!M31+'11'!M76+'11'!M107+'11'!M138+'11'!M169+'12'!M26+'13'!M27+'14'!M26+'14'!M59+'14'!M91+'14'!M122+'14'!M153+'14'!M184+'15'!M26+'16'!M29+'17'!M26+'18'!M26+'19'!M26+'20'!M27+'20'!M70+'20'!M101+'20'!M132+'20'!M163+'20'!M194+'20'!M225+'20'!M256+'20'!M287+'20'!M318+'20'!M349+'21'!M26+'22'!M26+'23'!M26+'24'!M26+'26'!M26+'27'!M26+'28'!M26 -> 0 | K35: 0 | L35: 0
C36: 613700 | D36: IA6004 | E36: o/č Tekuće održavanje cesta | F36: ='18'!I27 -> 0 | G36: ='18'!J27 -> 420000 | H36: 420000 | I36: ='18'!L27 -> 0 | J36: ='18'!M27 -> 0 | K36: 0 | L36: 0
C37: 613800 | E37: Izdaci osiguranja, bank. usluga i usluga p.p. | F37: =F38+F39 -> 87190 | G37: =G38+G39 -> 4000 | H37: 91190 | I37: 0 | J37: 0 | K37: 0 | L37: 0
C38: 613800 | E38: o/č Izdaci osiguranja, bank. usluga i usluga p.p. | F38: ='10'!I27+'11'!I32+'11'!I77+'11'!I108+'11'!I139+'11'!I170+'12'!I27+'13'!I28+'14'!I60+'14'!I27+'14'!I92+'14'!I123+'14'!I154+'14'!I185+'15'!I27+'16'!I30+'17'!I27+'18'!I28+'19'!I27+'20'!I28+'20'!I71+'20'!I102+'20'!I133+'20'!I164+'20'!I195+'20'!I226+'20'!I257+'20'!I288+'20'!I319+'20'!I350+'21'!I27+'22'!I27+'23'!I27+'24'!I27+'26'!I27+'27'!I27+'28'!I27 -> 87190 | G38: ='10'!J27+'11'!J32+'11'!J77+'11'!J108+'11'!J139+'11'!J170+'12'!J27+'13'!J28+'14'!J60+'14'!J27+'14'!J92+'14'!J123+'14'!J154+'14'!J185+'15'!J27+'16'!J30+'17'!J27+'18'!J28+'19'!J27+'20'!J28+'20'!J71+'20'!J102+'20'!J133+'20'!J164+'20'!J195+'20'!J226+'20'!J257+'20'!J288+'20'!J319+'20'!J350+'21'!J27+'22'!J27+'23'!J27+'24'!J27+'26'!J27+'27'!J27+'28'!J27 -> 4000 | H38: 91190 | I38: ='10'!L27+'11'!L32+'11'!L77+'11'!L108+'11'!L139+'11'!L170+'12'!L27+'13'!L28+'14'!L60+'14'!L27+'14'!L92+'14'!L123+'14'!L154+'14'!L185+'15'!L27+'16'!L30+'17'!L27+'18'!L28+'19'!L27+'20'!L28+'20'!L71+'20'!L102+'20'!L133+'20'!L164+'20'!L195+'20'!L226+'20'!L257+'20'!L288+'20'!L319+'20'!L350+'21'!L27+'22'!L27+'23'!L27+'24'!L27+'26'!L27+'27'!L27+'28'!L27 -> 0 | J38: ='10'!M27+'11'!M32+'11'!M77+'11'!M108+'11'!M139+'11'!M170+'12'!M27+'13'!M28+'14'!M60+'14'!M27+'14'!M92+'14'!M123+'14'!M154+'14'!M185+'15'!M27+'16'!M30+'17'!M27+'18'!M28+'19'!M27+'20'!M28+'20'!M71+'20'!M102+'20'!M133+'20'!M164+'20'!M195+'20'!M226+'20'!M257+'20'!M288+'20'!M319+'20'!M350+'21'!M27+'22'!M27+'23'!M27+'24'!M27+'26'!M27+'27'!M27+'28'!M27 -> 0 | K38: 0 | L38: 0
C39: 613800 | E39: o/č Izdaci za negativne tečajne razlike | F39: ='[3]20'!I26 -> 0 | G39: ='[3]20'!J26 -> 0 | H39: 0 | I39: ='[3]20'!L26 -> 0 | J39: ='[3]20'!M26 -> 0 | K39: 0
C40: 613900 | E40: Ugovorene i druge posebne usluge | F40: =SUM(F41:F48) -> 2186573 | G40: 18467 | H40: 2205040 | I40: 0 | J40: 0 | K40: 0 | L40: 0
C41: 613900 | E41: o/č Ugovorene i druge posebne usluge | F41: ='10'!I28+'11'!I33+'11'!I78+'11'!I109+'11'!I140+'11'!I171+'12'!I28+'13'!I29+'14'!I28+'14'!I61+'14'!I93+'14'!I124+'14'!I155+'14'!I186+'15'!I28+'16'!I31+'17'!I28+'18'!I29+'19'!I28+'20'!I30+'20'!I72+'20'!I103+'20'!I134+'20'!I165+'20'!I196+'20'!I227+'20'!I258+'20'!I289+'20'!I320+'20'!I351+'21'!I28+'22'!I28+'23'!I28+'24'!I28+'26'!I28+'27'!I28+'28'!I28 -> 1620298 | G41: ='10'!J28+'11'!J33+'11'!J78+'11'!J109+'11'!J140+'11'!J171+'12'!J28+'13'!J29+'14'!J28+'14'!J61+'14'!J93+'14'!J124+'14'!J155+'14'!J186+'15'!J28+'16'!J31+'17'!J28+'18'!J29+'19'!J28+'20'!J30+'20'!J72+'20'!J103+'20'!J134+'20'!J165+'20'!J196+'20'!J227+'20'!J258+'20'!J289+'20'!J320+'20'!J351+'21'!J28+'22'!J28+'23'!J28+'24'!J28+'26'!J28+'27'!J28+'28'!J28 -> 13602 | H41: 1633900 | I41: ='10'!L28+'11'!L33+'11'!L78+'11'!L109+'11'!L140+'11'!L171+'12'!L28+'13'!L29+'14'!L28+'14'!L61+'14'!L93+'14'!L124+'14'!L155+'14'!L186+'15'!L28+'16'!L31+'17'!L28+'18'!L29+'19'!L28+'20'!L30+'20'!L72+'20'!L103+'20'!L134+'20'!L165+'20'!L196+'20'!L227+'20'!L258+'20'!L289+'20'!L320+'20'!L351+'21'!L28+'22'!L28+'23'!L28+'24'!L28+'26'!L28+'27'!L28+'28'!L28 -> 0 | J41: ='10'!M28+'11'!M33+'11'!M78+'11'!M109+'11'!M140+'11'!M171+'12'!M28+'13'!M29+'14'!M28+'14'!M61+'14'!M93+'14'!M124+'14'!M155+'14'!M186+'15'!M28+'16'!M31+'17'!M28+'18'!M29+'19'!M28+'20'!M30+'20'!M72+'20'!M103+'20'!M134+'20'!M165+'20'!M196+'20'!M227+'20'!M258+'20'!M289+'20'!M320+'20'!M351+'21'!M28+'22'!M28+'23'!M28+'24'!M28+'26'!M28+'27'!M28+'28'!M28 -> 0 | K41: 0 | L41: 0
C42: 613900 | D42: EA6001 | E42: o/č Povjerenstva po Zakonu o drž.službenicima i namještenic. | F42: ='14'!I29 -> 44500 | G42: ='14'!J29 -> 0 | H42: 44500 | I42: ='14'!L29 -> 0 | J42: ='14'!M29 -> 0 | K42: 0 | L42: 0
C43: 613900 | D43: EA6002 | E43: o/č Ugovorene i dr.pos.usluge - troškovi izvršenja mjere pritvora | F43: ='14'!I30 -> 85000 | G43: ='14'!J30 -> 0 | H43: 85000 | I43: ='14'!L30 -> 0 | J43: ='14'!M30 -> 0 | K43: 0 | L43: 0
C44: 613900 | D44: GA6003 | E44: o/č Potpora riznici | F44: ='16'!I32 -> 234540 | G44: ='16'!J32 -> 0 | H44: 234540 | I44: ='16'!L32 -> 0 | J44: ='16'!M32 -> 0 | K44: 0 | L44: 0
C45: 613900 | D45: KA6007 | E45: o/č Vozački ispiti-vlastiti prihodi | F45: ='20'!I31 -> 55000 | G45: ='20'!J31 -> 0 | H45: 55000 | I45: ='20'!L31 -> 0 | J45: ='20'!M31 -> 0 | K45: 0 | L45: 0
C46: 613900 | D46: BA6017 | E46: o/č Ugovorene i druge posebne usluge-volont.rad (14) (10) | F46: ='11'!I34 -> 35000 | G46: ='11'!J34 -> 0 | H46: 35000 | I46: ='11'!L34 -> 0 | J46: ='11'!M34 -> 0 | K46: 0 | L46: 0
C47: 613900 | D47: BA6021 | E47: o/č Ugov.i dr.poseb.usluge-sufinanciranje prijema vježbenika | F47: ='11'!I35 -> 87000 | G47: ='11'!J35 -> 0 | H47: 87000 | I47: ='11'!L35 -> 0 | J47: ='11'!M35 -> 0 | K47: 0 | L47: 0
C48: 613900 | D48: FA6002 | E48: o/č Ugovorene i druge posebne usluge-prostorni plan | F48: ='15'!I30 -> 25235 | G48: ='15'!J30 -> 4865 | H48: 30100 | I48: ='15'!L30 -> 0 | J48: ='15'!M30 -> 0 | K48: 0 | L48: 0
C50: 614000 | E50: Tekući grantovi i drugi tekući rashodi | F50: =F51+F60+F69+F81+F86 -> 12111790 | G50: 3848210 | H50: 15960000 | I50: 0 | J50: 0 | K50: 0 | L50: 0
C51: 614100 | E51: Tekući grantovi drugim razinama vlasti i fondovima | F51: =SUM(F52:F59) -> 1885000 | G51: 2180000 | H51: =F51+G51 -> 4065000 | I51: 0 | J51: 0 | K51: =I51+J51 -> 0 | L51: 0
C52: 614100 | D52: BA6014 | E52: o/č Grant za Sveučilište u Mostaru | F52: ='11'!I38 -> 300000 | G52: ='11'!J38 -> 0 | H52: 300000 | I52: ='11'!L38 -> 0 | J52: ='11'!M38 -> 0 | K52: 0 | L52: 0
C53: 614100 | D53: FA6003 | E53: o/č Grant za razvoj turizma | F53: ='15'!I33 -> 50000 | G53: ='15'!J33 -> 0 | H53: 50000 | I53: ='15'!L33 -> 0 | J53: ='15'!M33 -> 0 | K53: 0 | L53: 0
C54: 614100 | D54: GA6002 | E54: o/č Grant nižim razinama vlasti | F54: ='16'!I36 -> 1000000 | G54: ='16'!J36 -> 300000 | H54: 1300000 | I54: ='16'!L36 -> 0 | J54: ='16'!M36 -> 0 | K54: 0 | L54: 0
C55: 614100 | E55: o/č Grant za zdravstvene institucije i centre za soc.rad | F55: ='17'!I32 -> 0 | G55: ='17'!J32 -> 1500000 | H55: 1500000 | I55: ='17'!L32 -> 0 | J55: ='17'!M32 -> 0 | K55: 0 | L55: 0
C56: 614100 | D56: IA6002 | E56: o/č Grant za zaštitu okoliša | F56: ='18'!I33 -> 0 | G56: ='18'!J33 -> 280000 | H56: 280000 | I56: ='18'!L33 -> 0 | J56: ='18'!M33 -> 0 | K56: 0 | L56: 0
C57: 614100 | D57: JA6008 | E57: o/č Grant za šumarstvo | F57: ='19'!I32 -> 0 | G57: ='19'!J32 -> 100000 | H57: 100000 | I57: ='19'!L32 -> 0 | J57: ='19'!M32 -> 0 | K57: 0 | L57: 0
C58: 614100 | D58: KA6004 | E58: o/č Grant za financiranje visokog obrazovanja | F58: ='20'!I35 -> 165000 | G58: ='20'!J35 -> 0 | H58: 165000 | I58: ='20'!L35 -> 0 | J58: ='20'!M35 -> 0 | K58: 0 | L58: 0
C59: 614100 | D59: KA6009 | E59: o/č Grant za sufinanciranje prijevoza učenika | F59: ='20'!I36 -> 370000 | G59: ='20'!J36 -> 0 | H59: 370000 | I59: ='20'!L36 -> 0 | J59: ='20'!M36 -> 0 | K59: 0 | L59: 0
C60: 614200 | E60: Tekući grantovi pojedincima | F60: =SUM(F61:F68) -> 6018680 | G60: =SUM(G61:G68) -> 336320 | H60: 6355000 | I60: 0 | J60: 0 | K60: 0 | L60: 0
C61: 614200 | D61: BA6016 | E61: o/č Grant za sufinanciranje nabavke udžbenika učenicima | F61: ='11'!I39 -> 290000 | G61: ='11'!J39 -> 0 | H61: 290000 | I61: ='11'!L39 -> 0 | J61: ='11'!M39 -> 0 | K61: 0 | L61: 0
C62: 614200 | D62: BA6020 | E62: o/č Grant za pomoć pri stambenom zbrinjavanju mladih obitelji socijalnih kategorija | F62: ='11'!I175 -> 150000 | G62: ='11'!J175 -> 0 | H62: 150000 | I62: ='11'!L175 -> 0 | J62: ='11'!M175 -> 0 | K62: 0 | L62: 0
C63: 614200 | D63: HA6003 | E63: o/č Grant za zdravstvene potrebe | F63: ='17'!I33 -> 65000 | G63: ='17'!J33 -> 0 | H63: 65000 | I63: ='17'!L33 -> 0 | J63: ='17'!M33 -> 0 | K63: 0 | L63: 0
C64: 614200 | D64: HA6004 | E64: o/č Grant za socijalne potrebe | F64: ='17'!I34 -> 3543680 | G64: ='17'!J34 -> 226320 | H64: 3770000 | I64: ='17'!L34 -> 0 | J64: ='17'!M34 -> 0 | K64: 0 | L64: 0
C65: 614200 | D65: KA6003 | E65: o/č Isplate stipendija | F65: ='20'!I37 -> 150000 | G65: ='20'!J37 -> 0 | H65: 150000 | I65: ='20'!L37 -> 0 | J65: ='20'!M37 -> 0 | K65: 0 | L65: 0
C66: 614200 | D66: KA6008 | E66: o/č Grant za sufinanciranje osn.i srednjeg obrazovanja djece s posebnim potrebama | F66: ='20'!I38 -> 20000 | G66: ='20'!J38 -> 0 | H66: 20000 | I66: ='20'!L38 -> 0 | J66: ='20'!M38 -> 0 | K66: 0 | L66: 0
C67: 614200 | D67: LA6001 | E67: o/č Grant za branitelje i stradalnike dom. rata | F67: ='21'!I32 -> 1800000 | G67: ='21'!J32 -> 0 | H67: 1800000 | I67: ='21'!L32 -> 0 | J67: ='21'!M32 -> 0 | K67: 0 | L67: 0
C68: 614200 | D68: NA6002 | E68: o/č Grant za zaštitu od prirodnih i drugih nesreća | F68: ='23'!I32 -> 0 | G68: ='23'!J32 -> 110000 | H68: 110000 | I68: ='23'!L32 -> 0 | J68: ='23'!M32 -> 0 | K68: 0 | L68: 0
C69: 614300 | E69: Tekući grantovi neprofitnim organizacijama | F69: =SUM(F70:F80) -> 1600000 | G69: =SUM(G70:G80) -> 0 | H69: 1600000 | I69: 0 | J69: 0 | K69: 0 | L69: 0
C70: 614300 | D70: BA6019 | E70: o/č Grant političkim strankama | F70: ='11'!I44 -> 140000 | G70: ='11'!J44 -> 0 | H70: 140000 | I70: ='11'!L44 -> 0 | J70: ='11'!M44 -> 0 | K70: 0 | L70: 0
C71: 614300 | D71: BA6001 | E71: o/č Grant neprofitnim organizacijama i udrugama građana | F71: ='11'!I40 -> 70000 | G71: ='11'!J40 -> 0 | H71: 70000 | I71: ='11'!L40 -> 0 | J71: ='11'!M40 -> 0 | K71: 0 | L71: 0
C72: 614300 | D72: BA6008 | E72: o/č Grant za Crveni križ Županije Posavske | F72: ='11'!I41 -> 30000 | G72: ='11'!J41 -> 0 | H72: 30000 | I72: ='11'!L41 -> 0 | J72: ='11'!M41 -> 0 | K72: 0 | L72: 0
C73: 614300 | D73: BA6007 | E73: o/č Grant za Gospodarsku komoru ŽP | F73: ='11'!I42 -> 35000 | G73: ='11'!J42 -> 0 | H73: 35000 | I73: ='11'!L42 -> 0 | J73: ='11'!M42 -> 0 | K73: 0 | L73: =IF(H73=0,"",K73/H73*100) -> 0
C74: 614300 | D74: BA6018 | E74: o/č Grant za Obrtničku komoru ŽP | F74: ='11'!I43 -> 15000 | G74: ='11'!J43 -> 0 | H74: 15000 | I74: ='11'!L43 -> 0 | J74: ='11'!M43 -> 0 | K74: 0 | L74: 0
C75: 614300 | D75: HA6005 | E75: o/č Grant za udruge roditelja djece s posebnim potrebama | F75: ='17'!I35 -> 100000 | G75: ='17'!J35 -> 0 | H75: 100000 | I75: ='17'!L35 -> 0 | J75: ='17'!M35 -> 0 | K75: 0 | L75: 0
C76: 614300 | D76: KA6001 | E76: o/č Grant za informiranje | F76: ='20'!I39 -> 370000 | G76: ='20'!J39 -> 0 | H76: 370000 | I76: ='20'!L39 -> 0 | J76: ='20'!M39 -> 0 | K76: 0 | L76: 0
C77: 614300 | D77: KA6006 | E77: o/č Grant za financiranje vjerskih zajednica | F77: ='20'!I40 -> 340000 | G77: ='20'!J40 -> 0 | H77: 340000 | I77: ='20'!L40 -> 0 | J77: ='20'!M40 -> 0 | K77: 0 | L77: 0
C78: 614300 | D78: NA6003 | E78: o/č Grant za sufinanciranje profesionalne vatrogasne postrojbe | F78: ='23'!I33 -> 0 | G78: ='23'!J33 -> 0 | H78: 0 | I78: ='23'!L33 -> 0 | J78: ='23'!M33 -> 0 | K78: 0
C79: 614300 | D79: KA6012 | E79: o/č Grant za sport | F79: ='20'!I41 -> 350000 | G79: ='20'!J41 -> 0 | H79: 350000 | I79: ='20'!L41 -> 0 | J79: ='20'!M41 -> 0 | K79: 0 | L79: 0
C80: 614300 | D80: KA6013 | E80: o/č Grant za kulturu | F80: ='20'!I42 -> 150000 | G80: ='20'!J42 -> 0 | H80: 150000 | I80: ='20'!L42 -> 0 | J80: ='20'!M42 -> 0 | K80: 0 | L80: 0
C81: 614500 | E81: Subvencije privatnim poduzećima i poduzetnicima | F81: =SUM(F82:F85) -> 2418110 | G81: =SUM(G82:G85) -> 1331890 | H81: 3750000 | I81: 0 | J81: 0 | K81: 0 | L81: 0
C82: 614500 | D82: FA6001 | E82: o/č Grant za razvoj poduzetništva, obrta i zadruga | F82: ='15'!I34 -> 300000 | G82: ='15'!J34 -> 900000 | H82: 1200000 | I82: ='15'!L34 -> 0 | J82: ='15'!M34 -> 0 | K82: 0 | L82: 0
C83: 614500 | D83: JA6004 | E83: o/č Grant za poljoprivredu | F83: ='19'!I33 -> 2050000 | G83: ='19'!J33 -> 0 | H83: 2050000 | I83: ='19'!L33 -> 0 | J83: ='19'!M33 -> 0 | K83: 0 | L83: 0
C84: 614500 | D84: JA6005 | E84: o/č Grant za vodoprivredu | F84: ='19'!I34 -> 68110 | G84: ='19'!J34 -> 231890 | H84: 300000 | I84: ='19'!L34 -> 0 | J84: ='19'!M34 -> 0 | K84: 0 | L84: 0
C85: 614500 | D85: JA6007 | E85: o/č Grant za uređenje poljoprivrednog zemljišta | F85: ='19'!I35 -> 0 | G85: ='19'!J35 -> 200000 | H85: 200000 | I85: ='19'!L35 -> 0 | J85: ='19'!M35 -> 0 | K85: 0 | L85: 0
C86: 614800 | E86: Drugi tekući rashodi | F86: =SUM(F87:F88) -> 190000 | G86: =SUM(G87:G88) -> 0 | H86: 190000 | I86: 0 | J86: 0 | K86: 0 | L86: 0
C87: 614800 | D87: GA6005 | E87: o/č Ostali grantovi-povrat i drugo | F87: ='16'!I37 -> 170000 | G87: ='16'!J37 -> 0 | H87: 170000 | I87: ='16'!L37 -> 0 | J87: ='16'!M37 -> 0 | K87: 0 | L87: 0
C88: 614800 | D88: GA6006 | E88: o/č Ostali grantovi-izvršenje sudskih presuda i rješenja o izvršenju | F88: ='16'!I38 -> 20000 | G88: ='16'!J38 -> 0 | H88: 20000 | I88: ='16'!L38 -> 0 | J88: ='16'!M38 -> 0 | K88: 0 | L88: 0
C90: 615000 | E90: Kapitalni grantovi | F90: =SUM(F91:F95) -> 100000 | G90: =SUM(G91:G95) -> 1850000 | H90: 1950000 | I90: 0 | J90: 0 | K90: 0 | L90: 0
C91: 615100 | E91: Kapitalni grant | F91: ='11'!I47 -> 0 | G91: ='11'!J47 -> 300000 | H91: =F91+G91 -> 300000 | I91: ='11'!L47 -> 0 | J91: ='11'!M47 -> 0 | K91: =I91+J91 -> 0 | L91: 0
C92: 615100 | D92: FA6005 | E92: ='[3]15'!H34 -> Kapitalni grant jedinicama lokalne samouprave za razvoj poduzetničke infrastrukture | F92: ='15'!I37 -> 0 | G92: ='15'!J37 -> 400000 | H92: 400000 | I92: ='15'!L37 -> 0 | J92: ='15'!M37 -> 0 | K92: 0 | L92: 0
C93: 615100 | D93: JA6009 | E93: Kapitalni grant za vodoprivredu | F93: ='19'!I38 -> 0 | G93: ='19'!J38 -> 400000 | H93: 400000 | I93: ='19'!L38 -> 0 | J93: ='19'!M38 -> 0 | K93: 0 | L93: 0
C94: 615100 | D94: JA6010 | E94: Kapitalni grant za uređenje poljoprivrednog zemljišta | F94: ='19'!I39 -> 0 | G94: ='19'!J39 -> 150000 | H94: 150000 | I94: ='19'!L39 -> 0 | J94: ='19'!M39 -> 0 | K94: 0 | L94: 0
C95: 615500 | D95: FA6004 | E95: Kapitalni grant za razvoj poduzetništva, obrta i zadruga | F95: ='15'!I38 -> 100000 | G95: ='15'!J38 -> 600000 | H95: 700000 | I95: ='15'!L38 -> 0 | J95: ='15'!M38 -> 0 | K95: 0 | L95: 0
C97: 616000 | E97: Izdaci za kamate | F97: =SUM(F98:F99) -> 30430 | G97: 0 | H97: 30430 | I97: 0 | J97: 0 | K97: 0 | L97: 0
C98: 616200 | D98: GA6008 | E98: Izdaci za inozemne kamate-Koreja | F98: ='16'!I41 -> 17900 | G98: ='16'!J41 -> 0 | H98: =F98+G98 -> 17900 | I98: ='16'!L41 -> 0 | J98: ='16'!M41 -> 0 | K98: =I98+J98 -> 0 | L98: 0
C99: 616200 | D99: GA6009 | E99: Izdaci za inozemne kamate-Austrija | F99: ='16'!I42 -> 12530 | G99: ='16'!J42 -> 0 | H99: 12530 | I99: ='16'!L42 -> 0 | J99: ='16'!M42 -> 0 | K99: 0 | L99: 0
C101: 821000 | E101: Izdaci za nabavku stalnih sredstava | F101: =SUM(F102:F107) -> 939600 | G101: 2160000 | H101: 3099600 | I101: 0 | J101: 0 | K101: 0 | L101: 0
C102: 821200 | E102: Nabavka građevina | F102: ='10'!I32+'11'!I50+'11'!I82+'11'!I113+'11'!I144+'11'!I178+'12'!I32+'13'!I33+'14'!I34+'14'!I66+'14'!I97+'14'!I128+'14'!I159+'14'!I190+'15'!I41+'16'!I45+'17'!I38+'18'!I36+'19'!I42+'20'!I45+'21'!I35+'22'!I32+'23'!I36+'24'!I32+'26'!I32+'27'!I32+'28'!I32+'20'!I76+'20'!I107+'20'!I138+'20'!I169+'20'!I200+'20'!I231+'20'!I262+'20'!I293+'20'!I324+'20'!I355 -> 419000 | G102: ='10'!J32+'11'!J50+'11'!J82+'11'!J113+'11'!J144+'11'!J178+'12'!J32+'13'!J33+'14'!J34+'14'!J66+'14'!J97+'14'!J128+'14'!J159+'14'!J190+'15'!J41+'16'!J45+'17'!J38+'18'!J36+'19'!J42+'20'!J45+'21'!J35+'22'!J32+'23'!J36+'24'!J32+'26'!J32+'27'!J32+'28'!J32+'20'!J76+'20'!J107+'20'!J138+'20'!J169+'20'!J200+'20'!J231+'20'!J262+'20'!J293+'20'!J324+'20'!J355 -> 120000 | H102: =F102+G102 -> 539000 | I102: ='10'!L32+'11'!L50+'11'!L82+'11'!L113+'11'!L144+'11'!L178+'12'!L32+'13'!L33+'14'!L34+'14'!L66+'14'!L97+'14'!L128+'14'!L159+'14'!L190+'15'!L41+'16'!L45+'17'!L38+'18'!L36+'19'!L42+'20'!L45+'21'!L35+'22'!L32+'23'!L36+'24'!L32+'26'!L32+'27'!L32+'28'!L32+'20'!L76+'20'!L107+'20'!L138+'20'!L169+'20'!L200+'20'!L231+'20'!L262+'20'!L293+'20'!L324+'20'!L355 -> 0 | J102: ='10'!M32+'11'!M50+'11'!M82+'11'!M113+'11'!M144+'11'!M178+'12'!M32+'13'!M33+'14'!M34+'14'!M66+'14'!M97+'14'!M128+'14'!M159+'14'!M190+'15'!M41+'16'!M45+'17'!M38+'18'!M36+'19'!M42+'20'!M45+'21'!M35+'22'!M32+'23'!M36+'24'!M32+'26'!M32+'27'!M32+'28'!M32+'20'!M76+'20'!M107+'20'!M138+'20'!M169+'20'!M200+'20'!M231+'20'!M262+'20'!M293+'20'!M324+'20'!M355 -> 0 | K102: =I102+J102 -> 0 | L102: 0
C103: 821300 | E103: Nabavka opreme | F103: ='10'!I33+'11'!I51+'11'!I83+'11'!I114+'11'!I145+'11'!I179+'12'!I33+'13'!I34+'14'!I35+'14'!I67+'14'!I98+'14'!I129+'14'!I160+'14'!I191+'15'!I42+'16'!I46+'17'!I39+'18'!I37+'19'!I43+'20'!I46+'21'!I36+'22'!I33+'23'!I37+'24'!I33+'26'!I33+'27'!I33+'28'!I33+'20'!I77+'20'!I108+'20'!I139+'20'!I170+'20'!I201+'20'!I232+'20'!I263+'20'!I294+'20'!I325+'20'!I356 -> 515600 | G103: ='10'!J33+'11'!J51+'11'!J83+'11'!J114+'11'!J145+'11'!J179+'12'!J33+'13'!J34+'14'!J35+'14'!J67+'14'!J98+'14'!J129+'14'!J160+'14'!J191+'15'!J42+'16'!J46+'17'!J39+'18'!J37+'19'!J43+'20'!J46+'21'!J36+'22'!J33+'23'!J37+'24'!J33+'26'!J33+'27'!J33+'28'!J33+'20'!J77+'20'!J108+'20'!J139+'20'!J170+'20'!J201+'20'!J232+'20'!J263+'20'!J294+'20'!J325+'20'!J356 -> 60000 | H103: 575600 | I103: ='10'!L33+'11'!L51+'11'!L83+'11'!L114+'11'!L145+'11'!L179+'12'!L33+'13'!L34+'14'!L35+'14'!L67+'14'!L98+'14'!L129+'14'!L160+'14'!L191+'15'!L42+'16'!L46+'17'!L39+'18'!L37+'19'!L43+'20'!L46+'21'!L36+'22'!L33+'23'!L37+'24'!L33+'26'!L33+'27'!L33+'28'!L33+'20'!L77+'20'!L108+'20'!L139+'20'!L170+'20'!L201+'20'!L232+'20'!L263+'20'!L294+'20'!L325+'20'!L356 -> 0 | J103: ='10'!M33+'11'!M51+'11'!M83+'11'!M114+'11'!M145+'11'!M179+'12'!M33+'13'!M34+'14'!M35+'14'!M67+'14'!M98+'14'!M129+'14'!M160+'14'!M191+'15'!M42+'16'!M46+'17'!M39+'18'!M37+'19'!M43+'20'!M46+'21'!M36+'22'!M33+'23'!M37+'24'!M33+'26'!M33+'27'!M33+'28'!M33+'20'!M77+'20'!M108+'20'!M139+'20'!M170+'20'!M201+'20'!M232+'20'!M263+'20'!M294+'20'!M325+'20'!M356 -> 0 | K103: 0 | L103: 0
C104: 821300 | D104: NA8001 | E104: Nabavka opreme - vatrogasna postrojba | F104: ='23'!I38 -> 0 | G104: ='23'!J38 -> 0 | H104: 0 | I104: ='23'!L38 -> 0 | J104: ='23'!M38 -> 0 | K104: 0
C105: 821500 | E105: Nabavka stalnih sredstava u obliku prava | F105: ='10'!I34+'11'!I52 -> 5000 | G105: ='10'!J34+'11'!J52 -> 0 | H105: 5000 | I105: ='10'!L34+'11'!L52 -> 0 | J105: ='10'!M34+'11'!M52 -> 0 | K105: 0 | L105: 0
C106: 821500 | D106: IA6005 | E106: Rekonstrukcija i investicijsko održavanje lokalnih cesta | F106: ='18'!I38 -> 0 | G106: ='18'!J38 -> 1430000 | H106: 1430000 | I106: ='18'!L38 -> 0 | J106: ='18'!M38 -> 0 | K106: 0 | L106: 0
C107: 821600 | D107: IA6006 | E107: Rekonstrukcija i investicijsko održavanje regionalnih cesta | F107: ='18'!I39 -> 0 | G107: ='18'!J39 -> 550000 | H107: 550000 | I107: ='18'!L39 -> 0 | J107: ='18'!M39 -> 0 | K107: 0 | L107: 0
C109: 823000 | E109: Izdaci za otplate dugova | F109: =SUM(F110:F111) -> 518890 | G109: 0 | H109: 518890 | I109: 0 | J109: 0 | K109: 0 | L109: 0
C110: 823200 | D110: GA6008 | E110: Vanjske otplate - Koreja | F110: ='16'!I49 -> 88600 | G110: ='16'!J49 -> 0 | H110: =F110+G110 -> 88600 | I110: ='16'!L49 -> 0 | J110: ='16'!M49 -> 0 | K110: =I110+J110 -> 0 | L110: 0
C111: 823200 | D111: GA6009 | E111: Vanjske otplate - Austrija | F111: ='16'!I50 -> 430290 | G111: ='16'!J50 -> 0 | H111: 430290 | I111: ='16'!L50 -> 0 | J111: ='16'!M50 -> 0 | K111: 0 | L111: 0
E113: Ukupan broj zaposlenih:
E114: Ukupno za potrošačke jedinice: | F114: ='10'!I37+'11'!I55+'11'!I86+'11'!I117+'11'!I148+'11'!I182+'12'!I36+'13'!I37+'14'!I38+'14'!I70+'14'!I101+'14'!I132+'14'!I163+'14'!I194+'15'!I45+'16'!I53+'17'!I42+'18'!I42+'19'!I46+'20'!I49+'20'!I80+'20'!I111+'20'!I142+'20'!I173+'20'!I204+'20'!I235+'20'!I266+'20'!I297+'20'!I328+'20'!I359+'21'!I39+'22'!I36+'23'!I41+'24'!I36+'26'!I36+'27'!I36+'28'!I36 -> 49100195 | G114: ='10'!J37+'11'!J55+'11'!J86+'11'!J117+'11'!J148+'11'!J182+'12'!J36+'13'!J37+'14'!J38+'14'!J70+'14'!J101+'14'!J132+'14'!J163+'14'!J194+'15'!J45+'16'!J53+'17'!J42+'18'!J42+'19'!J46+'20'!J49+'20'!J80+'20'!J111+'20'!J142+'20'!J173+'20'!J204+'20'!J235+'20'!J266+'20'!J297+'20'!J328+'20'!J359+'21'!J39+'22'!J36+'23'!J41+'24'!J36+'26'!J36+'27'!J36+'28'!J36 -> 8392355 | H114: =SUM(F114:G114) -> 57492550 | I114: ='10'!L37+'11'!L55+'11'!L86+'11'!L117+'11'!L148+'11'!L182+'12'!L36+'13'!L37+'14'!L38+'14'!L70+'14'!L101+'14'!L132+'14'!L163+'14'!L194+'15'!L45+'16'!L53+'17'!L42+'18'!L42+'19'!L46+'20'!L49+'20'!L80+'20'!L111+'20'!L142+'20'!L173+'20'!L204+'20'!L235+'20'!L266+'20'!L297+'20'!L328+'20'!L359+'21'!L39+'22'!L36+'23'!L41+'24'!L36+'26'!L36+'27'!L36+'28'!L36 -> 0 | J114: ='10'!M37+'11'!M55+'11'!M86+'11'!M117+'11'!M148+'11'!M182+'12'!M36+'13'!M37+'14'!M38+'14'!M70+'14'!M101+'14'!M132+'14'!M163+'14'!M194+'15'!M45+'16'!M53+'17'!M42+'18'!M42+'19'!M46+'20'!M49+'20'!M80+'20'!M111+'20'!M142+'20'!M173+'20'!M204+'20'!M235+'20'!M266+'20'!M297+'20'!M328+'20'!M359+'21'!M39+'22'!M36+'23'!M41+'24'!M36+'26'!M36+'27'!M36+'28'!M36 -> 0 | K114: =SUM(I114:J114) -> 0 | L114: 0
C119: II POSEBAN DIO
C121: Članak 3.
C122: Članak 3. Proračuna mijenja se i glasi:
C123: =CONCATENATE(" Rashodi i izdaci u Proračunu u iznosu od ",TEXT(K114,"#.##0")," KM raspoređuju se po korisnicima proračuna u Posebnom dijelu Proračuna kako slijedi:") -> Rashodi i izdaci u Proračunu u iznosu od 0 KM raspoređuju se po korisnicima proračuna u Posebnom dijelu Proračuna kako slijedi:
